Workbook

Sheet F_Inputs
C1: PR19PD010_IN
A2: Acronym | B2: Reference | C2: Item description | D2: Unit | E2: Model | F2: Price Review 2019
F4: BYRun1: Blind Year DD
F5: Latest
F6: 2011-12 | G6: 2012-13 | H6: 2013-14 | I6: 2014-15 | J6: 2015-16 | K6: 2016-17 | L6: 2017-18 | M6: 2018-19 | N6: 2019-20 | O6: 2020-21 | P6: 2015-20 | Q6: 2014-20 | R6: PR19 application
A7: YKY | B7: BB3905AL | C7: Consumer Price Index (with housing) for April | D7: nr | E7: Price Review 2019 | F7: 93.3 | G7: 95.9 | H7: 98 | I7: 99.6 | J7: 99.9 | K7: 100.6 | L7: 103.2 | M7: 105.5 | N7: 107.6
A8: YKY | B8: BB3905MY | C8: Consumer Price Index (with housing) for May | D8: nr | E8: Price Review 2019 | F8: 93.5 | G8: 95.9 | H8: 98.2 | I8: 99.6 | J8: 100.1 | K8: 100.8 | L8: 103.5 | M8: 105.9 | N8: 107.9
A9: YKY | B9: BB3905JN | C9: Consumer Price Index (with housing) for June | D9: nr | E9: Price Review 2019 | F9: 93.5 | G9: 95.6 | H9: 98 | I9: 99.8 | J9: 100.1 | K9: 101 | L9: 103.5 | M9: 105.9 | N9: 107.9
A10: YKY | B10: BB3905JL | C10: Consumer Price Index (with housing) for July | D10: nr | E10: Price Review 2019 | F10: 93.5 | G10: 95.7 | H10: 98 | I10: 99.6 | J10: 100 | K10: 100.9 | L10: 103.5 | M10: 105.9 | N10: 108
A11: YKY | B11: BB3905AT | C11: Consumer Price Index (with housing) for August | D11: nr | E11: Price Review 2019 | F11: 93.9 | G11: 96.1 | H11: 98.4 | I11: 99.9 | J11: 100.3 | K11: 101.2 | L11: 104 | M11: 106.5 | N11: 108.3
A12: YKY | B12: BB3905SR | C12: Consumer Price Index (with housing) for September | D12: nr | E12: Price Review 2019 | F12: 94.5 | G12: 96.4 | H12: 98.7 | I12: 100 | J12: 100.2 | K12: 101.5 | L12: 104.3 | M12: 106.6 | N12: 108.4
A13: YKY | B13: BB3905OR | C13: Consumer Price Index (with housing) for October | D13: nr | E13: Price Review 2019 | F13: 94.5 | G13: 96.8 | H13: 98.8 | I13: 100.1 | J13: 100.3 | K13: 101.6 | L13: 104.4 | M13: 106.7 | N13: 108.3
A14: YKY | B14: BB3905NR | C14: Consumer Price Index (with housing) for November | D14: nr | E14: Price Review 2019 | F14: 94.7 | G14: 97 | H14: 98.8 | I14: 99.9 | J14: 100.3 | K14: 101.8 | L14: 104.7 | M14: 106.9 | N14: 108.5
A15: YKY | B15: BB3905DR | C15: Consumer Price Index (with housing) for December | D15: nr | E15: Price Review 2019 | F15: 95 | G15: 97.3 | H15: 99.2 | I15: 99.9 | J15: 100.4 | K15: 102.2 | L15: 105 | M15: 107.1 | N15: 108.5
A16: YKY | B16: BB3905JY | C16: Consumer Price Index (with housing) for January | D16: nr | E16: Price Review 2019 | F16: 94.7 | G16: 97 | H16: 98.7 | I16: 99.2 | J16: 99.9 | K16: 101.8 | L16: 104.5 | M16: 106.4 | N16: 108.3
A17: YKY | B17: BB3905FY | C17: Consumer Price Index (with housing) for February | D17: nr | E17: Price Review 2019 | F17: 95.2 | G17: 97.5 | H17: 99.1 | I17: 99.5 | J17: 100.1 | K17: 102.4 | L17: 104.9 | M17: 106.8 | N17: 108.6
A18: YKY | B18: BB3905MH | C18: Consumer Price Index (with housing) for March | D18: nr | E18: Price Review 2019 | F18: 95.4 | G18: 97.8 | H18: 99.3 | I18: 99.6 | J18: 100.4 | K18: 102.7 | L18: 105.1 | M18: 107 | N18: 108.6
A19: YKY | B19: BB3805AL | C19: Retail Price Index for April | D19: nr | E19: Price Review 2019 | F19: 234.4 | G19: 242.5 | H19: 249.5 | I19: 255.7 | J19: 258 | K19: 261.4 | L19: 270.6 | M19: 279.7 | N19: 288.2
A20: YKY | B20: BB3805MY | C20: Retail Price Index for May | D20: nr | E20: Price Review 2019 | F20: 235.2 | G20: 242.4 | H20: 250 | I20: 255.9 | J20: 258.5 | K20: 262.1 | L20: 271.7 | M20: 280.7 | N20: 289.2
A21: YKY | B21: BB3805JN | C21: Retail Price Index for June | D21: nr | E21: Price Review 2019 | F21: 235.2 | G21: 241.8 | H21: 249.7 | I21: 256.3 | J21: 258.9 | K21: 263.1 | L21: 272.3 | M21: 281.5 | N21: 289.6
A22: YKY | B22: BB3805JL | C22: Retail Price Index for July | D22: nr | E22: Price Review 2019 | F22: 234.7 | G22: 242.1 | H22: 249.7 | I22: 256 | J22: 258.6 | K22: 263.4 | L22: 272.9 | M22: 281.7 | N22: 289.5
A23: YKY | B23: BB3805AT | C23: Retail Price Index for August | D23: nr | E23: Price Review 2019 | F23: 236.1 | G23: 243 | H23: 251 | I23: 257 | J23: 259.8 | K23: 264.4 | L23: 274.7 | M23: 284.2 | N23: 291.7
A24: YKY | B24: BB3805SR | C24: Retail Price Index for September | D24: nr | E24: Price Review 2019 | F24: 237.9 | G24: 244.2 | H24: 251.9 | I24: 257.6 | J24: 259.6 | K24: 264.9 | L24: 275.1 | M24: 284.1 | N24: 291
A25: YKY | B25: BB3805OR | C25: Retail Price Index for October | D25: nr | E25: Price Review 2019 | F25: 238 | G25: 245.6 | H25: 251.9 | I25: 257.7 | J25: 259.5 | K25: 264.8 | L25: 275.3 | M25: 284.5 | N25: 290.4
A26: YKY | B26: BB3805NR | C26: Retail Price Index for November | D26: nr | E26: Price Review 2019 | F26: 238.5 | G26: 245.6 | H26: 252.1 | I26: 257.1 | J26: 259.8 | K26: 265.5 | L26: 275.8 | M26: 284.6 | N26: 291
A27: YKY | B27: BB3805DR | C27: Retail Price Index for December | D27: nr | E27: Price Review 2019 | F27: 239.4 | G27: 246.8 | H27: 253.4 | I27: 257.5 | J27: 260.6 | K27: 267.1 | L27: 278.1 | M27: 285.6 | N27: 291.9
A28: YKY | B28: BB3805JY | C28: Retail Price Index for January | D28: nr | E28: Price Review 2019 | F28: 238 | G28: 245.8 | H28: 252.6 | I28: 255.4 | J28: 258.8 | K28: 265.5 | L28: 276 | M28: 283 | N28: 290.6
A29: YKY | B29: BB3805FY | C29: Retail Price Index for February | D29: nr | E29: Price Review 2019 | F29: 239.9 | G29: 247.6 | H29: 254.2 | I29: 256.7 | J29: 260 | K29: 268.4 | L29: 278.1 | M29: 285 | N29: 292
A30: YKY | B30: BB3805MH | C30: Retail Price Index for March | D30: nr | E30: Price Review 2019 | F30: 240.8 | G30: 248.7 | H30: 254.8 | I30: 257.1 | J30: 261.1 | K30: 269.3 | L30: 278.3 | M30: 285.1 | N30: 292.6
A31: YKY | B31: APP8001W | C31: RCV year end balances - Water RCV closing balance at 31 March 2020 - Wholesale water closing RCV at 31 March 2020 in 2012-13 prices (from PR14 FD) | D31: £m | E31: Price Review 2019 | N31: 2417.753651
A32: YKY | B32: C00572_L021 | C32: Water - Total Adjustment RCV carry forward to PR19 | D32: £m | E32: Price Review 2019 | P32: 3.029
A33: YKY | B33: APP25001 | C33: Further 2010-15 reconciliation adjustments - Water ~ CIS RCV inflation correction | D33: £m | E33: Price Review 2019 | P33: -40.01
A34: YKY | B34: C_APP27029_PD002 | C34: Net performance payment / (penalty) applied to RCV for end of period ODI adjustments ~ Water resources | D34: £m | E34: Price Review 2019 | J34: 0 | K34: 0 | L34: 0 | M34: 0 | N34: 0 | R34: 0
A35: YKY | B35: C_APP27030_PD002 | C35: Net performance payment / (penalty) applied to RCV for end of period ODI adjustments ~ Water network plus | D35: £m | E35: Price Review 2019 | J35: 0 | K35: 0 | L35: -6.5736 | M35: -6.1248 | N35: -4.5936 | R35: -17.292
A36: YKY | B36: APP27029 | C36: End of period ODI RCV adjustments allocated to PR19 price controls (2012-13 prices) - Net performance payment / (penalty) applied to RCV for end of period ODI adjustments ~ Water resources | D36: £m | E36: Price Review 2019 | J36: 0 | K36: 0 | L36: 0 | M36: 0
A37: YKY | B37: APP27030 | C37: End of period ODI RCV adjustments allocated to PR19 price controls (2012-13 prices) - Net performance payment / (penalty) applied to RCV for end of period ODI adjustments ~ Water network plus | D37: £m | E37: Price Review 2019 | J37: 0 | K37: 0 | L37: 0 | M37: 0 | N37: -1.7500116
A38: YKY | B38: C_WS15025_PR19PD006 | C38: Water: RCV adjustment from totex menu model | D38: £m | E38: Price Review 2019 | N38: 45.03133763
A39: YKY | B39: APP8009W | C39: RCV year end balances - Water RCV closing balance at 31 March 2020 - Water ~ Other adjustment to wholesale RCV | D39: £m | E39: Price Review 2019 | N39: 0
A40: YKY | B40: C_A7010W_PR19PD003 | C40: NPV effect of 50% of proceeds from disposals of interest in land | D40: £m | E40: Price Review 2019 | N40: -1.457962234
A41: YKY | B41: WS12019WR | C41: RCV ~ 31 March 2020 ( % of total wholesale water) - Water resources | D41: % | E41: Price Review 2019 | L41: 0.2006833407
A42: YKY | B42: APP33021WR | C42: Water resources - RCV adjustment | D42: £m | E42: Price Review 2019 | N42: 0.3694056592
A43: YKY | B43: APP33021WNP | C43: Water network plus - RCV adjustment | D43: £m | E43: Price Review 2019 | N43: 6.935106056
A44: YKY | B44: APP8001WW | C44: RCV year end balances - Wastewater RCV closing balance at 31 March 2020 - Wholesale wastewater closing RCV at 31 March 2020 in 2012-13 prices (PR14 FD) | D44: £m | E44: Price Review 2019 | N44: 3394.326214
A45: YKY | B45: C00579_L021 | C45: Wastewater - Total Adjustment RCV carry forward to PR19 | D45: £m | E45: Price Review 2019 | P45: 3.198
A46: YKY | B46: APP25002 | C46: Further 2010-15 reconciliation adjustments - Wastewater ~ CIS RCV inflation correction | D46: £m | E46: Price Review 2019 | P46: -61.175
A47: YKY | B47: C_APP27031_PD002 | C47: Net performance payment / (penalty) applied to RCV for end of period ODI adjustments ~ Wastewater network plus | D47: £m | E47: Price Review 2019 | J47: 0 | K47: 0 | L47: 0 | M47: 0 | N47: 0 | R47: 0
A48: YKY | B48: APP27031 | C48: End of period ODI RCV adjustments allocated to PR19 price controls (2012-13 prices) - Net performance payment / (penalty) applied to RCV for end of period ODI adjustments ~ Wastewater network plus | D48: £m | E48: Price Review 2019 | J48: 0 | K48: 0 | L48: 0 | M48: 0
A49: YKY | B49: C_WWS15020_PR19PD006 | C49: Wastewater: RCV adjustment from totex menu model | D49: £m | E49: Price Review 2019 | N49: -46.71956112
A50: YKY | B50: APP8009WW | C50: RCV year end balances - Wastewater RCV closing balance at 31 March 2020 - Wastewater ~ Other adjustment to wholesale RCV | D50: £m | E50: Price Review 2019 | N50: 0
A51: YKY | B51: C_A7010WW_PR19PD003 | C51: NPV effect of 50% of proceeds from disposals of interest in land | D51: £m | E51: Price Review 2019 | N51: 0.2205602909
A52: YKY | B52: WWS12016BIO | C52: RCV split 31 March 2020 - RCV (prior to midnight adjustments) - Bioresources | D52: £m | E52: Price Review 2019 | L52: 290.68
A53: YKY | B53: APP33021BIO | C53: Bioresources - RCV adjustment | D53: £m | E53: Price Review 2019 | N53: 1.802034585
A54: YKY | B54: APP33021WWNP | C54: Wastewater network plus - RCV adjustment | D54: £m | E54: Price Review 2019 | N54: 6.186740662
A55: YKY | B55: RCV1011DMMY | C55: RCV year end balances - Dummy RCV - Dummy RCV (prior to midnight adjustments) 31 March 2020 | D55: £m | E55: Price Review 2019
A56: YKY | B56: C_APP27032_PD002 | C56: Net performance payment / (penalty) applied to RCV for end of period ODI adjustments ~ Thames Tideway | D56: £m | E56: Price Review 2019 | J56: 0 | K56: 0 | L56: 0 | M56: 0 | N56: 0 | R56: 0
A57: YKY | B57: APP27032 | C57: End of period ODI RCV adjustments allocated to PR19 price controls (2012-13 prices) - Net performance payment / (penalty) applied to RCV for end of period ODI adjustments ~ Thames Tideway | D57: £m | E57: Price Review 2019 | J57: 0 | K57: 0 | L57: 0 | M57: 0
A58: YKY | B58: C_WWS15020_DMMY_PR19PD006 | C58: Wastewater: RCV adjustment from totex menu model (TTT) | D58: £m | E58: Price Review 2019
A59: YKY | B59: APP8009DMMY | C59: RCV year end balances - Dummy RCV - Dummy ~ Other adjustment to wholesale RCV | D59: £m | E59: Price Review 2019
A60: YKY | B60: APP33021DMMY | C60: Dummy - RCV adjustment | D60: £m | E60: Price Review 2019 | N60: 0

Sheet InpOverride
C1: PR19PD010_IN
A2: Acronym | B2: Reference | C2: Item description | D2: Unit | E2: Model | F2: Price Review 2019
F4: PR19 Run 6: Fast Track DD
F5: Latest
F6: 2011-12 | G6: 2012-13 | H6: 2013-14 | I6: 2014-15 | J6: 2015-16 | K6: 2016-17 | L6: 2017-18 | M6: 2018-19 | N6: 2019-20 | O6: 2020-21 | P6: 2015-20 | Q6: 2014-20 | R6: PR19 application | S6: Action / Intervention reference
A7: =F_Inputs!A7 -> YKY | B7: BB3905AL | C7: Consumer Price Index (with housing) for April | D7: nr | E7: Price Review 2019
A8: =F_Inputs!A8 -> YKY | B8: BB3905MY | C8: Consumer Price Index (with housing) for May | D8: nr | E8: Price Review 2019
A9: =F_Inputs!A9 -> YKY | B9: BB3905JN | C9: Consumer Price Index (with housing) for June | D9: nr | E9: Price Review 2019
A10: =F_Inputs!A10 -> YKY | B10: BB3905JL | C10: Consumer Price Index (with housing) for July | D10: nr | E10: Price Review 2019
A11: =F_Inputs!A11 -> YKY | B11: BB3905AT | C11: Consumer Price Index (with housing) for August | D11: nr | E11: Price Review 2019
A12: =F_Inputs!A12 -> YKY | B12: BB3905SR | C12: Consumer Price Index (with housing) for September | D12: nr | E12: Price Review 2019
A13: =F_Inputs!A13 -> YKY | B13: BB3905OR | C13: Consumer Price Index (with housing) for October | D13: nr | E13: Price Review 2019
A14: =F_Inputs!A14 -> YKY | B14: BB3905NR | C14: Consumer Price Index (with housing) for November | D14: nr | E14: Price Review 2019
A15: =F_Inputs!A15 -> YKY | B15: BB3905DR | C15: Consumer Price Index (with housing) for December | D15: nr | E15: Price Review 2019
A16: =F_Inputs!A16 -> YKY | B16: BB3905JY | C16: Consumer Price Index (with housing) for January | D16: nr | E16: Price Review 2019
A17: =F_Inputs!A17 -> YKY | B17: BB3905FY | C17: Consumer Price Index (with housing) for February | D17: nr | E17: Price Review 2019
A18: =F_Inputs!A18 -> YKY | B18: BB3905MH | C18: Consumer Price Index (with housing) for March | D18: nr | E18: Price Review 2019
A19: =F_Inputs!A19 -> YKY | B19: BB3805AL | C19: Retail Price Index for April | D19: nr | E19: Price Review 2019
A20: =F_Inputs!A20 -> YKY | B20: BB3805MY | C20: Retail Price Index for May | D20: nr | E20: Price Review 2019
A21: =F_Inputs!A21 -> YKY | B21: BB3805JN | C21: Retail Price Index for June | D21: nr | E21: Price Review 2019
A22: =F_Inputs!A22 -> YKY | B22: BB3805JL | C22: Retail Price Index for July | D22: nr | E22: Price Review 2019
A23: =F_Inputs!A23 -> YKY | B23: BB3805AT | C23: Retail Price Index for August | D23: nr | E23: Price Review 2019
A24: =F_Inputs!A24 -> YKY | B24: BB3805SR | C24: Retail Price Index for September | D24: nr | E24: Price Review 2019
A25: =F_Inputs!A25 -> YKY | B25: BB3805OR | C25: Retail Price Index for October | D25: nr | E25: Price Review 2019
A26: =F_Inputs!A26 -> YKY | B26: BB3805NR | C26: Retail Price Index for November | D26: nr | E26: Price Review 2019
A27: =F_Inputs!A27 -> YKY | B27: BB3805DR | C27: Retail Price Index for December | D27: nr | E27: Price Review 2019
A28: =F_Inputs!A28 -> YKY | B28: BB3805JY | C28: Retail Price Index for January | D28: nr | E28: Price Review 2019
A29: =F_Inputs!A29 -> YKY | B29: BB3805FY | C29: Retail Price Index for February | D29: nr | E29: Price Review 2019
A30: =F_Inputs!A30 -> YKY | B30: BB3805MH | C30: Retail Price Index for March | D30: nr | E30: Price Review 2019
A31: =F_Inputs!A31 -> YKY | B31: APP8001W | C31: RCV year end balances - Water RCV closing balance at 31 March 2020 - Wholesale water closing RCV at 31 March 2020 in 2012-13 prices (from PR14 FD) | D31: £m | E31: Price Review 2019
A32: =F_Inputs!A32 -> YKY | B32: C00572_L021 | C32: Water - Total Adjustment RCV carry forward to PR19 | D32: £m | E32: Price Review 2019
A33: =F_Inputs!A33 -> YKY | B33: APP25001 | C33: Further 2010-15 reconciliation adjustments - Water ~ CIS RCV inflation correction | D33: £m | E33: Price Review 2019
A34: =F_Inputs!A34 -> YKY | B34: C_APP27029_PD002 | C34: Net performance payment / (penalty) applied to RCV for end of period ODI adjustments ~ Water resources | D34: £m | E34: Price Review 2019
A35: =F_Inputs!A35 -> YKY | B35: C_APP27030_PD002 | C35: Net performance payment / (penalty) applied to RCV for end of period ODI adjustments ~ Water network plus | D35: £m | E35: Price Review 2019
A36: =F_Inputs!A36 -> YKY | B36: APP27029 | C36: End of period ODI RCV adjustments allocated to PR19 price controls (2012-13 prices) - Net performance payment / (penalty) applied to RCV for end of period ODI adjustments ~ Water resources | D36: £m | E36: Price Review 2019
A37: =F_Inputs!A37 -> YKY | B37: APP27030 | C37: End of period ODI RCV adjustments allocated to PR19 price controls (2012-13 prices) - Net performance payment / (penalty) applied to RCV for end of period ODI adjustments ~ Water network plus | D37: £m | E37: Price Review 2019
A38: =F_Inputs!A38 -> YKY | B38: C_WS15025_PR19PD006 | C38: Water: RCV adjustment from totex menu model | D38: £m | E38: Price Review 2019
A39: =F_Inputs!A39 -> YKY | B39: APP8009W | C39: RCV year end balances - Water RCV closing balance at 31 March 2020 - Water ~ Other adjustment to wholesale RCV | D39: £m | E39: Price Review 2019
A40: =F_Inputs!A40 -> YKY | B40: C_A7010W_PR19PD003 | C40: NPV effect of 50% of proceeds from disposals of interest in land | D40: £m | E40: Price Review 2019
A41: =F_Inputs!A41 -> YKY | B41: WS12019WR | C41: RCV ~ 31 March 2020 ( % of total wholesale water) - Water resources | D41: % | E41: Price Review 2019
A42: =F_Inputs!A42 -> YKY | B42: APP33021WR | C42: Water resources - RCV adjustment | D42: £m | E42: Price Review 2019
A43: =F_Inputs!A43 -> YKY | B43: APP33021WNP | C43: Water network plus - RCV adjustment | D43: £m | E43: Price Review 2019
A44: =F_Inputs!A44 -> YKY | B44: APP8001WW | C44: RCV year end balances - Wastewater RCV closing balance at 31 March 2020 - Wholesale wastewater closing RCV at 31 March 2020 in 2012-13 prices (PR14 FD) | D44: £m | E44: Price Review 2019
A45: =F_Inputs!A45 -> YKY | B45: C00579_L021 | C45: Wastewater - Total Adjustment RCV carry forward to PR19 | D45: £m | E45: Price Review 2019
A46: =F_Inputs!A46 -> YKY | B46: APP25002 | C46: Further 2010-15 reconciliation adjustments - Wastewater ~ CIS RCV inflation correction | D46: £m | E46: Price Review 2019
A47: =F_Inputs!A47 -> YKY | B47: C_APP27031_PD002 | C47: Net performance payment / (penalty) applied to RCV for end of period ODI adjustments ~ Wastewater network plus | D47: £m | E47: Price Review 2019
A48: =F_Inputs!A48 -> YKY | B48: APP27031 | C48: End of period ODI RCV adjustments allocated to PR19 price controls (2012-13 prices) - Net performance payment / (penalty) applied to RCV for end of period ODI adjustments ~ Wastewater network plus | D48: £m | E48: Price Review 2019
A49: =F_Inputs!A49 -> YKY | B49: C_WWS15020_PR19PD006 | C49: Wastewater: RCV adjustment from totex menu model | D49: £m | E49: Price Review 2019
A50: =F_Inputs!A50 -> YKY | B50: APP8009WW | C50: RCV year end balances - Wastewater RCV closing balance at 31 March 2020 - Wastewater ~ Other adjustment to wholesale RCV | D50: £m | E50: Price Review 2019
A51: =F_Inputs!A51 -> YKY | B51: C_A7010WW_PR19PD003 | C51: NPV effect of 50% of proceeds from disposals of interest in land | D51: £m | E51: Price Review 2019
A52: =F_Inputs!A52 -> YKY | B52: WWS12016BIO | C52: RCV split 31 March 2020 - RCV (prior to midnight adjustments) - Bioresources | D52: £m | E52: Price Review 2019
A53: =F_Inputs!A53 -> YKY | B53: APP33021BIO | C53: Bioresources - RCV adjustment | D53: £m | E53: Price Review 2019
A54: =F_Inputs!A54 -> YKY | B54: APP33021WWNP | C54: Wastewater network plus - RCV adjustment | D54: £m | E54: Price Review 2019
A55: =F_Inputs!A55 -> YKY | B55: RCV1011DMMY | C55: RCV year end balances - Dummy RCV - Dummy RCV (prior to midnight adjustments) 31 March 2020 | D55: £m | E55: Price Review 2019
A56: =F_Inputs!A56 -> YKY | B56: C_APP27032_PD002 | C56: Net performance payment / (penalty) applied to RCV for end of period ODI adjustments ~ Thames Tideway | D56: £m | E56: Price Review 2019
A57: =F_Inputs!A57 -> YKY | B57: APP27032 | C57: End of period ODI RCV adjustments allocated to PR19 price controls (2012-13 prices) - Net performance payment / (penalty) applied to RCV for end of period ODI adjustments ~ Thames Tideway | D57: £m | E57: Price Review 2019
A58: =F_Inputs!A58 -> YKY | B58: C_WWS15020_DMMY_PR19PD006 | C58: Wastewater: RCV adjustment from totex menu model (TTT) | D58: £m | E58: Price Review 2019
A59: =F_Inputs!A59 -> YKY | B59: APP8009DMMY | C59: RCV year end balances - Dummy RCV - Dummy ~ Other adjustment to wholesale RCV | D59: £m | E59: Price Review 2019
A60: =F_Inputs!A60 -> YKY | B60: APP33021DMMY | C60: Dummy - RCV adjustment | D60: £m | E60: Price Review 2019

Sheet InpActive
C1: PR19PD010_IN
A2: Acronym | B2: Reference | C2: Item description | D2: Unit | E2: Model | F2: Price Review 2019
F4: PR19 Run 6: Fast Track DD
F5: Latest
F6: 2011-12 | G6: 2012-13 | H6: 2013-14 | I6: 2014-15 | J6: 2015-16 | K6: 2016-17 | L6: 2017-18 | M6: 2018-19 | N6: 2019-20 | O6: 2020-21 | P6: 2015-20 | Q6: 2014-20 | R6: PR19 application
A7: =F_Inputs!A7 -> YKY | B7: BB3905AL | C7: Consumer Price Index (with housing) for April | D7: nr | E7: Price Review 2019 | F7: =IF(InpOverride!F7="",F_Inputs!F7,InpOverride!F7) -> 93.3 | G7: =IF(InpOverride!G7="",F_Inputs!G7,InpOverride!G7) -> 95.9 | H7: =IF(InpOverride!H7="",F_Inputs!H7,InpOverride!H7) -> 98 | I7: =IF(InpOverride!I7="",F_Inputs!I7,InpOverride!I7) -> 99.6 | J7: =IF(InpOverride!J7="",F_Inputs!J7,InpOverride!J7) -> 99.9 | K7: =IF(InpOverride!K7="",F_Inputs!K7,InpOverride!K7) -> 100.6 | L7: =IF(InpOverride!L7="",F_Inputs!L7,InpOverride!L7) -> 103.2 | M7: =IF(InpOverride!M7="",F_Inputs!M7,InpOverride!M7) -> 105.5 | N7: =IF(InpOverride!N7="",F_Inputs!N7,InpOverride!N7) -> 107.6 | O7: =IF(InpOverride!O7="",F_Inputs!O7,InpOverride!O7) -> 0
A8: =F_Inputs!A8 -> YKY | B8: BB3905MY | C8: Consumer Price Index (with housing) for May | D8: nr | E8: Price Review 2019 | F8: =IF(InpOverride!F8="",F_Inputs!F8,InpOverride!F8) -> 93.5 | G8: =IF(InpOverride!G8="",F_Inputs!G8,InpOverride!G8) -> 95.9 | H8: =IF(InpOverride!H8="",F_Inputs!H8,InpOverride!H8) -> 98.2 | I8: =IF(InpOverride!I8="",F_Inputs!I8,InpOverride!I8) -> 99.6 | J8: =IF(InpOverride!J8="",F_Inputs!J8,InpOverride!J8) -> 100.1 | K8: =IF(InpOverride!K8="",F_Inputs!K8,InpOverride!K8) -> 100.8 | L8: =IF(InpOverride!L8="",F_Inputs!L8,InpOverride!L8) -> 103.5 | M8: =IF(InpOverride!M8="",F_Inputs!M8,InpOverride!M8) -> 105.9 | N8: =IF(InpOverride!N8="",F_Inputs!N8,InpOverride!N8) -> 107.9 | O8: =IF(InpOverride!O8="",F_Inputs!O8,InpOverride!O8) -> 0
A9: =F_Inputs!A9 -> YKY | B9: BB3905JN | C9: Consumer Price Index (with housing) for June | D9: nr | E9: Price Review 2019 | F9: =IF(InpOverride!F9="",F_Inputs!F9,InpOverride!F9) -> 93.5 | G9: =IF(InpOverride!G9="",F_Inputs!G9,InpOverride!G9) -> 95.6 | H9: =IF(InpOverride!H9="",F_Inputs!H9,InpOverride!H9) -> 98 | I9: =IF(InpOverride!I9="",F_Inputs!I9,InpOverride!I9) -> 99.8 | J9: =IF(InpOverride!J9="",F_Inputs!J9,InpOverride!J9) -> 100.1 | K9: =IF(InpOverride!K9="",F_Inputs!K9,InpOverride!K9) -> 101 | L9: =IF(InpOverride!L9="",F_Inputs!L9,InpOverride!L9) -> 103.5 | M9: =IF(InpOverride!M9="",F_Inputs!M9,InpOverride!M9) -> 105.9 | N9: =IF(InpOverride!N9="",F_Inputs!N9,InpOverride!N9) -> 107.9 | O9: =IF(InpOverride!O9="",F_Inputs!O9,InpOverride!O9) -> 0
A10: =F_Inputs!A10 -> YKY | B10: BB3905JL | C10: Consumer Price Index (with housing) for July | D10: nr | E10: Price Review 2019 | F10: =IF(InpOverride!F10="",F_Inputs!F10,InpOverride!F10) -> 93.5 | G10: =IF(InpOverride!G10="",F_Inputs!G10,InpOverride!G10) -> 95.7 | H10: =IF(InpOverride!H10="",F_Inputs!H10,InpOverride!H10) -> 98 | I10: =IF(InpOverride!I10="",F_Inputs!I10,InpOverride!I10) -> 99.6 | J10: =IF(InpOverride!J10="",F_Inputs!J10,InpOverride!J10) -> 100 | K10: =IF(InpOverride!K10="",F_Inputs!K10,InpOverride!K10) -> 100.9 | L10: =IF(InpOverride!L10="",F_Inputs!L10,InpOverride!L10) -> 103.5 | M10: =IF(InpOverride!M10="",F_Inputs!M10,InpOverride!M10) -> 105.9 | N10: =IF(InpOverride!N10="",F_Inputs!N10,InpOverride!N10) -> 108 | O10: =IF(InpOverride!O10="",F_Inputs!O10,InpOverride!O10) -> 0
A11: =F_Inputs!A11 -> YKY | B11: BB3905AT | C11: Consumer Price Index (with housing) for August | D11: nr | E11: Price Review 2019 | F11: =IF(InpOverride!F11="",F_Inputs!F11,InpOverride!F11) -> 93.9 | G11: =IF(InpOverride!G11="",F_Inputs!G11,InpOverride!G11) -> 96.1 | H11: =IF(InpOverride!H11="",F_Inputs!H11,InpOverride!H11) -> 98.4 | I11: =IF(InpOverride!I11="",F_Inputs!I11,InpOverride!I11) -> 99.9 | J11: =IF(InpOverride!J11="",F_Inputs!J11,InpOverride!J11) -> 100.3 | K11: =IF(InpOverride!K11="",F_Inputs!K11,InpOverride!K11) -> 101.2 | L11: =IF(InpOverride!L11="",F_Inputs!L11,InpOverride!L11) -> 104 | M11: =IF(InpOverride!M11="",F_Inputs!M11,InpOverride!M11) -> 106.5 | N11: =IF(InpOverride!N11="",F_Inputs!N11,InpOverride!N11) -> 108.3 | O11: =IF(InpOverride!O11="",F_Inputs!O11,InpOverride!O11) -> 0
A12: =F_Inputs!A12 -> YKY | B12: BB3905SR | C12: Consumer Price Index (with housing) for September | D12: nr | E12: Price Review 2019 | F12: =IF(InpOverride!F12="",F_Inputs!F12,InpOverride!F12) -> 94.5 | G12: =IF(InpOverride!G12="",F_Inputs!G12,InpOverride!G12) -> 96.4 | H12: =IF(InpOverride!H12="",F_Inputs!H12,InpOverride!H12) -> 98.7 | I12: =IF(InpOverride!I12="",F_Inputs!I12,InpOverride!I12) -> 100 | J12: =IF(InpOverride!J12="",F_Inputs!J12,InpOverride!J12) -> 100.2 | K12: =IF(InpOverride!K12="",F_Inputs!K12,InpOverride!K12) -> 101.5 | L12: =IF(InpOverride!L12="",F_Inputs!L12,InpOverride!L12) -> 104.3 | M12: =IF(InpOverride!M12="",F_Inputs!M12,InpOverride!M12) -> 106.6 | N12: =IF(InpOverride!N12="",F_Inputs!N12,InpOverride!N12) -> 108.4 | O12: =IF(InpOverride!O12="",F_Inputs!O12,InpOverride!O12) -> 0
A13: =F_Inputs!A13 -> YKY | B13: BB3905OR | C13: Consumer Price Index (with housing) for October | D13: nr | E13: Price Review 2019 | F13: =IF(InpOverride!F13="",F_Inputs!F13,InpOverride!F13) -> 94.5 | G13: =IF(InpOverride!G13="",F_Inputs!G13,InpOverride!G13) -> 96.8 | H13: =IF(InpOverride!H13="",F_Inputs!H13,InpOverride!H13) -> 98.8 | I13: =IF(InpOverride!I13="",F_Inputs!I13,InpOverride!I13) -> 100.1 | J13: =IF(InpOverride!J13="",F_Inputs!J13,InpOverride!J13) -> 100.3 | K13: =IF(InpOverride!K13="",F_Inputs!K13,InpOverride!K13) -> 101.6 | L13: =IF(InpOverride!L13="",F_Inputs!L13,InpOverride!L13) -> 104.4 | M13: =IF(InpOverride!M13="",F_Inputs!M13,InpOverride!M13) -> 106.7 | N13: =IF(InpOverride!N13="",F_Inputs!N13,InpOverride!N13) -> 108.3 | O13: =IF(InpOverride!O13="",F_Inputs!O13,InpOverride!O13) -> 0
A14: =F_Inputs!A14 -> YKY | B14: BB3905NR | C14: Consumer Price Index (with housing) for November | D14: nr | E14: Price Review 2019 | F14: =IF(InpOverride!F14="",F_Inputs!F14,InpOverride!F14) -> 94.7 | G14: =IF(InpOverride!G14="",F_Inputs!G14,InpOverride!G14) -> 97 | H14: =IF(InpOverride!H14="",F_Inputs!H14,InpOverride!H14) -> 98.8 | I14: =IF(InpOverride!I14="",F_Inputs!I14,InpOverride!I14) -> 99.9 | J14: =IF(InpOverride!J14="",F_Inputs!J14,InpOverride!J14) -> 100.3 | K14: =IF(InpOverride!K14="",F_Inputs!K14,InpOverride!K14) -> 101.8 | L14: =IF(InpOverride!L14="",F_Inputs!L14,InpOverride!L14) -> 104.7 | M14: =IF(InpOverride!M14="",F_Inputs!M14,InpOverride!M14) -> 106.9 | N14: =IF(InpOverride!N14="",F_Inputs!N14,InpOverride!N14) -> 108.5 | O14: =IF(InpOverride!O14="",F_Inputs!O14,InpOverride!O14) -> 0
A15: =F_Inputs!A15 -> YKY | B15: BB3905DR | C15: Consumer Price Index (with housing) for December | D15: nr | E15: Price Review 2019 | F15: =IF(InpOverride!F15="",F_Inputs!F15,InpOverride!F15) -> 95 | G15: =IF(InpOverride!G15="",F_Inputs!G15,InpOverride!G15) -> 97.3 | H15: =IF(InpOverride!H15="",F_Inputs!H15,InpOverride!H15) -> 99.2 | I15: =IF(InpOverride!I15="",F_Inputs!I15,InpOverride!I15) -> 99.9 | J15: =IF(InpOverride!J15="",F_Inputs!J15,InpOverride!J15) -> 100.4 | K15: =IF(InpOverride!K15="",F_Inputs!K15,InpOverride!K15) -> 102.2 | L15: =IF(InpOverride!L15="",F_Inputs!L15,InpOverride!L15) -> 105 | M15: =IF(InpOverride!M15="",F_Inputs!M15,InpOverride!M15) -> 107.1 | N15: =IF(InpOverride!N15="",F_Inputs!N15,InpOverride!N15) -> 108.5 | O15: =IF(InpOverride!O15="",F_Inputs!O15,InpOverride!O15) -> 0
A16: =F_Inputs!A16 -> YKY | B16: BB3905JY | C16: Consumer Price Index (with housing) for January | D16: nr | E16: Price Review 2019 | F16: =IF(InpOverride!F16="",F_Inputs!F16,InpOverride!F16) -> 94.7 | G16: =IF(InpOverride!G16="",F_Inputs!G16,InpOverride!G16) -> 97 | H16: =IF(InpOverride!H16="",F_Inputs!H16,InpOverride!H16) -> 98.7 | I16: =IF(InpOverride!I16="",F_Inputs!I16,InpOverride!I16) -> 99.2 | J16: =IF(InpOverride!J16="",F_Inputs!J16,InpOverride!J16) -> 99.9 | K16: =IF(InpOverride!K16="",F_Inputs!K16,InpOverride!K16) -> 101.8 | L16: =IF(InpOverride!L16="",F_Inputs!L16,InpOverride!L16) -> 104.5 | M16: =IF(InpOverride!M16="",F_Inputs!M16,InpOverride!M16) -> 106.4 | N16: =IF(InpOverride!N16="",F_Inputs!N16,InpOverride!N16) -> 108.3 | O16: =IF(InpOverride!O16="",F_Inputs!O16,InpOverride!O16) -> 0
A17: =F_Inputs!A17 -> YKY | B17: BB3905FY | C17: Consumer Price Index (with housing) for February | D17: nr | E17: Price Review 2019 | F17: =IF(InpOverride!F17="",F_Inputs!F17,InpOverride!F17) -> 95.2 | G17: =IF(InpOverride!G17="",F_Inputs!G17,InpOverride!G17) -> 97.5 | H17: =IF(InpOverride!H17="",F_Inputs!H17,InpOverride!H17) -> 99.1 | I17: =IF(InpOverride!I17="",F_Inputs!I17,InpOverride!I17) -> 99.5 | J17: =IF(InpOverride!J17="",F_Inputs!J17,InpOverride!J17) -> 100.1 | K17: =IF(InpOverride!K17="",F_Inputs!K17,InpOverride!K17) -> 102.4 | L17: =IF(InpOverride!L17="",F_Inputs!L17,InpOverride!L17) -> 104.9 | M17: =IF(InpOverride!M17="",F_Inputs!M17,InpOverride!M17) -> 106.8 | N17: =IF(InpOverride!N17="",F_Inputs!N17,InpOverride!N17) -> 108.6 | O17: =IF(InpOverride!O17="",F_Inputs!O17,InpOverride!O17) -> 0
A18: =F_Inputs!A18 -> YKY | B18: BB3905MH | C18: Consumer Price Index (with housing) for March | D18: nr | E18: Price Review 2019 | F18: =IF(InpOverride!F18="",F_Inputs!F18,InpOverride!F18) -> 95.4 | G18: =IF(InpOverride!G18="",F_Inputs!G18,InpOverride!G18) -> 97.8 | H18: =IF(InpOverride!H18="",F_Inputs!H18,InpOverride!H18) -> 99.3 | I18: =IF(InpOverride!I18="",F_Inputs!I18,InpOverride!I18) -> 99.6 | J18: =IF(InpOverride!J18="",F_Inputs!J18,InpOverride!J18) -> 100.4 | K18: =IF(InpOverride!K18="",F_Inputs!K18,InpOverride!K18) -> 102.7 | L18: =IF(InpOverride!L18="",F_Inputs!L18,InpOverride!L18) -> 105.1 | M18: =IF(InpOverride!M18="",F_Inputs!M18,InpOverride!M18) -> 107 | N18: =IF(InpOverride!N18="",F_Inputs!N18,InpOverride!N18) -> 108.6 | O18: =IF(InpOverride!O18="",F_Inputs!O18,InpOverride!O18) -> 0
A19: =F_Inputs!A19 -> YKY | B19: BB3805AL | C19: Retail Price Index for April | D19: nr | E19: Price Review 2019 | F19: =IF(InpOverride!F19="",F_Inputs!F19,InpOverride!F19) -> 234.4 | G19: =IF(InpOverride!G19="",F_Inputs!G19,InpOverride!G19) -> 242.5 | H19: =IF(InpOverride!H19="",F_Inputs!H19,InpOverride!H19) -> 249.5 | I19: =IF(InpOverride!I19="",F_Inputs!I19,InpOverride!I19) -> 255.7 | J19: =IF(InpOverride!J19="",F_Inputs!J19,InpOverride!J19) -> 258 | K19: =IF(InpOverride!K19="",F_Inputs!K19,InpOverride!K19) -> 261.4 | L19: =IF(InpOverride!L19="",F_Inputs!L19,InpOverride!L19) -> 270.6 | M19: =IF(InpOverride!M19="",F_Inputs!M19,InpOverride!M19) -> 279.7 | N19: =IF(InpOverride!N19="",F_Inputs!N19,InpOverride!N19) -> 288.2 | O19: =IF(InpOverride!O19="",F_Inputs!O19,InpOverride!O19) -> 0
A20: =F_Inputs!A20 -> YKY | B20: BB3805MY | C20: Retail Price Index for May | D20: nr | E20: Price Review 2019 | F20: =IF(InpOverride!F20="",F_Inputs!F20,InpOverride!F20) -> 235.2 | G20: =IF(InpOverride!G20="",F_Inputs!G20,InpOverride!G20) -> 242.4 | H20: =IF(InpOverride!H20="",F_Inputs!H20,InpOverride!H20) -> 250 | I20: =IF(InpOverride!I20="",F_Inputs!I20,InpOverride!I20) -> 255.9 | J20: =IF(InpOverride!J20="",F_Inputs!J20,InpOverride!J20) -> 258.5 | K20: =IF(InpOverride!K20="",F_Inputs!K20,InpOverride!K20) -> 262.1 | L20: =IF(InpOverride!L20="",F_Inputs!L20,InpOverride!L20) -> 271.7 | M20: =IF(InpOverride!M20="",F_Inputs!M20,InpOverride!M20) -> 280.7 | N20: =IF(InpOverride!N20="",F_Inputs!N20,InpOverride!N20) -> 289.2 | O20: =IF(InpOverride!O20="",F_Inputs!O20,InpOverride!O20) -> 0
A21: =F_Inputs!A21 -> YKY | B21: BB3805JN | C21: Retail Price Index for June | D21: nr | E21: Price Review 2019 | F21: =IF(InpOverride!F21="",F_Inputs!F21,InpOverride!F21) -> 235.2 | G21: =IF(InpOverride!G21="",F_Inputs!G21,InpOverride!G21) -> 241.8 | H21: =IF(InpOverride!H21="",F_Inputs!H21,InpOverride!H21) -> 249.7 | I21: =IF(InpOverride!I21="",F_Inputs!I21,InpOverride!I21) -> 256.3 | J21: =IF(InpOverride!J21="",F_Inputs!J21,InpOverride!J21) -> 258.9 | K21: =IF(InpOverride!K21="",F_Inputs!K21,InpOverride!K21) -> 263.1 | L21: =IF(InpOverride!L21="",F_Inputs!L21,InpOverride!L21) -> 272.3 | M21: =IF(InpOverride!M21="",F_Inputs!M21,InpOverride!M21) -> 281.5 | N21: =IF(InpOverride!N21="",F_Inputs!N21,InpOverride!N21) -> 289.6 | O21: =IF(InpOverride!O21="",F_Inputs!O21,InpOverride!O21) -> 0
A22: =F_Inputs!A22 -> YKY | B22: BB3805JL | C22: Retail Price Index for July | D22: nr | E22: Price Review 2019 | F22: =IF(InpOverride!F22="",F_Inputs!F22,InpOverride!F22) -> 234.7 | G22: =IF(InpOverride!G22="",F_Inputs!G22,InpOverride!G22) -> 242.1 | H22: =IF(InpOverride!H22="",F_Inputs!H22,InpOverride!H22) -> 249.7 | I22: =IF(InpOverride!I22="",F_Inputs!I22,InpOverride!I22) -> 256 | J22: =IF(InpOverride!J22="",F_Inputs!J22,InpOverride!J22) -> 258.6 | K22: =IF(InpOverride!K22="",F_Inputs!K22,InpOverride!K22) -> 263.4 | L22: =IF(InpOverride!L22="",F_Inputs!L22,InpOverride!L22) -> 272.9 | M22: =IF(InpOverride!M22="",F_Inputs!M22,InpOverride!M22) -> 281.7 | N22: =IF(InpOverride!N22="",F_Inputs!N22,InpOverride!N22) -> 289.5 | O22: =IF(InpOverride!O22="",F_Inputs!O22,InpOverride!O22) -> 0
A23: =F_Inputs!A23 -> YKY | B23: BB3805AT | C23: Retail Price Index for August | D23: nr | E23: Price Review 2019 | F23: =IF(InpOverride!F23="",F_Inputs!F23,InpOverride!F23) -> 236.1 | G23: =IF(InpOverride!G23="",F_Inputs!G23,InpOverride!G23) -> 243 | H23: =IF(InpOverride!H23="",F_Inputs!H23,InpOverride!H23) -> 251 | I23: =IF(InpOverride!I23="",F_Inputs!I23,InpOverride!I23) -> 257 | J23: =IF(InpOverride!J23="",F_Inputs!J23,InpOverride!J23) -> 259.8 | K23: =IF(InpOverride!K23="",F_Inputs!K23,InpOverride!K23) -> 264.4 | L23: =IF(InpOverride!L23="",F_Inputs!L23,InpOverride!L23) -> 274.7 | M23: =IF(InpOverride!M23="",F_Inputs!M23,InpOverride!M23) -> 284.2 | N23: =IF(InpOverride!N23="",F_Inputs!N23,InpOverride!N23) -> 291.7 | O23: =IF(InpOverride!O23="",F_Inputs!O23,InpOverride!O23) -> 0
A24: =F_Inputs!A24 -> YKY | B24: BB3805SR | C24: Retail Price Index for September | D24: nr | E24: Price Review 2019 | F24: =IF(InpOverride!F24="",F_Inputs!F24,InpOverride!F24) -> 237.9 | G24: =IF(InpOverride!G24="",F_Inputs!G24,InpOverride!G24) -> 244.2 | H24: =IF(InpOverride!H24="",F_Inputs!H24,InpOverride!H24) -> 251.9 | I24: =IF(InpOverride!I24="",F_Inputs!I24,InpOverride!I24) -> 257.6 | J24: =IF(InpOverride!J24="",F_Inputs!J24,InpOverride!J24) -> 259.6 | K24: =IF(InpOverride!K24="",F_Inputs!K24,InpOverride!K24) -> 264.9 | L24: =IF(InpOverride!L24="",F_Inputs!L24,InpOverride!L24) -> 275.1 | M24: =IF(InpOverride!M24="",F_Inputs!M24,InpOverride!M24) -> 284.1 | N24: =IF(InpOverride!N24="",F_Inputs!N24,InpOverride!N24) -> 291 | O24: =IF(InpOverride!O24="",F_Inputs!O24,InpOverride!O24) -> 0
A25: =F_Inputs!A25 -> YKY | B25: BB3805OR | C25: Retail Price Index for October | D25: nr | E25: Price Review 2019 | F25: =IF(InpOverride!F25="",F_Inputs!F25,InpOverride!F25) -> 238 | G25: =IF(InpOverride!G25="",F_Inputs!G25,InpOverride!G25) -> 245.6 | H25: =IF(InpOverride!H25="",F_Inputs!H25,InpOverride!H25) -> 251.9 | I25: =IF(InpOverride!I25="",F_Inputs!I25,InpOverride!I25) -> 257.7 | J25: =IF(InpOverride!J25="",F_Inputs!J25,InpOverride!J25) -> 259.5 | K25: =IF(InpOverride!K25="",F_Inputs!K25,InpOverride!K25) -> 264.8 | L25: =IF(InpOverride!L25="",F_Inputs!L25,InpOverride!L25) -> 275.3 | M25: =IF(InpOverride!M25="",F_Inputs!M25,InpOverride!M25) -> 284.5 | N25: =IF(InpOverride!N25="",F_Inputs!N25,InpOverride!N25) -> 290.4 | O25: =IF(InpOverride!O25="",F_Inputs!O25,InpOverride!O25) -> 0
A26: =F_Inputs!A26 -> YKY | B26: BB3805NR | C26: Retail Price Index for November | D26: nr | E26: Price Review 2019 | F26: =IF(InpOverride!F26="",F_Inputs!F26,InpOverride!F26) -> 238.5 | G26: =IF(InpOverride!G26="",F_Inputs!G26,InpOverride!G26) -> 245.6 | H26: =IF(InpOverride!H26="",F_Inputs!H26,InpOverride!H26) -> 252.1 | I26: =IF(InpOverride!I26="",F_Inputs!I26,InpOverride!I26) -> 257.1 | J26: =IF(InpOverride!J26="",F_Inputs!J26,InpOverride!J26) -> 259.8 | K26: =IF(InpOverride!K26="",F_Inputs!K26,InpOverride!K26) -> 265.5 | L26: =IF(InpOverride!L26="",F_Inputs!L26,InpOverride!L26) -> 275.8 | M26: =IF(InpOverride!M26="",F_Inputs!M26,InpOverride!M26) -> 284.6 | N26: =IF(InpOverride!N26="",F_Inputs!N26,InpOverride!N26) -> 291 | O26: =IF(InpOverride!O26="",F_Inputs!O26,InpOverride!O26) -> 0
A27: =F_Inputs!A27 -> YKY | B27: BB3805DR | C27: Retail Price Index for December | D27: nr | E27: Price Review 2019 | F27: =IF(InpOverride!F27="",F_Inputs!F27,InpOverride!F27) -> 239.4 | G27: =IF(InpOverride!G27="",F_Inputs!G27,InpOverride!G27) -> 246.8 | H27: =IF(InpOverride!H27="",F_Inputs!H27,InpOverride!H27) -> 253.4 | I27: =IF(InpOverride!I27="",F_Inputs!I27,InpOverride!I27) -> 257.5 | J27: =IF(InpOverride!J27="",F_Inputs!J27,InpOverride!J27) -> 260.6 | K27: =IF(InpOverride!K27="",F_Inputs!K27,InpOverride!K27) -> 267.1 | L27: =IF(InpOverride!L27="",F_Inputs!L27,InpOverride!L27) -> 278.1 | M27: =IF(InpOverride!M27="",F_Inputs!M27,InpOverride!M27) -> 285.6 | N27: =IF(InpOverride!N27="",F_Inputs!N27,InpOverride!N27) -> 291.9 | O27: =IF(InpOverride!O27="",F_Inputs!O27,InpOverride!O27) -> 0
A28: =F_Inputs!A28 -> YKY | B28: BB3805JY | C28: Retail Price Index for January | D28: nr | E28: Price Review 2019 | F28: =IF(InpOverride!F28="",F_Inputs!F28,InpOverride!F28) -> 238 | G28: =IF(InpOverride!G28="",F_Inputs!G28,InpOverride!G28) -> 245.8 | H28: =IF(InpOverride!H28="",F_Inputs!H28,InpOverride!H28) -> 252.6 | I28: =IF(InpOverride!I28="",F_Inputs!I28,InpOverride!I28) -> 255.4 | J28: =IF(InpOverride!J28="",F_Inputs!J28,InpOverride!J28) -> 258.8 | K28: =IF(InpOverride!K28="",F_Inputs!K28,InpOverride!K28) -> 265.5 | L28: =IF(InpOverride!L28="",F_Inputs!L28,InpOverride!L28) -> 276 | M28: =IF(InpOverride!M28="",F_Inputs!M28,InpOverride!M28) -> 283 | N28: =IF(InpOverride!N28="",F_Inputs!N28,InpOverride!N28) -> 290.6 | O28: =IF(InpOverride!O28="",F_Inputs!O28,InpOverride!O28) -> 0
A29: =F_Inputs!A29 -> YKY | B29: BB3805FY | C29: Retail Price Index for February | D29: nr | E29: Price Review 2019 | F29: =IF(InpOverride!F29="",F_Inputs!F29,InpOverride!F29) -> 239.9 | G29: =IF(InpOverride!G29="",F_Inputs!G29,InpOverride!G29) -> 247.6 | H29: =IF(InpOverride!H29="",F_Inputs!H29,InpOverride!H29) -> 254.2 | I29: =IF(InpOverride!I29="",F_Inputs!I29,InpOverride!I29) -> 256.7 | J29: =IF(InpOverride!J29="",F_Inputs!J29,InpOverride!J29) -> 260 | K29: =IF(InpOverride!K29="",F_Inputs!K29,InpOverride!K29) -> 268.4 | L29: =IF(InpOverride!L29="",F_Inputs!L29,InpOverride!L29) -> 278.1 | M29: =IF(InpOverride!M29="",F_Inputs!M29,InpOverride!M29) -> 285 | N29: =IF(InpOverride!N29="",F_Inputs!N29,InpOverride!N29) -> 292 | O29: =IF(InpOverride!O29="",F_Inputs!O29,InpOverride!O29) -> 0
A30: =F_Inputs!A30 -> YKY | B30: BB3805MH | C30: Retail Price Index for March | D30: nr | E30: Price Review 2019 | F30: =IF(InpOverride!F30="",F_Inputs!F30,InpOverride!F30) -> 240.8 | G30: =IF(InpOverride!G30="",F_Inputs!G30,InpOverride!G30) -> 248.7 | H30: =IF(InpOverride!H30="",F_Inputs!H30,InpOverride!H30) -> 254.8 | I30: =IF(InpOverride!I30="",F_Inputs!I30,InpOverride!I30) -> 257.1 | J30: =IF(InpOverride!J30="",F_Inputs!J30,InpOverride!J30) -> 261.1 | K30: =IF(InpOverride!K30="",F_Inputs!K30,InpOverride!K30) -> 269.3 | L30: =IF(InpOverride!L30="",F_Inputs!L30,InpOverride!L30) -> 278.3 | M30: =IF(InpOverride!M30="",F_Inputs!M30,InpOverride!M30) -> 285.1 | N30: =IF(InpOverride!N30="",F_Inputs!N30,InpOverride!N30) -> 292.6 | O30: =IF(InpOverride!O30="",F_Inputs!O30,InpOverride!O30) -> 0
A31: =F_Inputs!A31 -> YKY | B31: APP8001W | C31: RCV year end balances - Water RCV closing balance at 31 March 2020 - Wholesale water closing RCV at 31 March 2020 in 2012-13 prices (from PR14 FD) | D31: £m | E31: Price Review 2019 | N31: =IF(InpOverride!N31="",F_Inputs!N31,InpOverride!N31) -> 2417.753651
A32: =F_Inputs!A32 -> YKY | B32: C00572_L021 | C32: Water - Total Adjustment RCV carry forward to PR19 | D32: £m | E32: Price Review 2019 | P32: =IF(InpOverride!P32="",F_Inputs!P32,InpOverride!P32) -> 3.029
A33: =F_Inputs!A33 -> YKY | B33: APP25001 | C33: Further 2010-15 reconciliation adjustments - Water ~ CIS RCV inflation correction | D33: £m | E33: Price Review 2019 | P33: =IF(InpOverride!P33="",F_Inputs!P33,InpOverride!P33) -> -40.01
A34: =F_Inputs!A34 -> YKY | B34: C_APP27029_PD002 | C34: Net performance payment / (penalty) applied to RCV for end of period ODI adjustments ~ Water resources | D34: £m | E34: Price Review 2019 | J34: =IF(InpOverride!J34="",F_Inputs!J34,InpOverride!J34) -> 0 | K34: =IF(InpOverride!K34="",F_Inputs!K34,InpOverride!K34) -> 0 | L34: =IF(InpOverride!L34="",F_Inputs!L34,InpOverride!L34) -> 0 | M34: =IF(InpOverride!M34="",F_Inputs!M34,InpOverride!M34) -> 0 | N34: =IF(InpOverride!N34="",F_Inputs!N34,InpOverride!N34) -> 0 | R34: =IF(InpOverride!R34="",F_Inputs!R34,InpOverride!R34) -> 0
A35: =F_Inputs!A35 -> YKY | B35: C_APP27030_PD002 | C35: Net performance payment / (penalty) applied to RCV for end of period ODI adjustments ~ Water network plus | D35: £m | E35: Price Review 2019 | J35: =IF(InpOverride!J35="",F_Inputs!J35,InpOverride!J35) -> 0 | K35: =IF(InpOverride!K35="",F_Inputs!K35,InpOverride!K35) -> 0 | L35: =IF(InpOverride!L35="",F_Inputs!L35,InpOverride!L35) -> -6.5736 | M35: =IF(InpOverride!M35="",F_Inputs!M35,InpOverride!M35) -> -6.1248 | N35: =IF(InpOverride!N35="",F_Inputs!N35,InpOverride!N35) -> -4.5936 | R35: =IF(InpOverride!R35="",F_Inputs!R35,InpOverride!R35) -> -17.292
A36: =F_Inputs!A36 -> YKY | B36: APP27029 | C36: End of period ODI RCV adjustments allocated to PR19 price controls (2012-13 prices) - Net performance payment / (penalty) applied to RCV for end of period ODI adjustments ~ Water resources | D36: £m | E36: Price Review 2019 | J36: =IF(InpOverride!J36="",F_Inputs!J36,InpOverride!J36) -> 0 | K36: =IF(InpOverride!K36="",F_Inputs!K36,InpOverride!K36) -> 0 | L36: =IF(InpOverride!L36="",F_Inputs!L36,InpOverride!L36) -> 0 | M36: =IF(InpOverride!M36="",F_Inputs!M36,InpOverride!M36) -> 0 | N36: =IF(InpOverride!N36="",F_Inputs!N36,InpOverride!N36) -> 0 | R36: =IF(InpOverride!R36="",F_Inputs!R36,InpOverride!R36) -> 0
A37: =F_Inputs!A37 -> YKY | B37: APP27030 | C37: End of period ODI RCV adjustments allocated to PR19 price controls (2012-13 prices) - Net performance payment / (penalty) applied to RCV for end of period ODI adjustments ~ Water network plus | D37: £m | E37: Price Review 2019 | J37: =IF(InpOverride!J37="",F_Inputs!J37,InpOverride!J37) -> 0 | K37: =IF(InpOverride!K37="",F_Inputs!K37,InpOverride!K37) -> 0 | L37: =IF(InpOverride!L37="",F_Inputs!L37,InpOverride!L37) -> 0 | M37: =IF(InpOverride!M37="",F_Inputs!M37,InpOverride!M37) -> 0 | N37: =IF(InpOverride!N37="",F_Inputs!N37,InpOverride!N37) -> -1.7500116 | R37: =IF(InpOverride!R37="",F_Inputs!R37,InpOverride!R37) -> 0
A38: =F_Inputs!A38 -> YKY | B38: C_WS15025_PR19PD006 | C38: Water: RCV adjustment from totex menu model | D38: £m | E38: Price Review 2019 | N38: =IF(InpOverride!N38="",F_Inputs!N38,InpOverride!N38) -> 45.03133763
A39: =F_Inputs!A39 -> YKY | B39: APP8009W | C39: RCV year end balances - Water RCV closing balance at 31 March 2020 - Water ~ Other adjustment to wholesale RCV | D39: £m | E39: Price Review 2019 | N39: =IF(InpOverride!N39="",F_Inputs!N39,InpOverride!N39) -> 0
A40: =F_Inputs!A40 -> YKY | B40: C_A7010W_PR19PD003 | C40: NPV effect of 50% of proceeds from disposals of interest in land | D40: £m | E40: Price Review 2019 | N40: =IF(InpOverride!N40="",F_Inputs!N40,InpOverride!N40) -> -1.457962234
A41: =F_Inputs!A41 -> YKY | B41: WS12019WR | C41: RCV ~ 31 March 2020 ( % of total wholesale water) - Water resources | D41: % | E41: Price Review 2019 | L41: =IF(InpOverride!L41="",F_Inputs!L41,InpOverride!L41) -> 0.2006833407
A42: =F_Inputs!A42 -> YKY | B42: APP33021WR | C42: Water resources - RCV adjustment | D42: £m | E42: Price Review 2019 | N42: =IF(InpOverride!N42="",F_Inputs!N42,InpOverride!N42) -> 0.3694056592
A43: =F_Inputs!A43 -> YKY | B43: APP33021WNP | C43: Water network plus - RCV adjustment | D43: £m | E43: Price Review 2019 | N43: =IF(InpOverride!N43="",F_Inputs!N43,InpOverride!N43) -> 6.935106056
A44: =F_Inputs!A44 -> YKY | B44: APP8001WW | C44: RCV year end balances - Wastewater RCV closing balance at 31 March 2020 - Wholesale wastewater closing RCV at 31 March 2020 in 2012-13 prices (PR14 FD) | D44: £m | E44: Price Review 2019 | N44: =IF(InpOverride!N44="",F_Inputs!N44,InpOverride!N44) -> 3394.326214
A45: =F_Inputs!A45 -> YKY | B45: C00579_L021 | C45: Wastewater - Total Adjustment RCV carry forward to PR19 | D45: £m | E45: Price Review 2019 | P45: =IF(InpOverride!P45="",F_Inputs!P45,InpOverride!P45) -> 3.198
A46: =F_Inputs!A46 -> YKY | B46: APP25002 | C46: Further 2010-15 reconciliation adjustments - Wastewater ~ CIS RCV inflation correction | D46: £m | E46: Price Review 2019 | P46: =IF(InpOverride!P46="",F_Inputs!P46,InpOverride!P46) -> -61.175
A47: =F_Inputs!A47 -> YKY | B47: C_APP27031_PD002 | C47: Net performance payment / (penalty) applied to RCV for end of period ODI adjustments ~ Wastewater network plus | D47: £m | E47: Price Review 2019 | J47: =IF(InpOverride!J47="",F_Inputs!J47,InpOverride!J47) -> 0 | K47: =IF(InpOverride!K47="",F_Inputs!K47,InpOverride!K47) -> 0 | L47: =IF(InpOverride!L47="",F_Inputs!L47,InpOverride!L47) -> 0 | M47: =IF(InpOverride!M47="",F_Inputs!M47,InpOverride!M47) -> 0 | N47: =IF(InpOverride!N47="",F_Inputs!N47,InpOverride!N47) -> 0 | R47: =IF(InpOverride!R47="",F_Inputs!R47,InpOverride!R47) -> 0
A48: =F_Inputs!A48 -> YKY | B48: APP27031 | C48: End of period ODI RCV adjustments allocated to PR19 price controls (2012-13 prices) - Net performance payment / (penalty) applied to RCV for end of period ODI adjustments ~ Wastewater network plus | D48: £m | E48: Price Review 2019 | J48: =IF(InpOverride!J48="",F_Inputs!J48,InpOverride!J48) -> 0 | K48: =IF(InpOverride!K48="",F_Inputs!K48,InpOverride!K48) -> 0 | L48: =IF(InpOverride!L48="",F_Inputs!L48,InpOverride!L48) -> 0 | M48: =IF(InpOverride!M48="",F_Inputs!M48,InpOverride!M48) -> 0 | N48: =IF(InpOverride!N48="",F_Inputs!N48,InpOverride!N48) -> 0 | R48: =IF(InpOverride!R48="",F_Inputs!R48,InpOverride!R48) -> 0
A49: =F_Inputs!A49 -> YKY | B49: C_WWS15020_PR19PD006 | C49: Wastewater: RCV adjustment from totex menu model | D49: £m | E49: Price Review 2019 | N49: =IF(InpOverride!N49="",F_Inputs!N49,InpOverride!N49) -> -46.71956112
A50: =F_Inputs!A50 -> YKY | B50: APP8009WW | C50: RCV year end balances - Wastewater RCV closing balance at 31 March 2020 - Wastewater ~ Other adjustment to wholesale RCV | D50: £m | E50: Price Review 2019 | N50: =IF(InpOverride!N50="",F_Inputs!N50,InpOverride!N50) -> 0
A51: =F_Inputs!A51 -> YKY | B51: C_A7010WW_PR19PD003 | C51: NPV effect of 50% of proceeds from disposals of interest in land | D51: £m | E51: Price Review 2019 | N51: =IF(InpOverride!N51="",F_Inputs!N51,InpOverride!N51) -> 0.2205602909
A52: =F_Inputs!A52 -> YKY | B52: WWS12016BIO | C52: RCV split 31 March 2020 - RCV (prior to midnight adjustments) - Bioresources | D52: £m | E52: Price Review 2019 | L52: =IF(InpOverride!L52="",F_Inputs!L52,InpOverride!L52) -> 290.68
A53: =F_Inputs!A53 -> YKY | B53: APP33021BIO | C53: Bioresources - RCV adjustment | D53: £m | E53: Price Review 2019 | N53: =IF(InpOverride!N53="",F_Inputs!N53,InpOverride!N53) -> 1.802034585
A54: =F_Inputs!A54 -> YKY | B54: APP33021WWNP | C54: Wastewater network plus - RCV adjustment | D54: £m | E54: Price Review 2019 | N54: =IF(InpOverride!N54="",F_Inputs!N54,InpOverride!N54) -> 6.186740662
A55: =F_Inputs!A55 -> YKY | B55: RCV1011DMMY | C55: RCV year end balances - Dummy RCV - Dummy RCV (prior to midnight adjustments) 31 March 2020 | D55: £m | E55: Price Review 2019 | N55: =IF(InpOverride!N55="",F_Inputs!N55,InpOverride!N55) -> 0
A56: =F_Inputs!A56 -> YKY | B56: C_APP27032_PD002 | C56: Net performance payment / (penalty) applied to RCV for end of period ODI adjustments ~ Thames Tideway | D56: £m | E56: Price Review 2019 | J56: =IF(InpOverride!J56="",F_Inputs!J56,InpOverride!J56) -> 0 | K56: =IF(InpOverride!K56="",F_Inputs!K56,InpOverride!K56) -> 0 | L56: =IF(InpOverride!L56="",F_Inputs!L56,InpOverride!L56) -> 0 | M56: =IF(InpOverride!M56="",F_Inputs!M56,InpOverride!M56) -> 0 | N56: =IF(InpOverride!N56="",F_Inputs!N56,InpOverride!N56) -> 0 | R56: =IF(InpOverride!R56="",F_Inputs!R56,InpOverride!R56) -> 0
A57: =F_Inputs!A57 -> YKY | B57: APP27032 | C57: End of period ODI RCV adjustments allocated to PR19 price controls (2012-13 prices) - Net performance payment / (penalty) applied to RCV for end of period ODI adjustments ~ Thames Tideway | D57: £m | E57: Price Review 2019 | J57: =IF(InpOverride!J57="",F_Inputs!J57,InpOverride!J57) -> 0 | K57: =IF(InpOverride!K57="",F_Inputs!K57,InpOverride!K57) -> 0 | L57: =IF(InpOverride!L57="",F_Inputs!L57,InpOverride!L57) -> 0 | M57: =IF(InpOverride!M57="",F_Inputs!M57,InpOverride!M57) -> 0 | N57: =IF(InpOverride!N57="",F_Inputs!N57,InpOverride!N57) -> 0 | R57: =IF(InpOverride!R57="",F_Inputs!R57,InpOverride!R57) -> 0
A58: =F_Inputs!A58 -> YKY | B58: C_WWS15020_DMMY_PR19PD006 | C58: Wastewater: RCV adjustment from totex menu model (TTT) | D58: £m | E58: Price Review 2019 | N58: =IF(InpOverride!N58="",F_Inputs!N58,InpOverride!N58) -> 0
A59: =F_Inputs!A59 -> YKY | B59: APP8009DMMY | C59: RCV year end balances - Dummy RCV - Dummy ~ Other adjustment to wholesale RCV | D59: £m | E59: Price Review 2019 | N59: =IF(InpOverride!N59="",F_Inputs!N59,InpOverride!N59) -> 0
A60: =F_Inputs!A60 -> YKY | B60: APP33021DMMY | C60: Dummy - RCV adjustment | D60: £m | E60: Price Review 2019 | N60: =IF(InpOverride!N60="",F_Inputs!N60,InpOverride!N60) -> 0

Sheet F_Outputs
C1: PR19PD010SVEBYDD
A2: Acronym | B2: Reference | C2: Item description | D2: Unit | E2: Model | F2: 2019-20 | G2: 2020-21 | H2: PR19 application
B4: C001_PR19PD010 | C4: 1st model column start date | D4: nr | E4: Price Review 2019 | H4: =Inputs!$F$13 -> 41000
B5: C002_PR19PD010 | C5: First modelling column financial year# | D5: nr | E5: Price Review 2019 | H5: =Inputs!$F$16 -> 2013
B6: C003_PR19PD010 | C6: Financial year end month number | D6: nr | E6: Price Review 2019 | H6: =Inputs!$F$17 -> 3
B7: C004_PR19PD010 | C7: Pre - forecast period | D7: Text | E7: Price Review 2019 | H7: =Inputs!$F$20 -> Pre-Fcst
B8: C005_PR19PD010 | C8: Forecast period | D8: Text | E8: Price Review 2019 | H8: =Inputs!$F$21 -> Forecast
B9: C006_PR19PD010 | C9: Post - forecast period | D9: Text | E9: Price Review 2019 | H9: =Inputs!$F$22 -> Post-Fcst
B10: C007_PR19PD010 | C10: Forecast start date | D10: nr | E10: Price Review 2019 | H10: =Inputs!$F$26 -> 43922
B11: C008_PR19PD010 | C11: Forecast duration | D11: nr | E11: Price Review 2019 | H11: =Inputs!$F$27 -> 5
B12: C009_PR19PD010 | C12: Forecast duration (text) | D12: Text | E12: Price Review 2019 | H12: =Inputs!$F$28 -> 2020-25
B13: C010_PR19PD010 | C13: Inflation: Year reference for FYA base price 1 | D13: nr | E13: Price Review 2019 | H13: =Inputs!$F$69 -> 2013
B14: C011_PR19PD010 | C14: Inflation: Year reference for FYA base price 2 | D14: nr | E14: Price Review 2019 | H14: =Inputs!$F$70 -> 2018
B15: C012_PR19PD010 | C15: Inflation: Year reference for FYE base price | D15: nr | E15: Price Review 2019 | H15: =Inputs!$F$71 -> 2018
B16: C013_PR19PD010 | C16: Inflation: Year reference for FYE end price | D16: nr | E16: Price Review 2019 | H16: =Inputs!$F$72 -> 2020
B17: C014_PR19PD010 | C17: Deflation: Year reference for FYE base price | D17: nr | E17: Price Review 2019 | H17: =Inputs!$F$76 -> 2020
B18: C015_PR19PD010 | C18: Deflation: Year reference for FYA end price | D18: nr | E18: Price Review 2019 | H18: =Inputs!$F$77 -> 2018
B19: C016_PR19PD010 | C19: Deflation: Year reference for FYE base price - IFRS 16 | D19: nr | E19: Price Review 2019 | H19: =Inputs!$F$78 -> 2018
B20: C017_PR19PD010 | C20: Months per model period | D20: nr | E20: Price Review 2019 | H20: =Inputs!$F$133 -> 12
B21: C018_PR19PD010 | C21: Months in a year | D21: nr | E21: Price Review 2019 | H21: =Inputs!$F$135 -> 12
B22: C019_PR19PD010 | C22: Days in a year | D22: nr | E22: Price Review 2019 | H22: =Inputs!$F$137 -> 365
B23: C020_PR19PD010 | C23: % of RCV to index by RPI - water services | D23: % | E23: Price Review 2019 | H23: =Inputs!$F94 -> 0.5
B24: C021_PR19PD010 | C24: % of RCV to index by RPI - wastewater services | D24: % | E24: Price Review 2019 | H24: =Inputs!$F112 -> 0.5
B25: C022_PR19PD010 | C25: % of RCV to index by RPI - dummy | D25: % | E25: Price Review 2019 | H25: =Inputs!$F126 -> 0.5
B26: C_APP8002W_PR19PD010 | C26: Wholesale water closing RCV at 31 March 2020 before midnight adjustments at 2017-18 FYE CPIH deflated price base | D26: £m | E26: Price Review 2019 | F26: =Summary_Output!$F10 -> 2798.14144
B27: C_APP8003W_PR19PD010 | C27: Water ~ Total Adjustment RCV carry forward to PR19 at 2017-18 FYE CPIH deflated price base | D27: £m | E27: Price Review 2019 | F27: =Summary_Output!$F11 -> 3.505555836
B28: C_APP8004W_PR19PD010 | C28: Water ~ CIS RCV inflation correction at 2017-18 FYE CPIH deflated price base | D28: £m | E28: Price Review 2019 | F28: =Summary_Output!$F12 -> -46.30481644
B29: C_APP8005W_PR19PD010 | C29: Water ~ NPV effect of 50% of proceeds from disposals of interest in land at 2017-18 FYE CPIH deflated price base | D29: £m | E29: Price Review 2019 | F29: =Summary_Output!$F13 -> -1.501777461
B30: C_APP8006W_PR19PD010 | C30: Water ~ ODI RCV adjustment allocated to Water resources at 2017-18 FYE CPIH deflated price base | D30: £m | E30: Price Review 2019 | F30: =Summary_Output!$F14 -> 0
B31: C_APP8007W_PR19PD010 | C31: Water ~ ODI RCV adjustment allocated to Water network plus at 2017-18 FYE CPIH deflated price base | D31: £m | E31: Price Review 2019 | F31: =Summary_Output!$F15 -> -16.72159578
B32: C_APP8008W_PR19PD010 | C32: Water ~ Totex menu RCV adjustment at 2017-18 FYE CPIH deflated price base | D32: £m | E32: Price Review 2019 | F32: =Summary_Output!$F16 -> 52.11616654
B33: C_APP8009W_PR19PD010 | C33: Water ~ Other adjustment to wholesale RCV at 2017-18 FYE CPIH deflated price base | D33: £m | E33: Price Review 2019 | F33: =Summary_Output!$F17 -> 0
B34: C_APP8010W_PR19PD010 | C34: Total wholesale water RCV at 31 March 2020 post midnight adjustments before allocation to price control units at 2017-18 FYE CPIH deflated price base | D34: £m | E34: Price Review 2019 | F34: =Summary_Output!$F18 -> 2789.234973
B35: C_APP8022WR_PR19PD010 | C35: Water resources IFRS16 RCV adjustment at 2017-18 FYA CPIH deflated price base | D35: £m | E35: Price Review 2019 | F35: =Summary_Output!$F21 -> 0.3663009177
B36: C_APP8014WR_PR19PD010 | C36: Water resources 2020 RCV RPI inflated ~ 1 April (opening balance) at 2017-18 CPIH deflated price base | D36: £m | E36: Price Review 2019 | G36: =Summary_Output!$F22 -> 279.3711412
B37: C_APP8016WR_PR19PD010 | C37: Water resources 2020 RCV CPIH inflated ~ 1 April (opening balance) at 2017-18 CPIH deflated price base | D37: £m | E37: Price Review 2019 | G37: =Summary_Output!$F23 -> 279.3711412
B38: C_APP8022WN_PR19PD010 | C38: Water network plus IFRS16 RCV adjustment at 2017-18 FYA CPIH deflated price base | D38: £m | E38: Price Review 2019 | F38: =Summary_Output!$F25 -> 6.876818612
B39: C_APP8014WN_PR19PD010 | C39: Water network plus RCV RPI inflated ~ 1 April (opening balance) at 2017-18 CPIH deflated price base | D39: £m | E39: Price Review 2019 | G39: =Summary_Output!$F26 -> 1107.146572
B40: C_APP8016WN_PR19PD010 | C40: Water network plus RCV CPIH inflated ~ 1 April (opening balance) at 2017-18 CPIH deflated price base | D40: £m | E40: Price Review 2019 | G40: =Summary_Output!$F27 -> 1107.146572
B41: C_A7011W_PR19PD010 | C41: Water ~ NPV effect of 50% of proceeds from disposals of interest in land at 2017-18 FYA CPIH deflated price base | D41: £m | E41: Price Review 2019 | F41: =Summary_Output!$F32 -> -1.489155481
B42: C_APP25003_PR19PD010 | C42: Water ~ Total adjustment RCV carry forward to PR19 at 2017-18 FYA CPIH deflated price base | D42: £m | E42: Price Review 2019 | F42: =Summary_Output!$F34 -> 3.476092712
B43: C_APP25007_PR19PD010 | C43: Water ~ CIS RCV inflation correction at 2017-18 FYA CPIH deflated price base | D43: £m | E43: Price Review 2019 | F43: =Summary_Output!$F35 -> -45.91563863
B44: C_APP27048_PR19PD010 | C44: ODI end of period RCV adjustment ~ Water resources at 2017-18 FYA CPIH deflated price base | D44: £m | E44: Price Review 2019 | F44: =Summary_Output!$F37 -> 0
B45: C_APP27049_PR19PD010 | C45: ODI end of period RCV adjustment ~ Water network plus at 2017-18 FYA CPIH deflated price base | D45: £m | E45: Price Review 2019 | F45: =Summary_Output!$F38 -> -16.58105588
B46: C_WS15027_PR19PD010 | C46: Water: Totex menu RCV adjustment at 2017-18 FYA CPIH deflated price base | D46: £m | E46: Price Review 2019 | F46: =Summary_Output!$F40 -> 51.67814611
B47: C030_PR19PD010 | C47: Water ~ Other adjustment to wholesale RCV at 2017-18 FYA CPIH deflated price base | D47: £m | E47: Price Review 2019 | F47: =Summary_Output!$F42 -> 0
B48: C_APP8002WW_PR19PD010 | C48: Wholesale wastewater closing RCV at 31 March 2020 before midnight adjustments at 2017-18 FYE CPIH deflated price base | D48: £m | E48: Price Review 2019 | F48: =Summary_Output!$F48 -> 3928.359217
B49: C_APP8003WW_PR19PD010 | C49: Wastewater ~ Total adjustment RCV carry forward to PR19 at 2017-18 FYE CPIH deflated price base | D49: £m | E49: Price Review 2019 | F49: =Summary_Output!$F49 -> 3.701144788
B50: C_APP8004WW_PR19PD010 | C50: Wastewater ~ CIS RCV inflation correction at 2017-18 FYE CPIH deflated price base | D50: £m | E50: Price Review 2019 | F50: =Summary_Output!$F50 -> -70.79972872
B51: C_APP8005WW_PR19PD010 | C51: Wastewater ~ NPV effect of 50% of proceeds from disposals of interest in land at 2017-18 FYE CPIH deflated price base | D51: £m | E51: Price Review 2019 | F51: =Summary_Output!$F51 -> 0.2271886514
B52: C_APP8006WW_PR19PD010 | C52: Wastewater ~ ODI RCV adjustment allocated to Wastewater network plus at 2017-18 FYE CPIH deflated price base | D52: £m | E52: Price Review 2019 | F52: =Summary_Output!$F52 -> 0
B53: C_APP8008WW_PR19PD010 | C53: Wastewater ~ Totex menu RCV adjustment at 2017-18 FYE CPIH deflated price base | D53: £m | E53: Price Review 2019 | F53: =Summary_Output!$F53 -> -54.07000005
B54: C_APP8009WW_PR19PD010 | C54: Wastewater ~ Other adjustment to wholesale RCV at 2017-18 FYE CPIH deflated price base | D54: £m | E54: Price Review 2019 | F54: =Summary_Output!$F54 -> 0
B55: C_APP8010WW_PR19PD010 | C55: Total wholesale wastewater RCV at 31 March 2020 post midnight adjustments before allocation to price control units at 2017-18 FYE CPIH deflated price base | D55: £m | E55: Price Review 2019 | F55: =Summary_Output!$F55 -> 3807.417822
B56: C_RCV1011BIO_FYA_PR19PD010 | C56: Bioresources RCV (prior to midnight adjustments) 31 March 2020 at 2017-18 FYA CPIH deflated price base | D56: £m | E56: Price Review 2019 | F56: =Summary_Output!$F58 -> 293.2807917
B57: C_APP8022WWN_PR19PD010 | C57: Wastewater network plus IFRS16 RCV adjustment at 2017-18 FYA CPIH deflated price base | D57: £m | E57: Price Review 2019 | F57: =Summary_Output!$F59 -> 6.134743
B58: C_APP8014WWN_PR19PD010 | C58: Wastewater network plus RCV RPI inflated ~ 1 April (opening balance) at 2017-18 CPIH deflated price base | D58: £m | E58: Price Review 2019 | G58: =Summary_Output!$F60 -> 1744.135796
B59: C_APP8016WWN_PR19PD010 | C59: Wastewater network plus RCV CPIH inflated ~ 1 April (opening balance) at 2017-18 CPIH deflated price base | D59: £m | E59: Price Review 2019 | G59: =Summary_Output!$F61 -> 1744.135796
B60: C_APP8022BIO_PR19PD010 | C60: Bioresources IFRS16 RCV adjustment at 2017-18 FYA CPIH deflated price base | D60: £m | E60: Price Review 2019 | F60: =Summary_Output!$F63 -> 1.786889036
B61: C_APP8014BIO_PR19PD010 | C61: Bioresources 2020 RCV RPI inflated ~ 1 April (opening balance) at 2017-18 CPIH deflated price base | D61: £m | E61: Price Review 2019 | G61: =Summary_Output!$F64 -> 147.5338404
B62: C_APP8016BIO_PR19PD010 | C62: Bioresources 2020 RCV CPIH inflated ~ 1 April (opening balance) at 2017-18 CPIH deflated price base | D62: £m | E62: Price Review 2019 | G62: =Summary_Output!$F65 -> 147.5338404
B63: C_A7011WW_PR19PD010 | C63: Wastewater ~ NPV effect of 50% of proceeds from disposals of interest in land at 2017-18 FYA CPIH deflated price base | D63: £m | E63: Price Review 2019 | F63: =Summary_Output!$F70 -> 0.2252792003
B64: C_APP25005_PR19PD010 | C64: Wastewater ~ Total Adjustment RCV carry forward to PR19 at 2017-18 FYA CPIH deflated price base | D64: £m | E64: Price Review 2019 | F64: =Summary_Output!$F72 -> 3.670037799
B65: C_APP25008_PR19PD010 | C65: Wastewater ~ CIS RCV inflation correction at 2017-18 FYA CPIH deflated price base | D65: £m | E65: Price Review 2019 | F65: =Summary_Output!$F73 -> -70.20467866
B66: C_APP27050_PR19PD010 | C66: ODI end of period RCV adjustment ~ Wastewater network plus at 2017-18 FYA CPIH deflated price base | D66: £m | E66: Price Review 2019 | F66: =Summary_Output!$F75 -> 0
B67: C_WWS15022_PR19PD010 | C67: Wastewater: Totex menu RCV adjustment at 2017-18 FYA CPIH deflated price base | D67: £m | E67: Price Review 2019 | F67: =Summary_Output!$F77 -> -53.61555825
B68: C040_PR19PD010 | C68: Wastewater ~ Other adjustment to wholesale RCV at 2017-18 FYA CPIH deflated price base | D68: £m | E68: Price Review 2019 | F68: =Summary_Output!$F79 -> 0
B69: C_APP8002DMMY_PR19PD010 | C69: Dummy RCV (prior to midnight adjustments) 31 March 2020 at 2017-18 FYE CPIH deflated price base | D69: £m | E69: Price Review 2019 | F69: =Summary_Output!$F85 -> 0
B70: C_APP8006DMMY_PR19PD010 | C70: ODI end of period RCV adjustment allocated to dummy at 2017-18 FYE CPIH deflated price base | D70: £m | E70: Price Review 2019 | F70: =Summary_Output!$F86 -> 0
B71: C_APP8008DMMY_PR19PD010 | C71: Dummy ~ Totex menu RCV adjustment at 2017-18 FYE CPIH deflated price base | D71: £m | E71: Price Review 2019 | F71: =Summary_Output!$F87 -> 0
B72: C_APP8005DMMY_PR19PD010 | C72: Dummy: NPV effect of 100% of proceeds from disposals of interest in land at 2017-18 FYE CPIH deflated price base | D72: £m | E72: Price Review 2019 | F72: =Summary_Output!$F88 -> 0
B73: C_APP8009DMMY_PR19PD010 | C73: Dummy ~ Other adjustment to wholesale RCV at 2017-18 FYE CPIH deflated price base | D73: £m | E73: Price Review 2019 | F73: =Summary_Output!$F89 -> 0
B74: C_APP8010DMMY_PR19PD010 | C74: Total dummy RCV at 31 March 2020 post midnight adjustments at 2017-18 FYE CPIH deflated price base | D74: £m | E74: Price Review 2019 | F74: =Summary_Output!$F90 -> 0
B75: C_APP8022DMMY_PR19PD010 | C75: Dummy IFRS16 RCV adjustment at 2017-18 FYA CPIH deflated price base | D75: £m | E75: Price Review 2019 | F75: =Summary_Output!$F93 -> 0
B76: C_APP8014DMMY_PR19PD010 | C76: Dummy 2020 RCV RPI inflated ~ 1 April (opening balance) at 2017-18 CPIH deflated price base | D76: £m | E76: Price Review 2019 | G76: =Summary_Output!$F94 -> 0
B77: C_APP8016DMMY_PR19PD010 | C77: Dummy 2020 RCV CPIH inflated ~ 1 April (opening balance) at 2017-18 CPIH deflated price base | D77: £m | E77: Price Review 2019 | G77: =Summary_Output!$F95 -> 0
B78: C_A7011DMMY_PR19PD010 | C78: Dummy: NPV effect of 100% of proceeds from disposals of interest in land at 2017-18 FYA CPIH deflated price base | D78: £m | E78: Price Review 2019 | F78: =Summary_Output!$F99 -> 0
B79: C_APP27051_PR19PD010 | C79: ODI end of period RCV adjustment ~ Thames Tideway at 2017-18 FYA CPIH deflated price base | D79: £m | E79: Price Review 2019 | F79: =Summary_Output!$F101 -> 0
B80: C_WWS15022DMMY_PR19PD010 | C80: Dummy ~ Totex menu RCV adjustment at 2017-18 FYA CPIH deflated price base | D80: £m | E80: Price Review 2019 | F80: =Summary_Output!$F103 -> 0
B81: C050_PR19PD010 | C81: Dummy other RCV adjustment at 2017-18 FYA CPIH deflated price base | D81: £m | E81: Price Review 2019 | F81: =Summary_Output!$F105 -> 0
B82: C_WS12019WR_PR19PD010 | C82: RCV ~ 31 March 2020 ( % of total wholesale water) - Water resources | D82: % | E82: Price Review 2019 | F82: =Inputs!$F$96 -> 0.2006833407
B83: C_WWS12016BIO_PR19PD010 | C83: RCV split 31 March 2020 - RCV (prior to midnight adjustments) - Bioresources | D83: £m | E83: Price Review 2019 | F83: =Inputs!$F$114 -> 290.68
B84: C_RCV_WR_PR19PD010 | C84: Water resources 2020 RCV~ 1 April (opening balance) for FM at 2017-18 CPIH deflated price base | D84: £m | E84: Price Review 2019 | F84: =SUM(G36:G37) -> 558.7422824
B85: C_RCV_WN_PR19PD010 | C85: Water network 2020 RCV~ 1 April (opening balance) for FM at 2017-18 CPIH deflated price base | D85: £m | E85: Price Review 2019 | F85: =SUM(G39:G40) -> 2214.293144
B86: C_RCV_WWN_PR19PD010 | C86: Wastewater network 2020 RCV~ 1 April (opening balance) for FM at 2017-18 CPIH deflated price base | D86: £m | E86: Price Review 2019 | F86: =SUM(G58:G59) -> 3488.271592
B87: C_RCV_BR_PR19PD010 | C87: Bioresources 2020 RCV~ 1 April (opening balance) for FM at 2017-18 CPIH deflated price base | D87: £m | E87: Price Review 2019 | F87: =SUM(G61:G62) -> 295.0676808
B88: C_RCV_DMMY_PR19PD010 | C88: Dummy Control 2020 RCV~ 1 April (opening balance) for FM at 2017-18 CPIH deflated price base | D88: £m | E88: Price Review 2019 | F88: =SUM(G76:G77) -> 0
B89: C_RCV_W_PR19PD010 | C89: =Calc!$E$77 -> Wholesale water closing RCV at 31 March 2020 (from PR14 FD) at 2017-18 FYA CPIH deflated prices | D89: £m | E89: Price Review 2019 | F89: =Calc!$F$77 -> 2774.623918
B90: C_RCV_WW_PR19PD010 | C90: =Calc!$E$264 -> Wholesale wastewater closing RCV at 31 March 2020 (from PR14 FD) at 2017-18 FYA CPIH deflated prices | D90: £m | E90: Price Review 2019 | F90: =Calc!$F$264 -> 3895.34256
B91: PR19QA_D0010_OUT_1 | C91: Date & Time for Model PR19D010 PR14 RCV adjustments | D91: Text | E91: Price Review 2019 | F91: =CONCATENATE("[…]", TEXT(NOW(),"dd/mm/yyy hh:mm:ss")) -> […]17/09/2020 12:49:30 | G91: =CONCATENATE("[…]", TEXT(NOW(),"dd/mm/yyy hh:mm:ss")) -> […]17/09/2020 12:49:30 | H91: =CONCATENATE("[…]", TEXT(NOW(),"dd/mm/yyy hh:mm:ss")) -> […]17/09/2020 12:49:30
B92: PR19QA_D0010_OUT_2 | C92: Name & Path of Model PR19D010 PR14 RCV adjustments | D92: Text | E92: Price Review 2019 | F92: =MID(CELL("filename",F1),SEARCH("[",CELL("filename",F1))+1,SEARCH(".",CELL("filename",F1))-1-SEARCH("[",CELL("filename",F1))) -> RCV adjustment feeder model_YKY_BYRun1 | G92: =MID(CELL("filename",F1),SEARCH("[",CELL("filename",F1))+1,SEARCH(".",CELL("filename",F1))-1-SEARCH("[",CELL("filename",F1))) -> RCV adjustment feeder model_YKY_BYRun1 | H92: =MID(CELL("filename",F1),SEARCH("[",CELL("filename",F1))+1,SEARCH(".",CELL("filename",F1))-1-SEARCH("[",CELL("filename",F1))) -> RCV adjustment feeder model_YKY_BYRun1

Sheet Cover
A1: =RIGHT(CELL("filename", $A$1), LEN(CELL("filename", $A$1)) - SEARCH("]", CELL("filename", $A$1))) -> Cover
C3: Model name: | D3: PR19 RCV adjustments feeder model
C4: Version number: | D4: 01v
C5: Filename: | D5: ="PR19 RCV adjustments feeder model " & D4 & ".xlsm" -> PR19 RCV adjustments feeder model 01v.xlsm
C6: Date: | D6: 2020-08-24
C7: Author: | D7: Ofwat and F1F9 UK Ltd
C8: Author contact information: | D8: PR19@ofwat.gsi.gov.uk
C11: Summary of model: | D11: The model is designed to take the RCV adjustment outputs from the PR09 and PR14 reconciliations and convert them for use in the PR19 financial model in
D12: line with Delivering Water 2020: PR19 methodology, chapter 12 (accounting for past delivery).
C14: Known limitations: | D14: The model has been subject to internal Ofwat quality assurance.
C16: Feedback: | D16: We would welcome feedback on the PR19 RCV adjustments feeder model. Please send any feedback to the following email address
D17: PR19@ofwat.gsi.gov.uk
A20: End of sheet

Sheet Change Log
A1: Change log
B3: # | C3: Issue | D3: Change | E3: Sheet | F3: Row
A5: 2017-12-01 | B5: 1 | C5: Company noted that the Ofwat feeder model incorrectly deflates prices from 2020 year end prices to 2017-18 financial year average prices by referencing the RPI March index value in the numerator. | D5: Corrected calculation of the deflation factor to reference CPIH March 2020 index value. | E5: Indexation | F5: 102
A6: 2017-12-01 | B6: 2 | C6: Companies noted differences in item labels between the Ofwat feeder model and the business plan tables | D6: Item labels have been aligned with the business plan tables | E6: Calc Summary_Output
A7: 2017-12-01 | B7: 3 | C7: Some business plan tables require RCV items in 2017-18 FYE (financial year end) CPIH deflated price base. | D7: Add 2017-18 FYE CPIH deflation factor | E7: Indexation | F7: 105
A8: 2017-12-01 | B8: 4 | C8: Some business plan tables require RCV items in 2017-18 FYE (financial year end) CPIH deflated price base. | D8: Add the 2017-18 FYE CPIH deflated items to the Calc and Summary_Output sheet | E8: Calc Summary_Output
A9: 2018-06-01 | B9: 5 | C9: Line descriptions for the CIS RCV inflation correction items are not consistent with business plan tables. | D9: Item labels have been aligned with the business plan tables App8 and App25. | E9: Inputs Calc Summary_Output
A10: 2018-06-01 | B10: 6 | C10: IN 18/09 Guidance for reporting operating leases in PR19 business plans. The RCV adjustment calculated for each wholesale control in business plan table App33 flows to business plan table App8. The RCV adjustments feeder model has been updated to reflect the revisions to table App8. | D10: Include the new IFRS16 related RCV adjustments in the calculation of the opening balances for the 2020 RCV RPI inflated and 2020 RCV CPIH inflated RCV. | E10: Inputs Indexation Calc Summary_Output
A11: 2018-06-01 | B11: 7 | C11: In response to a query a new business plan table has been created. The Ofwat feeder model has been updated to reflect the additional table Dmmy10. | D11: Include the Dmmy10 RCV adjustment in the calculation of the opening balances for the dummy price control 2020 RCV RPI inflated and 2020 RCV CPIH inflated RCV. | E11: Inputs Calc Summary_Output
A12: 2018-06-01 | B12: 8 | C12: Change email address | D12: Changed from water2020 mailbox to PR19 mailbox | E12: Cover
A13: 2018-07-01 | B13: 9 | C13: In response to a query the Ofwat feeder model has been updated to reflect additional block for the dummy control in table App9 and an additional line for the dummy control in table App8. | D13: Include the additional RCV adjustments for the dummy control in the calculation of the opening balances for the dummy price control 2020 RCV RPI inflated and 2020 RCV CPIH inflated RCV. | E13: Inputs Calc Summary_Output
A14: 2019-01-01 | B14: 11 | C14: There is no facility to override F_Inputs values. | D14: Include InpOverride and InpActive sheets with Inputs sheet linked to Inp Active. | E14: InpOverride InpActive Inputs
A15: 2019-03-01 | B15: 10 | C15: More items required to be outputted from the model. | D15: Add two items that express the 'Closing RCV at 31 March 2020 (from PR14 FD)' in 2017-18 FYA CPIH deflated price base. | E15: Calc Summary_Output F_Outputs
A16: 2019-07-04 | B16: 12 | C16: Mismatched item references for 'Dummy ~ Other adjustment to wholesale RCV at 2017-18 FYE CPIH deflated price base' and 'Dummy: NPV effect of 100% of proceeds from disposals of interest in land at 2017-18 FYE CPIH deflated price base.' | D16: Manual change of item references in column A of the Calc sheet: 'Dummy ~ Other adjustment to wholesale RCV at 2017-18 FYE CPIH deflated price base' changed from C_APP8009DMMY to C_APP8005DMMY. 'Dummy: NPV effect of 100% of proceeds from disposals of interest in land at 2017-18 FYE CPIH deflated price base' changed from C_APP8005DMMY to C_APP8009DMMY. | E16: Calc Summary_Output F_Outputs | F16: 378, 379 in Calc sheet Rows 73, 74 in F_Output sheet
A17: 2019-07-04 | B17: 13 | C17: Incorrect item references for 'Dummy: RCV adjustment from totex menu model' and 'Dummy ~ Other adjustment to wholesale RCV' | D17: Formulae changed in column A to pick up correct rows from InpActive sheet | E17: Inputs | F17: 123, 124
A18: 2019-08-01 | B18: 14 | C18: The model treats the 'Other RCV adjustment' as inputs in 2017/18 year end RPI prices, however the source values from business plan table App8 are in 2017/18 year end CPIH prices. | D18: The indexation treatment of the 'Other RCV adjustment' items has been aligned with the 2017-18 FYE CPIH deflated price base of the input values sourced from business plan table App8. | E18: Calcs | F18: Rows 39, 229, 397
A19: 2020-08-01 | B19: 15 | C19: The model inputs on ODI payments require aligning with the blind year data table template. | D19: ODI payment values on Inputs sheet are calculated as the sum of the annual _PD002 values for 2015-19 plus 2019-20 value from blind year table instead of the 'PR19 application' _PD002 value. | E19: Inputs | F19: Rows 88, 89, 107 and 122

Sheet Map & Key
A1: =RIGHT(CELL("filename", $A$1), LEN(CELL("filename", $A$1)) - SEARCH("]", CELL("filename", $A$1))) -> Map & Key
A3: GENERIC MODEL DESIGN
F5: ABOVE BONNET - USER INTERFACE
H8: Inputs | P8: Output Summary
F13: BELOW BONNET - CALCULATION ENGINE
H19: Input Transition | L19: Calculations | P19: Detailed Outputs
F25: Note: FAST strictly applicable below the bonnet
A28: MODEL MAP
F30: MODEL MAP
H32: INPUTS | L32: CALCULATIONS | V32: DOCUMENTATION
H36: =Inputs!$A$1 -> Inputs | L36: =Time!$A$1 -> Time | P36: =Summary_Output!$A$1 -> Summary_Output | V36: =$A$1 -> Map & Key
H37: All the hardcoded inputs used in the model for calculation. | L37: The model timeline and flag calculations are done in this sheet. | P37: A summary of links of major output of this model. | V37: Sheet references and model flow; Sheet tabs colours, colour coding, abbreviations, range names are mentioned in this sheet.
L39: =Indexation!$A$1 -> Indexation
L40: All the indexation related calculations are done in this sheet.
L42: =Calc!$A$1 -> Calc
L43: All the price regulations related calculations are done in this sheet.
A48: SHEET TABS
H50: Light Yellow | J50: Input sheets
H52: No colour (default Excel tab colour) | J52: Calculation and documentation sheets
H54: Pale Blue | J54: Key output sheets
H56: Turquoise | J56: Quality control sheets
H58: Yellow | J58: To be completed, temporary, restructured, or deleted
A61: COLOUR
B63: Font colour only
H64: Blue font | J64: Imported from another sheet
H66: Red font | J66: Exported to another sheet (except from Input sheets)
H68: Black font | J68: Within sheet link or calculation
B70: Font + shade combinations
H71: Black font + Light Yellow shade | J71: Inputs
H73: Black font + Light Grey shade on entire row | J73: Within-worksheet counter-flow
H75: Blue font + Light Grey shade on entire row | J75: Between-worksheet counter-flow
H77: Empty Cell with Light Grey shade | J77: Empty cells being deliberately referenced
B79: Other
H80: Black font + Pale Blue shade on entire row | J80: Section separator
H82: Light Turquoise shade | J82: Stored/dead/hard coded outputs
H84: Tan shade | J84: Pre-model time line actuals
H86: Yellow shade | J86: Work in progress / temporary
H88: Lime shade | J88: Values or logic to be reviewed
B90: Error checks & alerts
H91: Green shade | J91: OK
H93: Red shade | J93: Error
H95: Gold shade | J95: Alert
A98: ABBREVIATIONS
H100: BR | I100: Bio resources
H101: CPIH | I101: Consumer price index housing
H102: RCV | I102: Regulatory capital value
H103: RPI | I103: Retail price index
H104: WR | I104: Water resources
H105: WN | I105: Water network
H106: WWN | I106: Wastewater network
A109: NAMES
H111: NO NAME RANGES PRESENT IN THE MODEL
A114: LIST OF FUNCTIONS USED
H116: SUMPRODUCT | J116: Multiplies corresponding components in the given arrays, and returns the sum of those products.
H117: MATCH | J117: The MATCH function searches for a specified item in a range of cells, and then returns the relative position of that item in the range.
H118: INDEX | J118: Returns a value or the reference to a value from within a table or range, selected by the row and column number indexes
A121: End of sheet

Sheet Inputs
A1: =RIGHT(CELL("FILENAME", $A$1), LEN(CELL("FILENAME", $A$1)) - SEARCH("]", CELL("FILENAME", $A$1))) -> Inputs
E2: =Time!E$25 -> Model period ending | J2: =Time!J$25 -> 2013-03-31 | K2: =Time!K$25 -> 2014-03-31 | L2: =Time!L$25 -> 2015-03-31 | M2: =Time!M$25 -> 2016-03-31 | N2: =Time!N$25 -> 2017-03-31 | O2: =Time!O$25 -> 2018-03-31 | P2: =Time!P$25 -> 2019-03-31 | Q2: =Time!Q$25 -> 2020-03-31 | R2: =Time!R$25 -> 2021-03-31 | S2: =Time!S$25 -> 2022-03-31 | T2: =Time!T$25 -> 2023-03-31 | U2: =Time!U$25 -> 2024-03-31
E3: =Time!E$80 -> Timeline label | J3: =Time!J$80 -> Pre-Fcst | K3: =Time!K$80 -> Pre-Fcst | L3: =Time!L$80 -> Pre-Fcst | M3: =Time!M$80 -> Pre-Fcst | N3: =Time!N$80 -> Pre-Fcst | O3: =Time!O$80 -> Pre-Fcst | P3: =Time!P$80 -> Pre-Fcst | Q3: =Time!Q$80 -> Pre-Fcst | R3: =Time!R$80 -> Forecast | S3: =Time!S$80 -> Forecast | T3: =Time!T$80 -> Forecast | U3: =Time!U$80 -> Forecast
E4: =Time!E$103 -> Financial year ending | J4: =Time!J$103 -> 2013 | K4: =Time!K$103 -> 2014 | L4: =Time!L$103 -> 2015 | M4: =Time!M$103 -> 2016 | N4: =Time!N$103 -> 2017 | O4: =Time!O$103 -> 2018 | P4: =Time!P$103 -> 2019 | Q4: =Time!Q$103 -> 2020 | R4: =Time!R$103 -> 2021 | S4: =Time!S$103 -> 2022 | T4: =Time!T$103 -> 2023 | U4: =Time!U$103 -> 2024
A5: =IF(COUNTIF(A6:A140,"< 0") + COUNTIF(A6:A140,">0") <> 0, 1, 0) -> 0 | D5: Input references | E5: =Time!E$10 -> Model column counter | F5: Constant | G5: Unit | H5: Total | J5: =Time!J$10 -> 1 | K5: =Time!K$10 -> 2 | L5: =Time!L$10 -> 3 | M5: =Time!M$10 -> 4 | N5: =Time!N$10 -> 5 | O5: =Time!O$10 -> 6 | P5: =Time!P$10 -> 7 | Q5: =Time!Q$10 -> 8 | R5: =Time!R$10 -> 9 | S5: =Time!S$10 -> 10 | T5: =Time!T$10 -> 11 | U5: =Time!U$10 -> 12
E6: [Used in formula range - Do not delete]
A8: A: TIME
B10: Timeline setup
C12: Timeline start dates
A13: C001 | E13: 1st model column start date | F13: 2012-04-01 | G13: date | H13: Date should be the first date of the financial year
C15: Financial year inputs
A16: C002 | E16: First modelling column financial year# | F16: 2013 | G16: year # | H16: Financial model start year
A17: C003 | E17: Financial year end month number | F17: 3 | G17: month # | H17: Month of financial year end for financial model
C19: Timeline labels
A20: C004 | E20: Pre - forecast period | F20: Pre-Fcst | G20: label
A21: C005 | E21: Forecast period | F21: Forecast | G21: label
A22: C006 | E22: Post - forecast period | F22: Post-Fcst | G22: label
B24: Project dates
A26: C007 | E26: Forecast start date | F26: 2020-04-01 | G26: date
A27: C008 | E27: Forecast duration | F27: 5 | G27: years
A28: C009 | E28: Forecast duration (text) | F28: =YEAR(F26) & "-" & TEXT(DATE(YEAR(F26) + F27, 1, 1), "yy") -> 2020-25 | G28: years #
A31: B: INDEXATION
B33: CPIH INDEXATION
A35: =InpActive!B7 -> BB3905AL | E35: Consumer Price Index for April | G35: index | J35: =InpActive!G7 -> 95.9 | K35: =InpActive!H7 -> 98 | L35: =InpActive!I7 -> 99.6 | M35: =InpActive!J7 -> 99.9 | N35: =InpActive!K7 -> 100.6 | O35: =InpActive!L7 -> 103.2 | P35: =InpActive!M7 -> 105.5 | Q35: =InpActive!N7 -> 107.6
A36: =InpActive!B8 -> BB3905MY | E36: Consumer Price Index for May | G36: index | J36: =InpActive!G8 -> 95.9 | K36: =InpActive!H8 -> 98.2 | L36: =InpActive!I8 -> 99.6 | M36: =InpActive!J8 -> 100.1 | N36: =InpActive!K8 -> 100.8 | O36: =InpActive!L8 -> 103.5 | P36: =InpActive!M8 -> 105.9 | Q36: =InpActive!N8 -> 107.9
A37: =InpActive!B9 -> BB3905JN | E37: Consumer Price Index for June | G37: index | J37: =InpActive!G9 -> 95.6 | K37: =InpActive!H9 -> 98 | L37: =InpActive!I9 -> 99.8 | M37: =InpActive!J9 -> 100.1 | N37: =InpActive!K9 -> 101 | O37: =InpActive!L9 -> 103.5 | P37: =InpActive!M9 -> 105.9 | Q37: =InpActive!N9 -> 107.9
A38: =InpActive!B10 -> BB3905JL | E38: Consumer Price Index for July | G38: index | J38: =InpActive!G10 -> 95.7 | K38: =InpActive!H10 -> 98 | L38: =InpActive!I10 -> 99.6 | M38: =InpActive!J10 -> 100 | N38: =InpActive!K10 -> 100.9 | O38: =InpActive!L10 -> 103.5 | P38: =InpActive!M10 -> 105.9 | Q38: =InpActive!N10 -> 108
A39: =InpActive!B11 -> BB3905AT | E39: Consumer Price Index for August | G39: index | J39: =InpActive!G11 -> 96.1 | K39: =InpActive!H11 -> 98.4 | L39: =InpActive!I11 -> 99.9 | M39: =InpActive!J11 -> 100.3 | N39: =InpActive!K11 -> 101.2 | O39: =InpActive!L11 -> 104 | P39: =InpActive!M11 -> 106.5 | Q39: =InpActive!N11 -> 108.3
A40: =InpActive!B12 -> BB3905SR | E40: Consumer Price Index for September | G40: index | J40: =InpActive!G12 -> 96.4 | K40: =InpActive!H12 -> 98.7 | L40: =InpActive!I12 -> 100 | M40: =InpActive!J12 -> 100.2 | N40: =InpActive!K12 -> 101.5 | O40: =InpActive!L12 -> 104.3 | P40: =InpActive!M12 -> 106.6 | Q40: =InpActive!N12 -> 108.4
A41: =InpActive!B13 -> BB3905OR | E41: Consumer Price Index for October | G41: index | J41: =InpActive!G13 -> 96.8 | K41: =InpActive!H13 -> 98.8 | L41: =InpActive!I13 -> 100.1 | M41: =InpActive!J13 -> 100.3 | N41: =InpActive!K13 -> 101.6 | O41: =InpActive!L13 -> 104.4 | P41: =InpActive!M13 -> 106.7 | Q41: =InpActive!N13 -> 108.3
A42: =InpActive!B14 -> BB3905NR | E42: Consumer Price Index for November | G42: index | J42: =InpActive!G14 -> 97 | K42: =InpActive!H14 -> 98.8 | L42: =InpActive!I14 -> 99.9 | M42: =InpActive!J14 -> 100.3 | N42: =InpActive!K14 -> 101.8 | O42: =InpActive!L14 -> 104.7 | P42: =InpActive!M14 -> 106.9 | Q42: =InpActive!N14 -> 108.5
A43: =InpActive!B15 -> BB3905DR | E43: Consumer Price Index for December | G43: index | J43: =InpActive!G15 -> 97.3 | K43: =InpActive!H15 -> 99.2 | L43: =InpActive!I15 -> 99.9 | M43: =InpActive!J15 -> 100.4 | N43: =InpActive!K15 -> 102.2 | O43: =InpActive!L15 -> 105 | P43: =InpActive!M15 -> 107.1 | Q43: =InpActive!N15 -> 108.5
A44: =InpActive!B16 -> BB3905JY | E44: Consumer Price Index for January | G44: index | J44: =InpActive!G16 -> 97 | K44: =InpActive!H16 -> 98.7 | L44: =InpActive!I16 -> 99.2 | M44: =InpActive!J16 -> 99.9 | N44: =InpActive!K16 -> 101.8 | O44: =InpActive!L16 -> 104.5 | P44: =InpActive!M16 -> 106.4 | Q44: =InpActive!N16 -> 108.3
A45: =InpActive!B17 -> BB3905FY | E45: Consumer Price Index for February | G45: index | J45: =InpActive!G17 -> 97.5 | K45: =InpActive!H17 -> 99.1 | L45: =InpActive!I17 -> 99.5 | M45: =InpActive!J17 -> 100.1 | N45: =InpActive!K17 -> 102.4 | O45: =InpActive!L17 -> 104.9 | P45: =InpActive!M17 -> 106.8 | Q45: =InpActive!N17 -> 108.6
A46: =InpActive!B18 -> BB3905MH | E46: Consumer Price Index for March | G46: index | J46: =InpActive!G18 -> 97.8 | K46: =InpActive!H18 -> 99.3 | L46: =InpActive!I18 -> 99.6 | M46: =InpActive!J18 -> 100.4 | N46: =InpActive!K18 -> 102.7 | O46: =InpActive!L18 -> 105.1 | P46: =InpActive!M18 -> 107 | Q46: =InpActive!N18 -> 108.6
E48: CPIH: Assumed percentage increase for unpopulated monthly values | G48: %
B50: RPI INDEXATION
A52: =InpActive!B19 -> BB3805AL | E52: Retail Price Index for April | G52: index | J52: =InpActive!G19 -> 242.5 | K52: =InpActive!H19 -> 249.5 | L52: =InpActive!I19 -> 255.7 | M52: =InpActive!J19 -> 258 | N52: =InpActive!K19 -> 261.4 | O52: =InpActive!L19 -> 270.6 | P52: =InpActive!M19 -> 279.7 | Q52: =InpActive!N19 -> 288.2
A53: =InpActive!B20 -> BB3805MY | E53: Retail Price Index for May | G53: index | J53: =InpActive!G20 -> 242.4 | K53: =InpActive!H20 -> 250 | L53: =InpActive!I20 -> 255.9 | M53: =InpActive!J20 -> 258.5 | N53: =InpActive!K20 -> 262.1 | O53: =InpActive!L20 -> 271.7 | P53: =InpActive!M20 -> 280.7 | Q53: =InpActive!N20 -> 289.2
A54: =InpActive!B21 -> BB3805JN | E54: Retail Price Index for June | G54: index | J54: =InpActive!G21 -> 241.8 | K54: =InpActive!H21 -> 249.7 | L54: =InpActive!I21 -> 256.3 | M54: =InpActive!J21 -> 258.9 | N54: =InpActive!K21 -> 263.1 | O54: =InpActive!L21 -> 272.3 | P54: =InpActive!M21 -> 281.5 | Q54: =InpActive!N21 -> 289.6
A55: =InpActive!B22 -> BB3805JL | E55: Retail Price Index for July | G55: index | J55: =InpActive!G22 -> 242.1 | K55: =InpActive!H22 -> 249.7 | L55: =InpActive!I22 -> 256 | M55: =InpActive!J22 -> 258.6 | N55: =InpActive!K22 -> 263.4 | O55: =InpActive!L22 -> 272.9 | P55: =InpActive!M22 -> 281.7 | Q55: =InpActive!N22 -> 289.5
A56: =InpActive!B23 -> BB3805AT | E56: Retail Price Index for August | G56: index | J56: =InpActive!G23 -> 243 | K56: =InpActive!H23 -> 251 | L56: =InpActive!I23 -> 257 | M56: =InpActive!J23 -> 259.8 | N56: =InpActive!K23 -> 264.4 | O56: =InpActive!L23 -> 274.7 | P56: =InpActive!M23 -> 284.2 | Q56: =InpActive!N23 -> 291.7
A57: =InpActive!B24 -> BB3805SR | E57: Retail Price Index for September | G57: index | J57: =InpActive!G24 -> 244.2 | K57: =InpActive!H24 -> 251.9 | L57: =InpActive!I24 -> 257.6 | M57: =InpActive!J24 -> 259.6 | N57: =InpActive!K24 -> 264.9 | O57: =InpActive!L24 -> 275.1 | P57: =InpActive!M24 -> 284.1 | Q57: =InpActive!N24 -> 291
A58: =InpActive!B25 -> BB3805OR | E58: Retail Price Index for October | G58: index | J58: =InpActive!G25 -> 245.6 | K58: =InpActive!H25 -> 251.9 | L58: =InpActive!I25 -> 257.7 | M58: =InpActive!J25 -> 259.5 | N58: =InpActive!K25 -> 264.8 | O58: =InpActive!L25 -> 275.3 | P58: =InpActive!M25 -> 284.5 | Q58: =InpActive!N25 -> 290.4
A59: =InpActive!B26 -> BB3805NR | E59: Retail Price Index for November | G59: index | J59: =InpActive!G26 -> 245.6 | K59: =InpActive!H26 -> 252.1 | L59: =InpActive!I26 -> 257.1 | M59: =InpActive!J26 -> 259.8 | N59: =InpActive!K26 -> 265.5 | O59: =InpActive!L26 -> 275.8 | P59: =InpActive!M26 -> 284.6 | Q59: =InpActive!N26 -> 291
A60: =InpActive!B27 -> BB3805DR | E60: Retail Price Index for December | G60: index | J60: =InpActive!G27 -> 246.8 | K60: =InpActive!H27 -> 253.4 | L60: =InpActive!I27 -> 257.5 | M60: =InpActive!J27 -> 260.6 | N60: =InpActive!K27 -> 267.1 | O60: =InpActive!L27 -> 278.1 | P60: =InpActive!M27 -> 285.6 | Q60: =InpActive!N27 -> 291.9
A61: =InpActive!B28 -> BB3805JY | E61: Retail Price Index for January | G61: index | J61: =InpActive!G28 -> 245.8 | K61: =InpActive!H28 -> 252.6 | L61: =InpActive!I28 -> 255.4 | M61: =InpActive!J28 -> 258.8 | N61: =InpActive!K28 -> 265.5 | O61: =InpActive!L28 -> 276 | P61: =InpActive!M28 -> 283 | Q61: =InpActive!N28 -> 290.6
A62: =InpActive!B29 -> BB3805FY | E62: Retail Price Index for February | G62: index | J62: =InpActive!G29 -> 247.6 | K62: =InpActive!H29 -> 254.2 | L62: =InpActive!I29 -> 256.7 | M62: =InpActive!J29 -> 260 | N62: =InpActive!K29 -> 268.4 | O62: =InpActive!L29 -> 278.1 | P62: =InpActive!M29 -> 285 | Q62: =InpActive!N29 -> 292
A63: =InpActive!B30 -> BB3805MH | E63: Retail Price Index for March | G63: index | J63: =InpActive!G30 -> 248.7 | K63: =InpActive!H30 -> 254.8 | L63: =InpActive!I30 -> 257.1 | M63: =InpActive!J30 -> 261.1 | N63: =InpActive!K30 -> 269.3 | O63: =InpActive!L30 -> 278.3 | P63: =InpActive!M30 -> 285.1 | Q63: =InpActive!N30 -> 292.6
E65: RPI: Assumed percentage increase for unpopulated monthly values | G65: %
B67: Inflation
A69: C010 | E69: Year reference for FYA base price 1 | F69: 2013 | G69: year #
A70: C011 | E70: Year reference for FYA base price 2 | F70: 2018 | G70: year #
A71: C012 | E71: Year reference for FYE base price | F71: 2018 | G71: year #
A72: C013 | E72: Year reference for FYE end price | F72: 2020 | G72: year #
B74: Deflation
A76: C014 | E76: Year reference for FYE base price | F76: 2020 | G76: year #
A77: C015 | E77: Year reference for FYA end price | F77: 2018 | G77: year #
A78: C016 | E78: Year reference for FYE base price - IFRS 16 and Other | F78: 2018 | G78: year #
A81: C: RCV INPUTS
B83: Water services
A85: =InpActive!B31 -> APP8001W | E85: Wholesale water closing RCV at 31 March 2020 (from PR14 FD) | F85: =InpActive!N31 -> 2417.753651 | G85: £m | H85: 2012/13 FYA
A86: =InpActive!B32 -> C00572_L021 | E86: Water ~ Total Adjustment RCV carry forward to PR19 | F86: =InpActive!P32 -> 3.029 | G86: £m | H86: 2012/13 FYA
A87: =InpActive!B33 -> APP25001 | E87: Water ~ CIS RCV inflation correction | F87: =InpActive!P33 -> -40.01 | G87: £m | H87: 2012/13 FYA
A88: =InpActive!B36 -> APP27029 | E88: Net performance payment / (penalty) applied to RCV for end of period ODI adjustments ~ Water resources | F88: =SUM(InpActive!J34:M34) + InpActive!N36 -> 0 | G88: £m | H88: 2012/13 FYA
A89: =InpActive!B37 -> APP27030 | E89: Net performance payment / (penalty) applied to RCV for end of period ODI adjustments ~ Water network plus | F89: =SUM(InpActive!J35:M35) + InpActive!N37 -> -14.4484116 | G89: £m | H89: 2012/13 FYA
A90: =InpActive!B38 -> C_WS15025_PR19PD006 | E90: Water: RCV adjustment from totex menu model | F90: =InpActive!N38 -> 45.03133763 | G90: £m | H90: 2012/13 FYA
A91: =InpActive!B39 -> APP8009W | E91: Water ~ Other adjustment to wholesale RCV | F91: =InpActive!N39 -> 0 | G91: £m | H91: 2017/18 FYE
A92: =InpActive!B40 -> C_A7010W_PR19PD003 | E92: Water ~ NPV effect of 50% of proceeds from disposals of interest in land | F92: =InpActive!N40 -> -1.457962234 | G92: £m | H92: 2017/18 FYA
E94: % of RCV to index by RPI - water services | F94: 0.5 | G94: %
A96: =InpActive!B41 -> WS12019WR | E96: Water resources % of total wholesale water RCV ~ 31 March 2020 | F96: =InpActive!L41 -> 0.2006833407 | G96: %
E97: Water network plus % of total wholesale water RCV ~ 31 March 2020 | F97: =1-F96 -> 0.7993166593 | G97: %
A99: =InpActive!B42 -> APP33021WR | E99: Water resources IFRS16 RCV adjustment | F99: =InpActive!N42 -> 0.3694056592 | G99: £m | H99: 2017/18 FYE
A100: =InpActive!B43 -> APP33021WNP | E100: Water network plus IFRS16 RCV adjustment | F100: =InpActive!N43 -> 6.935106056 | G100: £m | H100: 2017/18 FYE
B102: Wastewater services
A104: =InpActive!B44 -> APP8001WW | E104: Wholesale wastewater closing RCV at 31 March 2020 (from PR14 FD) | F104: =InpActive!N44 -> 3394.326214 | G104: £m | H104: 2012/13 FYA
A105: =InpActive!B45 -> C00579_L021 | E105: Wastewater ~ Total Adjustment RCV carry forward to PR19 | F105: =InpActive!P45 -> 3.198 | G105: £m | H105: 2012/13 FYA
A106: =InpActive!B46 -> APP25002 | E106: Wastewater ~ CIS RCV inflation correction | F106: =InpActive!P46 -> -61.175 | G106: £m | H106: 2012/13 FYA
A107: =InpActive!B48 -> APP27031 | E107: Net performance payment / (penalty) applied to RCV for end of period ODI adjustments ~ Wastewater network plus | F107: =SUM(InpActive!J47:M47) + InpActive!N48 -> 0 | G107: £m | H107: 2012/13 FYA
A108: =InpActive!B49 -> C_WWS15020_PR19PD006 | E108: Wastewater: RCV adjustment from totex menu model | F108: =InpActive!N49 -> -46.71956112 | G108: £m | H108: 2012/13 FYA
A109: =InpActive!B50 -> APP8009WW | E109: Wastewater ~ Other adjustment to wholesale RCV | F109: =InpActive!N50 -> 0 | G109: £m | H109: 2017/18 FYE
A110: =InpActive!B51 -> C_A7010WW_PR19PD003 | E110: Wastewater ~ NPV effect of 50% of proceeds from disposals of interest in land | F110: =InpActive!N51 -> 0.2205602909 | G110: £m | H110: 2017/18 FYA
E112: % of RCV to index by RPI - wastewater services | F112: 0.5 | G112: %
A114: =InpActive!B52 -> WWS12016BIO | E114: Bioresources RCV (prior to midnight adjustments) 31 March 2020 | F114: =InpActive!L52 -> 290.68 | G114: £m | H114: 2017/18 FYE
A116: =InpActive!B53 -> APP33021BIO | E116: Bioresources IFRS16 RCV adjustment | F116: =InpActive!N53 -> 1.802034585 | G116: £m | H116: 2017/18 FYE
A117: =InpActive!B54 -> APP33021WWNP | E117: Wastewater network plus IFRS16 RCV adjustment | F117: =InpActive!N54 -> 6.186740662 | G117: £m | H117: 2017/18 FYE
B119: Dummy RCV
A121: =InpActive!B55 -> RCV1011DMMY | E121: Dummy RCV (prior to midnight adjustments) 31 March 2020 | F121: =InpActive!N55 -> 0 | G121: £m | H121: 2017/18 FYE
A122: =InpActive!B57 -> APP27032 | E122: Net performance payment / (penalty) applied to RCV for end of period ODI adjustments ~ Thames Tideway | F122: =SUM(InpActive!J56:M56) + InpActive!N57 -> 0 | G122: £m | H122: 2012/13 FYA
A123: =InpActive!B58 -> C_WWS15020_DMMY_PR19PD006 | E123: Dummy: RCV adjustment from totex menu model | F123: =InpActive!N58 -> 0 | G123: £m | H123: 2012/13 FYA
A124: =InpActive!B59 -> APP8009DMMY | E124: Dummy ~ Other adjustment to wholesale RCV | F124: =InpActive!N59 -> 0 | G124: £m | H124: 2017/18 FYE
A125: Manual input if required | E125: Dummy: NPV effect of 100% of proceeds from disposals of interest in land | G125: £m | H125: 2017/18 FYA
E126: % of RCV to index by RPI - dummy | F126: 0.5 | G126: %
A128: =InpActive!B60 -> APP33021DMMY | E128: Dummy IFRS16 RCV adjustment | F128: =InpActive!N60 -> 0 | G128: £m | H128: 2017/18 FYE
A131: D: NON CHANGEABLE MODEL TECHNICAL INPUTS
A133: C017 | E133: Months per model period | F133: 12 | G133: months
A135: C018 | E135: Months in a year | F135: 12 | G135: months
A137: C019 | E137: Days in a year | F137: 365 | G137: days
E140: [Used in formula range - Do not delete]

Sheet Time
A1: =RIGHT(CELL("FILENAME", $A$1), LEN(CELL("FILENAME", $A$1)) - SEARCH("]", CELL("FILENAME", $A$1))) -> Time
E2: =Time!E$25 -> Model period ending | J2: =Time!J$25 -> 2013-03-31 | K2: =Time!K$25 -> 2014-03-31 | L2: =Time!L$25 -> 2015-03-31 | M2: =Time!M$25 -> 2016-03-31 | N2: =Time!N$25 -> 2017-03-31 | O2: =Time!O$25 -> 2018-03-31 | P2: =Time!P$25 -> 2019-03-31 | Q2: =Time!Q$25 -> 2020-03-31 | R2: =Time!R$25 -> 2021-03-31 | S2: =Time!S$25 -> 2022-03-31 | T2: =Time!T$25 -> 2023-03-31 | U2: =Time!U$25 -> 2024-03-31
E3: =Time!E$80 -> Timeline label | J3: =Time!J$80 -> Pre-Fcst | K3: =Time!K$80 -> Pre-Fcst | L3: =Time!L$80 -> Pre-Fcst | M3: =Time!M$80 -> Pre-Fcst | N3: =Time!N$80 -> Pre-Fcst | O3: =Time!O$80 -> Pre-Fcst | P3: =Time!P$80 -> Pre-Fcst | Q3: =Time!Q$80 -> Pre-Fcst | R3: =Time!R$80 -> Forecast | S3: =Time!S$80 -> Forecast | T3: =Time!T$80 -> Forecast | U3: =Time!U$80 -> Forecast
E4: =Time!E$103 -> Financial year ending | J4: =Time!J$103 -> 2013 | K4: =Time!K$103 -> 2014 | L4: =Time!L$103 -> 2015 | M4: =Time!M$103 -> 2016 | N4: =Time!N$103 -> 2017 | O4: =Time!O$103 -> 2018 | P4: =Time!P$103 -> 2019 | Q4: =Time!Q$103 -> 2020 | R4: =Time!R$103 -> 2021 | S4: =Time!S$103 -> 2022 | T4: =Time!T$103 -> 2023 | U4: =Time!U$103 -> 2024
E5: =Time!E$10 -> Model column counter | F5: Constant | G5: Unit | H5: Total | J5: =Time!J$10 -> 1 | K5: =Time!K$10 -> 2 | L5: =Time!L$10 -> 3 | M5: =Time!M$10 -> 4 | N5: =Time!N$10 -> 5 | O5: =Time!O$10 -> 6 | P5: =Time!P$10 -> 7 | Q5: =Time!Q$10 -> 8 | R5: =Time!R$10 -> 9 | S5: =Time!S$10 -> 10 | T5: =Time!T$10 -> 11 | U5: =Time!U$10 -> 12
A7: MODEL PERIOD
B9: Model column counter
E10: Model column counter | G10: counter | J10: =I10 + 1 -> 1 | K10: 2 | L10: 3 | M10: 4 | N10: 5 | O10: 6 | P10: 7 | Q10: 8 | R10: 9 | S10: =R10 + 1 -> 10 | T10: =S10 + 1 -> 11 | U10: =T10 + 1 -> 12
E11: Model column total | F11: =MAX(J10:U10) -> 12 | G11: columns
E13: =E$10 -> Model column counter | F13: 0 | G13: counter | H13: 0 | I13: 0 | J13: 1 | K13: 2 | L13: 3 | M13: 4 | N13: 5 | O13: 6 | P13: 7 | Q13: 8 | R13: 9 | S13: 10 | T13: 11 | U13: 12
E14: 1st model column flag | G14: flag | H14: =SUM(J14:U14) -> 1 | J14: =IF(J13 = 1, 1, 0) -> 1 | K14: 0 | L14: 0 | M14: 0 | N14: 0 | O14: 0 | P14: 0 | Q14: 0 | R14: 0 | S14: =IF(S13 = 1, 1, 0) -> 0 | T14: =IF(T13 = 1, 1, 0) -> 0 | U14: =IF(U13 = 1, 1, 0) -> 0
B16: Model period beginning
E17: =Inputs!E$13 -> 1st model column start date | F17: =Inputs!F$13 -> 2012-04-01 | G17: =Inputs!G$13 -> date
E18: =Inputs!E$133 -> Months per model period | F18: =Inputs!F$133 -> 12 | G18: =Inputs!G$133 -> months
E19: =E$14 -> 1st model column flag | F19: 0 | G19: flag | H19: 1 | I19: 0 | J19: 1 | K19: 0 | L19: 0 | M19: 0 | N19: 0 | O19: 0 | P19: 0 | Q19: 0 | R19: 0 | S19: 0 | T19: 0 | U19: 0
E20: Model period beginning | G20: date | J20: =IF(J19 = 1, $F17, DATE(YEAR(I20), MONTH(I20) + $F18, DAY(1))) -> 2012-04-01 | K20: 2013-04-01 | L20: 2014-04-01 | M20: 2015-04-01 | N20: 2016-04-01 | O20: 2017-04-01 | P20: 2018-04-01 | Q20: 2019-04-01 | R20: 2020-04-01 | S20: =IF(S19 = 1, $F17, DATE(YEAR(R20), MONTH(R20) + $F18, DAY(1))) -> 2021-04-01 | T20: =IF(T19 = 1, $F17, DATE(YEAR(S20), MONTH(S20) + $F18, DAY(1))) -> 2022-04-01 | U20: =IF(U19 = 1, $F17, DATE(YEAR(T20), MONTH(T20) + $F18, DAY(1))) -> 2023-04-01
B22: Model period ending
E23: =Inputs!E$133 -> Months per model period | F23: =Inputs!F$133 -> 12 | G23: =Inputs!G$133 -> months
E24: =E$20 -> Model period beginning | F24: 00:00:00 | G24: date | H24: 00:00:00 | I24: 00:00:00 | J24: 2012-04-01 | K24: 2013-04-01 | L24: 2014-04-01 | M24: 2015-04-01 | N24: 2016-04-01 | O24: 2017-04-01 | P24: 2018-04-01 | Q24: 2019-04-01 | R24: 2020-04-01 | S24: 2021-04-01 | T24: 2022-04-01 | U24: 2023-04-01
E25: Model period ending | G25: date | J25: =DATE(YEAR(J24), MONTH(J24) + $F23, DAY(J24) - 1) -> 2013-03-31 | K25: 2014-03-31 | L25: 2015-03-31 | M25: 2016-03-31 | N25: 2017-03-31 | O25: 2018-03-31 | P25: 2019-03-31 | Q25: 2020-03-31 | R25: 2021-03-31 | S25: =DATE(YEAR(S24), MONTH(S24) + $F23, DAY(S24) - 1) -> 2022-03-31 | T25: =DATE(YEAR(T24), MONTH(T24) + $F23, DAY(T24) - 1) -> 2023-03-31 | U25: =DATE(YEAR(U24), MONTH(U24) + $F23, DAY(U24) - 1) -> 2024-03-31
A28: FORECAST PERIOD
B30: Forecast start period flag
E31: =Inputs!E$26 -> Forecast start date | F31: =Inputs!F$26 -> 2020-04-01 | G31: =Inputs!G$26 -> date
E32: =E$20 -> Model period beginning | F32: 00:00:00 | G32: date | H32: 00:00:00 | I32: 00:00:00 | J32: 2012-04-01 | K32: 2013-04-01 | L32: 2014-04-01 | M32: 2015-04-01 | N32: 2016-04-01 | O32: 2017-04-01 | P32: 2018-04-01 | Q32: 2019-04-01 | R32: 2020-04-01 | S32: 2021-04-01 | T32: 2022-04-01 | U32: 2023-04-01
E33: =E$25 -> Model period ending | F33: 00:00:00 | G33: date | H33: 00:00:00 | I33: 00:00:00 | J33: 2013-03-31 | K33: 2014-03-31 | L33: 2015-03-31 | M33: 2016-03-31 | N33: 2017-03-31 | O33: 2018-03-31 | P33: 2019-03-31 | Q33: 2020-03-31 | R33: 2021-03-31 | S33: 2022-03-31 | T33: 2023-03-31 | U33: 2024-03-31
E34: Forecast start period flag | G34: flag | H34: =SUM(J34:U34) -> 1 | J34: =IF(AND($F31 >= J32, $F31 <= J33), 1, 0) -> 0 | K34: =IF(AND($F31 >= K32, $F31 <= K33), 1, 0) -> 0 | L34: 0 | M34: 0 | N34: 0 | O34: 0 | P34: 0 | Q34: 0 | R34: 1 | S34: =IF(AND($F31 >= S32, $F31 <= S33), 1, 0) -> 0 | T34: =IF(AND($F31 >= T32, $F31 <= T33), 1, 0) -> 0 | U34: =IF(AND($F31 >= U32, $F31 <= U33), 1, 0) -> 0
B36: Forecast end period flag
E37: =Inputs!E$26 -> Forecast start date | F37: =Inputs!F$26 -> 2020-04-01 | G37: =Inputs!G$26 -> date
E38: =Inputs!E$27 -> Forecast duration | F38: =Inputs!F$27 -> 5 | G38: =Inputs!G$27 -> years
E39: Forecast end date | F39: =DATE(YEAR(F37) + F38, MONTH(F37), DAY(F37) - 1) -> 2025-03-31 | G39: date
E41: =E$39 -> Forecast end date | F41: =F$39 -> 2025-03-31 | G41: =G$39 -> date
E42: =E$20 -> Model period beginning | F42: 00:00:00 | G42: date | H42: 00:00:00 | I42: 00:00:00 | J42: 2012-04-01 | K42: 2013-04-01 | L42: 2014-04-01 | M42: 2015-04-01 | N42: 2016-04-01 | O42: 2017-04-01 | P42: 2018-04-01 | Q42: 2019-04-01 | R42: 2020-04-01 | S42: 2021-04-01 | T42: 2022-04-01 | U42: 2023-04-01
E43: =E$25 -> Model period ending | F43: 00:00:00 | G43: date | H43: 00:00:00 | I43: 00:00:00 | J43: 2013-03-31 | K43: 2014-03-31 | L43: 2015-03-31 | M43: 2016-03-31 | N43: 2017-03-31 | O43: 2018-03-31 | P43: 2019-03-31 | Q43: 2020-03-31 | R43: 2021-03-31 | S43: 2022-03-31 | T43: 2023-03-31 | U43: 2024-03-31
E44: Forecast end period flag | G44: flag | H44: =SUM(J44:U44) -> 0 | J44: =IF(AND($F41 >= J42, $F41 <= J43), 1, 0) -> 0 | K44: 0 | L44: 0 | M44: 0 | N44: 0 | O44: 0 | P44: 0 | Q44: 0 | R44: 0 | S44: 0 | T44: 0 | U44: 0
B46: Forecast period flag
E47: =E$34 -> Forecast start period flag | F47: =F$34 -> 0 | G47: flag | H47: 1 | I47: 0 | J47: 0 | K47: 0 | L47: 0 | M47: 0 | N47: 0 | O47: 0 | P47: 0 | Q47: 0 | R47: 1 | S47: 0 | T47: 0 | U47: 0
E48: =E$44 -> Forecast end period flag | F48: =F$44 -> 0 | G48: flag | H48: 0 | I48: 0 | J48: 0 | K48: 0 | L48: 0 | M48: 0 | N48: 0 | O48: 0 | P48: 0 | Q48: 0 | R48: 0 | S48: 0 | T48: 0 | U48: 0
E49: Forecast period flag | G49: flag | H49: =SUM(J49:U49) -> 4 | J49: =J47 + I49 - I48 -> 0 | K49: =K47 + J49 - J48 -> 0 | L49: 0 | M49: 0 | N49: 0 | O49: 0 | P49: 0 | Q49: 0 | R49: 1 | S49: =S47 + R49 - R48 -> 1 | T49: =T47 + S49 - S48 -> 1 | U49: =U47 + T49 - T48 -> 1
E50: Total number of forecast periods | F50: =SUM(J49:U49) -> 4 | G50: periods
B52: Pre-forecast period flag
E53: =E$14 -> 1st model column flag | F53: =F$14 -> 0 | G53: flag | H53: 1 | I53: 0 | J53: 1 | K53: 0 | L53: 0 | M53: 0 | N53: 0 | O53: 0 | P53: 0 | Q53: 0 | R53: 0 | S53: 0 | T53: 0 | U53: 0
E54: =E$34 -> Forecast start period flag | F54: =F$34 -> 0 | G54: flag | H54: 1 | I54: 0 | J54: 0 | K54: 0 | L54: 0 | M54: 0 | N54: 0 | O54: 0 | P54: 0 | Q54: 0 | R54: 1 | S54: 0 | T54: 0 | U54: 0
E55: Pre-forecast period flag | G55: flag | H55: =SUM(J55:U55) -> 8 | J55: =J53 + I55 - J54 -> 1 | K55: =K53 + J55 - K54 -> 1 | L55: 1 | M55: 1 | N55: 1 | O55: 1 | P55: 1 | Q55: 1 | R55: 0 | S55: =S53 + R55 - S54 -> 0 | T55: =T53 + S55 - T54 -> 0 | U55: =U53 + T55 - U54 -> 0
E56: Pre-forecast period flag - total | F56: =SUM(J55:U55) -> 8 | G56: periods
B58: First post-forecast period flag
E59: =E$44 -> Forecast end period flag | F59: =F$44 -> 0 | G59: flag | H59: 0 | I59: 0 | J59: 0 | K59: 0 | L59: 0 | M59: 0 | N59: 0 | O59: 0 | P59: 0 | Q59: 0 | R59: 0 | S59: 0 | T59: 0 | U59: 0
E60: First post-forecast period flag | G60: flag | H60: =SUM(J60:U60) -> 0 | J60: =I59 -> 0 | K60: =J59 -> 0 | L60: 0 | M60: 0 | N60: 0 | O60: 0 | P60: 0 | Q60: 0 | R60: 0 | S60: =R59 -> 0 | T60: =S59 -> 0 | U60: =T59 -> 0
B62: Post-forecast period flag
E63: =E$60 -> First post-forecast period flag | F63: 0 | G63: flag | H63: 0 | I63: 0 | J63: 0 | K63: 0 | L63: 0 | M63: 0 | N63: 0 | O63: 0 | P63: 0 | Q63: 0 | R63: 0 | S63: 0 | T63: 0 | U63: 0
E64: Post-forecast period flag | G64: flag | H64: =SUM(J64:U64) -> 0 | J64: =J63 + I64 -> 0 | K64: =K63 + J64 -> 0 | L64: 0 | M64: 0 | N64: 0 | O64: 0 | P64: 0 | Q64: 0 | R64: 0 | S64: =S63 + R64 -> 0 | T64: =T63 + S64 -> 0 | U64: =U63 + T64 -> 0
E65: Post-forecast period - total | F65: =SUM(J64:U64) -> 0 | G65: periods
A67: MODEL TIMELINE
B70: Timeline label
E71: =E$14 -> 1st model column flag | F71: 0 | G71: flag | H71: 1 | I71: 0 | J71: 1 | K71: 0 | L71: 0 | M71: 0 | N71: 0 | O71: 0 | P71: 0 | Q71: 0 | R71: 0 | S71: 0 | T71: 0 | U71: 0
E72: =E$34 -> Forecast start period flag | F72: =F$34 -> 0 | G72: flag | H72: 1 | I72: 0 | J72: 0 | K72: 0 | L72: 0 | M72: 0 | N72: 0 | O72: 0 | P72: 0 | Q72: 0 | R72: 1 | S72: 0 | T72: 0 | U72: 0
E73: =E$60 -> First post-forecast period flag | F73: 0 | G73: flag | H73: 0 | I73: 0 | J73: 0 | K73: 0 | L73: 0 | M73: 0 | N73: 0 | O73: 0 | P73: 0 | Q73: 0 | R73: 0 | S73: 0 | T73: 0 | U73: 0
E74: Timeline label counter | G74: counter | J74: =I74 + SUM(J71:J73) -> 1 | K74: 1 | L74: 1 | M74: 1 | N74: 1 | O74: 1 | P74: 1 | Q74: 1 | R74: 2 | S74: =R74 + SUM(S71:S73) -> 2 | T74: =S74 + SUM(T71:T73) -> 2 | U74: =T74 + SUM(U71:U73) -> 2
E76: =Inputs!E$20 -> Pre - forecast period | F76: =Inputs!F$20 -> Pre-Fcst | G76: =Inputs!G$20 -> label
E77: =Inputs!E$21 -> Forecast period | F77: =Inputs!F$21 -> Forecast | G77: =Inputs!G$21 -> label
E78: =Inputs!E$22 -> Post - forecast period | F78: =Inputs!F$22 -> Post-Fcst | G78: =Inputs!G$22 -> label
E79: =E$74 -> Timeline label counter | F79: 0 | G79: counter | H79: 0 | I79: 0 | J79: 1 | K79: 1 | L79: 1 | M79: 1 | N79: 1 | O79: 1 | P79: 1 | Q79: 1 | R79: 2 | S79: 2 | T79: 2 | U79: 2
E80: Timeline label | G80: label | J80: =INDEX($F76:$F78, J79) -> Pre-Fcst | K80: Pre-Fcst | L80: Pre-Fcst | M80: Pre-Fcst | N80: Pre-Fcst | O80: Pre-Fcst | P80: Pre-Fcst | Q80: Pre-Fcst | R80: Forecast | S80: =INDEX($F76:$F78, S79) -> Forecast | T80: =INDEX($F76:$F78, T79) -> Forecast | U80: =INDEX($F76:$F78, U79) -> Forecast
B82: Modelling period check
E83: =E$55 -> Pre-forecast period flag | F83: =F$55 -> 0 | G83: flag | H83: 8 | I83: 0 | J83: 1 | K83: 1 | L83: 1 | M83: 1 | N83: 1 | O83: 1 | P83: 1 | Q83: 1 | R83: 0 | S83: 0 | T83: 0 | U83: 0
E84: =E$49 -> Forecast period flag | F84: =F$49 -> 0 | G84: flag | H84: 4 | I84: 0 | J84: 0 | K84: 0 | L84: 0 | M84: 0 | N84: 0 | O84: 0 | P84: 0 | Q84: 0 | R84: 1 | S84: 1 | T84: 1 | U84: 1
E85: =E$64 -> Post-forecast period flag | F85: 0 | G85: flag | H85: 0 | I85: 0 | J85: 0 | K85: 0 | L85: 0 | M85: 0 | N85: 0 | O85: 0 | P85: 0 | Q85: 0 | R85: 0 | S85: 0 | T85: 0 | U85: 0
E86: No. of overlapping in flags | G86: # | H86: =SUM(J86:U86) -> 0 | J86: =MAX(0, SUM(J83:J85) - 1) -> 0 | K86: 0 | L86: 0 | M86: 0 | N86: 0 | O86: 0 | P86: 0 | Q86: 0 | R86: 0 | S86: =MAX(0, SUM(S83:S85) - 1) -> 0 | T86: =MAX(0, SUM(T83:T85) - 1) -> 0 | U86: =MAX(0, SUM(U83:U85) - 1) -> 0
E87: Overlapping in periods - total | F87: =SUM(J86:U86) -> 0 | G87: periods
E89: =E$11 -> Model column total | F89: =F$11 -> 12 | G89: =G$11 -> columns
E90: =E$87 -> Overlapping in periods - total | F90: =F$87 -> 0 | G90: =G$87 -> periods
E91: =E$56 -> Pre-forecast period flag - total | F91: =F$56 -> 8 | G91: =G$56 -> periods
E92: =E$50 -> Total number of forecast periods | F92: =F$50 -> 4 | G92: =G$50 -> periods
E93: =E$65 -> Post-forecast period - total | F93: =F$65 -> 0 | G93: =G$65 -> periods
E94: Modelling period check | F94: =IF(SUM(F89:F90) - SUM(F91:F93) <> 0, 1, 0) -> 0 | G94: check
A97: FINANCIAL YEAR
E99: =Inputs!E$16 -> First modelling column financial year# | F99: =Inputs!F$16 -> 2013 | G99: =Inputs!G$16 -> year #
E100: =Inputs!E$17 -> Financial year end month number | F100: =Inputs!F$17 -> 3 | G100: =Inputs!G$17 -> month #
E101: =E$25 -> Model period ending | F101: 00:00:00 | G101: date | H101: 00:00:00 | I101: 00:00:00 | J101: 2013-03-31 | K101: 2014-03-31 | L101: 2015-03-31 | M101: 2016-03-31 | N101: 2017-03-31 | O101: 2018-03-31 | P101: 2019-03-31 | Q101: 2020-03-31 | R101: 2021-03-31 | S101: 2022-03-31 | T101: 2023-03-31 | U101: 2024-03-31
E102: =E$14 -> 1st model column flag | F102: 0 | G102: flag | H102: 1 | I102: 0 | J102: 1 | K102: 0 | L102: 0 | M102: 0 | N102: 0 | O102: 0 | P102: 0 | Q102: 0 | R102: 0 | S102: 0 | T102: 0 | U102: 0
E103: Financial year ending | G103: year # | J103: =IF(J102 = 1, $F99, IF(J101 > (DATE(I103, $F100 + 1, 1) - 1), I103 + 1, I103)) -> 2013 | K103: 2014 | L103: 2015 | M103: 2016 | N103: 2017 | O103: 2018 | P103: 2019 | Q103: 2020 | R103: 2021 | S103: =IF(S102 = 1, $F99, IF(S101 > (DATE(R103, $F100 + 1, 1) - 1), R103 + 1, R103)) -> 2022 | T103: =IF(T102 = 1, $F99, IF(T101 > (DATE(S103, $F100 + 1, 1) - 1), S103 + 1, S103)) -> 2023 | U103: =IF(U102 = 1, $F99, IF(U101 > (DATE(T103, $F100 + 1, 1) - 1), T103 + 1, T103)) -> 2024

Sheet Indexation
A1: =RIGHT(CELL("filename", $A$1), LEN(CELL("filename", $A$1)) - SEARCH("]", CELL("filename", $A$1))) -> Indexation
E2: =Time!E$25 -> Model period ending | J2: =Time!J$25 -> 2013-03-31 | K2: =Time!K$25 -> 2014-03-31 | L2: =Time!L$25 -> 2015-03-31 | M2: =Time!M$25 -> 2016-03-31 | N2: =Time!N$25 -> 2017-03-31 | O2: =Time!O$25 -> 2018-03-31 | P2: =Time!P$25 -> 2019-03-31 | Q2: =Time!Q$25 -> 2020-03-31 | R2: =Time!R$25 -> 2021-03-31 | S2: =Time!S$25 -> 2022-03-31 | T2: =Time!T$25 -> 2023-03-31 | U2: =Time!U$25 -> 2024-03-31
E3: =Time!E$80 -> Timeline label | J3: =Time!J$80 -> Pre-Fcst | K3: =Time!K$80 -> Pre-Fcst | L3: =Time!L$80 -> Pre-Fcst | M3: =Time!M$80 -> Pre-Fcst | N3: =Time!N$80 -> Pre-Fcst | O3: =Time!O$80 -> Pre-Fcst | P3: =Time!P$80 -> Pre-Fcst | Q3: =Time!Q$80 -> Pre-Fcst | R3: =Time!R$80 -> Forecast | S3: =Time!S$80 -> Forecast | T3: =Time!T$80 -> Forecast | U3: =Time!U$80 -> Forecast
E4: =Time!E$103 -> Financial year ending | J4: =Time!J$103 -> 2013 | K4: =Time!K$103 -> 2014 | L4: =Time!L$103 -> 2015 | M4: =Time!M$103 -> 2016 | N4: =Time!N$103 -> 2017 | O4: =Time!O$103 -> 2018 | P4: =Time!P$103 -> 2019 | Q4: =Time!Q$103 -> 2020 | R4: =Time!R$103 -> 2021 | S4: =Time!S$103 -> 2022 | T4: =Time!T$103 -> 2023 | U4: =Time!U$103 -> 2024
E5: =Time!E$10 -> Model column counter | F5: Constant | G5: Unit | H5: Total | J5: =Time!J$10 -> 1 | K5: =Time!K$10 -> 2 | L5: =Time!L$10 -> 3 | M5: =Time!M$10 -> 4 | N5: =Time!N$10 -> 5 | O5: =Time!O$10 -> 6 | P5: =Time!P$10 -> 7 | Q5: =Time!Q$10 -> 8 | R5: =Time!R$10 -> 9 | S5: =Time!S$10 -> 10 | T5: =Time!T$10 -> 11 | U5: =Time!U$10 -> 12
A7: CPIH INDEXATION
B9: CPIH: Index value series
E10: =Inputs!E$35 -> Consumer Price Index for April | F10: =Inputs!F$35 -> 0 | G10: =Inputs!G$35 -> index | H10: =Inputs!H$35 -> 0 | I10: =Inputs!I$35 -> 0 | J10: =Inputs!J$35 -> 95.9 | K10: =Inputs!K$35 -> 98 | L10: =Inputs!L$35 -> 99.6 | M10: =Inputs!M$35 -> 99.9 | N10: =Inputs!N$35 -> 100.6 | O10: =Inputs!O$35 -> 103.2 | P10: =Inputs!P$35 -> 105.5 | Q10: =Inputs!Q$35 -> 107.6 | R10: =Inputs!R$35 -> 0 | S10: =Inputs!S$35 -> 0 | T10: =Inputs!T$35 -> 0 | U10: =Inputs!U$35 -> 0
E11: =Inputs!E$36 -> Consumer Price Index for May | F11: =Inputs!F$36 -> 0 | G11: =Inputs!G$36 -> index | H11: =Inputs!H$36 -> 0 | I11: =Inputs!I$36 -> 0 | J11: =Inputs!J$36 -> 95.9 | K11: =Inputs!K$36 -> 98.2 | L11: =Inputs!L$36 -> 99.6 | M11: =Inputs!M$36 -> 100.1 | N11: =Inputs!N$36 -> 100.8 | O11: =Inputs!O$36 -> 103.5 | P11: =Inputs!P$36 -> 105.9 | Q11: =Inputs!Q$36 -> 107.9 | R11: =Inputs!R$36 -> 0 | S11: =Inputs!S$36 -> 0 | T11: =Inputs!T$36 -> 0 | U11: =Inputs!U$36 -> 0
E12: =Inputs!E$37 -> Consumer Price Index for June | F12: =Inputs!F$37 -> 0 | G12: =Inputs!G$37 -> index | H12: =Inputs!H$37 -> 0 | I12: =Inputs!I$37 -> 0 | J12: =Inputs!J$37 -> 95.6 | K12: =Inputs!K$37 -> 98 | L12: =Inputs!L$37 -> 99.8 | M12: =Inputs!M$37 -> 100.1 | N12: =Inputs!N$37 -> 101 | O12: =Inputs!O$37 -> 103.5 | P12: =Inputs!P$37 -> 105.9 | Q12: =Inputs!Q$37 -> 107.9 | R12: =Inputs!R$37 -> 0 | S12: =Inputs!S$37 -> 0 | T12: =Inputs!T$37 -> 0 | U12: =Inputs!U$37 -> 0
E13: =Inputs!E$38 -> Consumer Price Index for July | F13: =Inputs!F$38 -> 0 | G13: =Inputs!G$38 -> index | H13: =Inputs!H$38 -> 0 | I13: =Inputs!I$38 -> 0 | J13: =Inputs!J$38 -> 95.7 | K13: =Inputs!K$38 -> 98 | L13: =Inputs!L$38 -> 99.6 | M13: =Inputs!M$38 -> 100 | N13: =Inputs!N$38 -> 100.9 | O13: =Inputs!O$38 -> 103.5 | P13: =Inputs!P$38 -> 105.9 | Q13: =Inputs!Q$38 -> 108 | R13: =Inputs!R$38 -> 0 | S13: =Inputs!S$38 -> 0 | T13: =Inputs!T$38 -> 0 | U13: =Inputs!U$38 -> 0
E14: =Inputs!E$39 -> Consumer Price Index for August | F14: =Inputs!F$39 -> 0 | G14: =Inputs!G$39 -> index | H14: =Inputs!H$39 -> 0 | I14: =Inputs!I$39 -> 0 | J14: =Inputs!J$39 -> 96.1 | K14: =Inputs!K$39 -> 98.4 | L14: =Inputs!L$39 -> 99.9 | M14: =Inputs!M$39 -> 100.3 | N14: =Inputs!N$39 -> 101.2 | O14: =Inputs!O$39 -> 104 | P14: =Inputs!P$39 -> 106.5 | Q14: =Inputs!Q$39 -> 108.3 | R14: =Inputs!R$39 -> 0 | S14: =Inputs!S$39 -> 0 | T14: =Inputs!T$39 -> 0 | U14: =Inputs!U$39 -> 0
E15: =Inputs!E$40 -> Consumer Price Index for September | F15: =Inputs!F$40 -> 0 | G15: =Inputs!G$40 -> index | H15: =Inputs!H$40 -> 0 | I15: =Inputs!I$40 -> 0 | J15: =Inputs!J$40 -> 96.4 | K15: =Inputs!K$40 -> 98.7 | L15: =Inputs!L$40 -> 100 | M15: =Inputs!M$40 -> 100.2 | N15: =Inputs!N$40 -> 101.5 | O15: =Inputs!O$40 -> 104.3 | P15: =Inputs!P$40 -> 106.6 | Q15: =Inputs!Q$40 -> 108.4 | R15: =Inputs!R$40 -> 0 | S15: =Inputs!S$40 -> 0 | T15: =Inputs!T$40 -> 0 | U15: =Inputs!U$40 -> 0
E16: =Inputs!E$41 -> Consumer Price Index for October | F16: =Inputs!F$41 -> 0 | G16: =Inputs!G$41 -> index | H16: =Inputs!H$41 -> 0 | I16: =Inputs!I$41 -> 0 | J16: =Inputs!J$41 -> 96.8 | K16: =Inputs!K$41 -> 98.8 | L16: =Inputs!L$41 -> 100.1 | M16: =Inputs!M$41 -> 100.3 | N16: =Inputs!N$41 -> 101.6 | O16: =Inputs!O$41 -> 104.4 | P16: =Inputs!P$41 -> 106.7 | Q16: =Inputs!Q$41 -> 108.3 | R16: =Inputs!R$41 -> 0 | S16: =Inputs!S$41 -> 0 | T16: =Inputs!T$41 -> 0 | U16: =Inputs!U$41 -> 0
E17: =Inputs!E$42 -> Consumer Price Index for November | F17: =Inputs!F$42 -> 0 | G17: =Inputs!G$42 -> index | H17: =Inputs!H$42 -> 0 | I17: =Inputs!I$42 -> 0 | J17: =Inputs!J$42 -> 97 | K17: =Inputs!K$42 -> 98.8 | L17: =Inputs!L$42 -> 99.9 | M17: =Inputs!M$42 -> 100.3 | N17: =Inputs!N$42 -> 101.8 | O17: =Inputs!O$42 -> 104.7 | P17: =Inputs!P$42 -> 106.9 | Q17: =Inputs!Q$42 -> 108.5 | R17: =Inputs!R$42 -> 0 | S17: =Inputs!S$42 -> 0 | T17: =Inputs!T$42 -> 0 | U17: =Inputs!U$42 -> 0
E18: =Inputs!E$43 -> Consumer Price Index for December | F18: =Inputs!F$43 -> 0 | G18: =Inputs!G$43 -> index | H18: =Inputs!H$43 -> 0 | I18: =Inputs!I$43 -> 0 | J18: =Inputs!J$43 -> 97.3 | K18: =Inputs!K$43 -> 99.2 | L18: =Inputs!L$43 -> 99.9 | M18: =Inputs!M$43 -> 100.4 | N18: =Inputs!N$43 -> 102.2 | O18: =Inputs!O$43 -> 105 | P18: =Inputs!P$43 -> 107.1 | Q18: =Inputs!Q$43 -> 108.5 | R18: =Inputs!R$43 -> 0 | S18: =Inputs!S$43 -> 0 | T18: =Inputs!T$43 -> 0 | U18: =Inputs!U$43 -> 0
E19: =Inputs!E$44 -> Consumer Price Index for January | F19: =Inputs!F$44 -> 0 | G19: =Inputs!G$44 -> index | H19: =Inputs!H$44 -> 0 | I19: =Inputs!I$44 -> 0 | J19: =Inputs!J$44 -> 97 | K19: =Inputs!K$44 -> 98.7 | L19: =Inputs!L$44 -> 99.2 | M19: =Inputs!M$44 -> 99.9 | N19: =Inputs!N$44 -> 101.8 | O19: =Inputs!O$44 -> 104.5 | P19: =Inputs!P$44 -> 106.4 | Q19: =Inputs!Q$44 -> 108.3 | R19: =Inputs!R$44 -> 0 | S19: =Inputs!S$44 -> 0 | T19: =Inputs!T$44 -> 0 | U19: =Inputs!U$44 -> 0
E20: =Inputs!E$45 -> Consumer Price Index for February | F20: =Inputs!F$45 -> 0 | G20: =Inputs!G$45 -> index | H20: =Inputs!H$45 -> 0 | I20: =Inputs!I$45 -> 0 | J20: =Inputs!J$45 -> 97.5 | K20: =Inputs!K$45 -> 99.1 | L20: =Inputs!L$45 -> 99.5 | M20: =Inputs!M$45 -> 100.1 | N20: =Inputs!N$45 -> 102.4 | O20: =Inputs!O$45 -> 104.9 | P20: =Inputs!P$45 -> 106.8 | Q20: =Inputs!Q$45 -> 108.6 | R20: =Inputs!R$45 -> 0 | S20: =Inputs!S$45 -> 0 | T20: =Inputs!T$45 -> 0 | U20: =Inputs!U$45 -> 0
E21: =Inputs!E$46 -> Consumer Price Index for March | F21: =Inputs!F$46 -> 0 | G21: =Inputs!G$46 -> index | H21: =Inputs!H$46 -> 0 | I21: =Inputs!I$46 -> 0 | J21: =Inputs!J$46 -> 97.8 | K21: =Inputs!K$46 -> 99.3 | L21: =Inputs!L$46 -> 99.6 | M21: =Inputs!M$46 -> 100.4 | N21: =Inputs!N$46 -> 102.7 | O21: =Inputs!O$46 -> 105.1 | P21: =Inputs!P$46 -> 107 | Q21: =Inputs!Q$46 -> 108.6 | R21: =Inputs!R$46 -> 0 | S21: =Inputs!S$46 -> 0 | T21: =Inputs!T$46 -> 0 | U21: =Inputs!U$46 -> 0
E23: =Inputs!E$48 -> CPIH: Assumed percentage increase for unpopulated monthly values | F23: =Inputs!F$48 -> 0 | G23: =Inputs!G$48 -> % | H23: =Inputs!H$48 -> 0 | I23: =Inputs!I$48 -> 0 | J23: =Inputs!J$48 -> 0 | K23: =Inputs!K$48 -> 0 | L23: =Inputs!L$48 -> 0 | M23: =Inputs!M$48 -> 0 | N23: =Inputs!N$48 -> 0 | O23: =Inputs!O$48 -> 0 | P23: =Inputs!P$48 -> 0 | Q23: =Inputs!Q$48 -> 0 | R23: =Inputs!R$48 -> 0 | S23: =Inputs!S$48 -> 0 | T23: =Inputs!T$48 -> 0 | U23: =Inputs!U$48 -> 0
E25: CPIH: April - index | G25: index | J25: =IF(J10 > 0, J10, I25 * (1 + J$23)) -> 95.9 | K25: =IF(K10 > 0, K10, J25 * (1 + K$23)) -> 98 | L25: 99.6 | M25: 99.9 | N25: 100.6 | O25: 103.2 | P25: 105.5 | Q25: 107.6 | R25: 107.6 | S25: 107.6 | T25: 107.6 | U25: 107.6
E26: CPIH: May - index | G26: index | J26: =IF(J11 > 0, J11, I26 * (1 + J$23)) -> 95.9 | K26: 98.2 | L26: 99.6 | M26: 100.1 | N26: 100.8 | O26: 103.5 | P26: 105.9 | Q26: 107.9 | R26: 107.9 | S26: 107.9 | T26: 107.9 | U26: 107.9
E27: CPIH: June - index | G27: index | J27: 95.6 | K27: 98 | L27: 99.8 | M27: 100.1 | N27: 101 | O27: 103.5 | P27: 105.9 | Q27: 107.9 | R27: 107.9 | S27: 107.9 | T27: 107.9 | U27: 107.9
E28: CPIH: July - index | G28: index | J28: 95.7 | K28: 98 | L28: 99.6 | M28: 100 | N28: 100.9 | O28: 103.5 | P28: 105.9 | Q28: 108 | R28: 108 | S28: 108 | T28: 108 | U28: 108
E29: CPIH: August - index | G29: index | J29: 96.1 | K29: 98.4 | L29: 99.9 | M29: 100.3 | N29: 101.2 | O29: 104 | P29: 106.5 | Q29: 108.3 | R29: 108.3 | S29: 108.3 | T29: 108.3 | U29: 108.3
E30: CPIH: September- index | G30: index | J30: 96.4 | K30: 98.7 | L30: 100 | M30: 100.2 | N30: 101.5 | O30: 104.3 | P30: 106.6 | Q30: 108.4 | R30: 108.4 | S30: 108.4 | T30: 108.4 | U30: 108.4
E31: CPIH: October - index | G31: index | J31: 96.8 | K31: 98.8 | L31: 100.1 | M31: 100.3 | N31: 101.6 | O31: 104.4 | P31: 106.7 | Q31: 108.3 | R31: 108.3 | S31: 108.3 | T31: 108.3 | U31: 108.3
E32: CPIH: November - index | G32: index | J32: 97 | K32: 98.8 | L32: 99.9 | M32: 100.3 | N32: 101.8 | O32: 104.7 | P32: 106.9 | Q32: 108.5 | R32: 108.5 | S32: 108.5 | T32: 108.5 | U32: 108.5
E33: CPIH: December - index | G33: index | J33: 97.3 | K33: 99.2 | L33: 99.9 | M33: 100.4 | N33: 102.2 | O33: 105 | P33: 107.1 | Q33: 108.5 | R33: 108.5 | S33: 108.5 | T33: 108.5 | U33: 108.5
E34: CPIH: January - index | G34: index | J34: 97 | K34: 98.7 | L34: 99.2 | M34: 99.9 | N34: 101.8 | O34: 104.5 | P34: 106.4 | Q34: 108.3 | R34: 108.3 | S34: 108.3 | T34: 108.3 | U34: 108.3
E35: CPIH: February - index | G35: index | J35: 97.5 | K35: 99.1 | L35: 99.5 | M35: 100.1 | N35: 102.4 | O35: 104.9 | P35: 106.8 | Q35: 108.6 | R35: 108.6 | S35: 108.6 | T35: 108.6 | U35: 108.6
E36: CPIH: March - index | G36: index | J36: 97.8 | K36: 99.3 | L36: 99.6 | M36: 100.4 | N36: 102.7 | O36: 105.1 | P36: 107 | Q36: 108.6 | R36: 108.6 | S36: 108.6 | T36: 108.6 | U36: 108.6
E38: CPIH: Financial year average - index | G38: index | J38: =AVERAGE(J25:J36) -> 96.58333333 | K38: 98.6 | L38: 99.725 | M38: 100.1666667 | N38: 101.5416667 | O38: 104.2166667 | P38: 106.4333333 | Q38: 108.2416667 | R38: 108.2416667 | S38: 108.2416667 | T38: 108.2416667 | U38: 108.2416667
A41: RPI INDEXATION
B43: RPI: Index value series
E44: =Inputs!E$52 -> Retail Price Index for April | F44: =Inputs!F$52 -> 0 | G44: =Inputs!G$52 -> index | H44: =Inputs!H$52 -> 0 | I44: =Inputs!I$52 -> 0 | J44: =Inputs!J$52 -> 242.5 | K44: =Inputs!K$52 -> 249.5 | L44: =Inputs!L$52 -> 255.7 | M44: =Inputs!M$52 -> 258 | N44: =Inputs!N$52 -> 261.4 | O44: =Inputs!O$52 -> 270.6 | P44: =Inputs!P$52 -> 279.7 | Q44: =Inputs!Q$52 -> 288.2 | R44: =Inputs!R$52 -> 0 | S44: =Inputs!S$52 -> 0 | T44: =Inputs!T$52 -> 0 | U44: =Inputs!U$52 -> 0
E45: =Inputs!E$53 -> Retail Price Index for May | F45: =Inputs!F$53 -> 0 | G45: =Inputs!G$53 -> index | H45: =Inputs!H$53 -> 0 | I45: =Inputs!I$53 -> 0 | J45: =Inputs!J$53 -> 242.4 | K45: =Inputs!K$53 -> 250 | L45: =Inputs!L$53 -> 255.9 | M45: =Inputs!M$53 -> 258.5 | N45: =Inputs!N$53 -> 262.1 | O45: =Inputs!O$53 -> 271.7 | P45: =Inputs!P$53 -> 280.7 | Q45: =Inputs!Q$53 -> 289.2 | R45: =Inputs!R$53 -> 0 | S45: =Inputs!S$53 -> 0 | T45: =Inputs!T$53 -> 0 | U45: =Inputs!U$53 -> 0
E46: =Inputs!E$54 -> Retail Price Index for June | F46: =Inputs!F$54 -> 0 | G46: =Inputs!G$54 -> index | H46: =Inputs!H$54 -> 0 | I46: =Inputs!I$54 -> 0 | J46: =Inputs!J$54 -> 241.8 | K46: =Inputs!K$54 -> 249.7 | L46: =Inputs!L$54 -> 256.3 | M46: =Inputs!M$54 -> 258.9 | N46: =Inputs!N$54 -> 263.1 | O46: =Inputs!O$54 -> 272.3 | P46: =Inputs!P$54 -> 281.5 | Q46: =Inputs!Q$54 -> 289.6 | R46: =Inputs!R$54 -> 0 | S46: =Inputs!S$54 -> 0 | T46: =Inputs!T$54 -> 0 | U46: =Inputs!U$54 -> 0
E47: =Inputs!E$55 -> Retail Price Index for July | F47: =Inputs!F$55 -> 0 | G47: =Inputs!G$55 -> index | H47: =Inputs!H$55 -> 0 | I47: =Inputs!I$55 -> 0 | J47: =Inputs!J$55 -> 242.1 | K47: =Inputs!K$55 -> 249.7 | L47: =Inputs!L$55 -> 256 | M47: =Inputs!M$55 -> 258.6 | N47: =Inputs!N$55 -> 263.4 | O47: =Inputs!O$55 -> 272.9 | P47: =Inputs!P$55 -> 281.7 | Q47: =Inputs!Q$55 -> 289.5 | R47: =Inputs!R$55 -> 0 | S47: =Inputs!S$55 -> 0 | T47: =Inputs!T$55 -> 0 | U47: =Inputs!U$55 -> 0
E48: =Inputs!E$56 -> Retail Price Index for August | F48: =Inputs!F$56 -> 0 | G48: =Inputs!G$56 -> index | H48: =Inputs!H$56 -> 0 | I48: =Inputs!I$56 -> 0 | J48: =Inputs!J$56 -> 243 | K48: =Inputs!K$56 -> 251 | L48: =Inputs!L$56 -> 257 | M48: =Inputs!M$56 -> 259.8 | N48: =Inputs!N$56 -> 264.4 | O48: =Inputs!O$56 -> 274.7 | P48: =Inputs!P$56 -> 284.2 | Q48: =Inputs!Q$56 -> 291.7 | R48: =Inputs!R$56 -> 0 | S48: =Inputs!S$56 -> 0 | T48: =Inputs!T$56 -> 0 | U48: =Inputs!U$56 -> 0
E49: =Inputs!E$57 -> Retail Price Index for September | F49: =Inputs!F$57 -> 0 | G49: =Inputs!G$57 -> index | H49: =Inputs!H$57 -> 0 | I49: =Inputs!I$57 -> 0 | J49: =Inputs!J$57 -> 244.2 | K49: =Inputs!K$57 -> 251.9 | L49: =Inputs!L$57 -> 257.6 | M49: =Inputs!M$57 -> 259.6 | N49: =Inputs!N$57 -> 264.9 | O49: =Inputs!O$57 -> 275.1 | P49: =Inputs!P$57 -> 284.1 | Q49: =Inputs!Q$57 -> 291 | R49: =Inputs!R$57 -> 0 | S49: =Inputs!S$57 -> 0 | T49: =Inputs!T$57 -> 0 | U49: =Inputs!U$57 -> 0
E50: =Inputs!E$58 -> Retail Price Index for October | F50: =Inputs!F$58 -> 0 | G50: =Inputs!G$58 -> index | H50: =Inputs!H$58 -> 0 | I50: =Inputs!I$58 -> 0 | J50: =Inputs!J$58 -> 245.6 | K50: =Inputs!K$58 -> 251.9 | L50: =Inputs!L$58 -> 257.7 | M50: =Inputs!M$58 -> 259.5 | N50: =Inputs!N$58 -> 264.8 | O50: =Inputs!O$58 -> 275.3 | P50: =Inputs!P$58 -> 284.5 | Q50: =Inputs!Q$58 -> 290.4 | R50: =Inputs!R$58 -> 0 | S50: =Inputs!S$58 -> 0 | T50: =Inputs!T$58 -> 0 | U50: =Inputs!U$58 -> 0
E51: =Inputs!E$59 -> Retail Price Index for November | F51: =Inputs!F$59 -> 0 | G51: =Inputs!G$59 -> index | H51: =Inputs!H$59 -> 0 | I51: =Inputs!I$59 -> 0 | J51: =Inputs!J$59 -> 245.6 | K51: =Inputs!K$59 -> 252.1 | L51: =Inputs!L$59 -> 257.1 | M51: =Inputs!M$59 -> 259.8 | N51: =Inputs!N$59 -> 265.5 | O51: =Inputs!O$59 -> 275.8 | P51: =Inputs!P$59 -> 284.6 | Q51: =Inputs!Q$59 -> 291 | R51: =Inputs!R$59 -> 0 | S51: =Inputs!S$59 -> 0 | T51: =Inputs!T$59 -> 0 | U51: =Inputs!U$59 -> 0
E52: =Inputs!E$60 -> Retail Price Index for December | F52: =Inputs!F$60 -> 0 | G52: =Inputs!G$60 -> index | H52: =Inputs!H$60 -> 0 | I52: =Inputs!I$60 -> 0 | J52: =Inputs!J$60 -> 246.8 | K52: =Inputs!K$60 -> 253.4 | L52: =Inputs!L$60 -> 257.5 | M52: =Inputs!M$60 -> 260.6 | N52: =Inputs!N$60 -> 267.1 | O52: =Inputs!O$60 -> 278.1 | P52: =Inputs!P$60 -> 285.6 | Q52: =Inputs!Q$60 -> 291.9 | R52: =Inputs!R$60 -> 0 | S52: =Inputs!S$60 -> 0 | T52: =Inputs!T$60 -> 0 | U52: =Inputs!U$60 -> 0
E53: =Inputs!E$61 -> Retail Price Index for January | F53: =Inputs!F$61 -> 0 | G53: =Inputs!G$61 -> index | H53: =Inputs!H$61 -> 0 | I53: =Inputs!I$61 -> 0 | J53: =Inputs!J$61 -> 245.8 | K53: =Inputs!K$61 -> 252.6 | L53: =Inputs!L$61 -> 255.4 | M53: =Inputs!M$61 -> 258.8 | N53: =Inputs!N$61 -> 265.5 | O53: =Inputs!O$61 -> 276 | P53: =Inputs!P$61 -> 283 | Q53: =Inputs!Q$61 -> 290.6 | R53: =Inputs!R$61 -> 0 | S53: =Inputs!S$61 -> 0 | T53: =Inputs!T$61 -> 0 | U53: =Inputs!U$61 -> 0
E54: =Inputs!E$62 -> Retail Price Index for February | F54: =Inputs!F$62 -> 0 | G54: =Inputs!G$62 -> index | H54: =Inputs!H$62 -> 0 | I54: =Inputs!I$62 -> 0 | J54: =Inputs!J$62 -> 247.6 | K54: =Inputs!K$62 -> 254.2 | L54: =Inputs!L$62 -> 256.7 | M54: =Inputs!M$62 -> 260 | N54: =Inputs!N$62 -> 268.4 | O54: =Inputs!O$62 -> 278.1 | P54: =Inputs!P$62 -> 285 | Q54: =Inputs!Q$62 -> 292 | R54: =Inputs!R$62 -> 0 | S54: =Inputs!S$62 -> 0 | T54: =Inputs!T$62 -> 0 | U54: =Inputs!U$62 -> 0
E55: =Inputs!E$63 -> Retail Price Index for March | F55: =Inputs!F$63 -> 0 | G55: =Inputs!G$63 -> index | H55: =Inputs!H$63 -> 0 | I55: =Inputs!I$63 -> 0 | J55: =Inputs!J$63 -> 248.7 | K55: =Inputs!K$63 -> 254.8 | L55: =Inputs!L$63 -> 257.1 | M55: =Inputs!M$63 -> 261.1 | N55: =Inputs!N$63 -> 269.3 | O55: =Inputs!O$63 -> 278.3 | P55: =Inputs!P$63 -> 285.1 | Q55: =Inputs!Q$63 -> 292.6 | R55: =Inputs!R$63 -> 0 | S55: =Inputs!S$63 -> 0 | T55: =Inputs!T$63 -> 0 | U55: =Inputs!U$63 -> 0
E57: =Inputs!E$65 -> RPI: Assumed percentage increase for unpopulated monthly values | F57: =Inputs!F$65 -> 0 | G57: =Inputs!G$65 -> % | H57: =Inputs!H$65 -> 0 | I57: =Inputs!I$65 -> 0 | J57: =Inputs!J$65 -> 0 | K57: =Inputs!K$65 -> 0 | L57: =Inputs!L$65 -> 0 | M57: =Inputs!M$65 -> 0 | N57: =Inputs!N$65 -> 0 | O57: =Inputs!O$65 -> 0 | P57: =Inputs!P$65 -> 0 | Q57: =Inputs!Q$65 -> 0 | R57: =Inputs!R$65 -> 0 | S57: =Inputs!S$65 -> 0 | T57: =Inputs!T$65 -> 0 | U57: =Inputs!U$65 -> 0
E59: RPI: April - index | G59: index | J59: =IF(J44 > 0, J44, I59 * (1 + J$57)) -> 242.5 | K59: =IF(K44 > 0, K44, J59 * (1 + K$57)) -> 249.5 | L59: 255.7 | M59: 258 | N59: 261.4 | O59: 270.6 | P59: 279.7 | Q59: 288.2 | R59: 288.2 | S59: 288.2 | T59: 288.2 | U59: 288.2
E60: RPI: May - index | G60: index | J60: =IF(J45 > 0, J45, I60 * (1 + J$57)) -> 242.4 | K60: 250 | L60: 255.9 | M60: 258.5 | N60: 262.1 | O60: 271.7 | P60: 280.7 | Q60: 289.2 | R60: 289.2 | S60: 289.2 | T60: 289.2 | U60: 289.2
E61: RPI: June - index | G61: index | J61: =IF(J46 > 0, J46, I61 * (1 + J$57)) -> 241.8 | K61: 249.7 | L61: 256.3 | M61: 258.9 | N61: 263.1 | O61: 272.3 | P61: 281.5 | Q61: 289.6 | R61: 289.6 | S61: 289.6 | T61: 289.6 | U61: 289.6
E62: RPI: July - index | G62: index | J62: =IF(J47 > 0, J47, I62 * (1 + J$57)) -> 242.1 | K62: 249.7 | L62: 256 | M62: 258.6 | N62: 263.4 | O62: 272.9 | P62: 281.7 | Q62: 289.5 | R62: 289.5 | S62: 289.5 | T62: 289.5 | U62: 289.5
E63: RPI: August - index | G63: index | J63: =IF(J48 > 0, J48, I63 * (1 + J$57)) -> 243 | K63: 251 | L63: 257 | M63: 259.8 | N63: 264.4 | O63: 274.7 | P63: 284.2 | Q63: 291.7 | R63: 291.7 | S63: 291.7 | T63: 291.7 | U63: 291.7
E64: RPI: September- index | G64: index | J64: =IF(J49 > 0, J49, I64 * (1 + J$57)) -> 244.2 | K64: 251.9 | L64: 257.6 | M64: 259.6 | N64: 264.9 | O64: 275.1 | P64: 284.1 | Q64: 291 | R64: 291 | S64: 291 | T64: 291 | U64: 291
E65: RPI: October - index | G65: index | J65: =IF(J50 > 0, J50, I65 * (1 + J$57)) -> 245.6 | K65: 251.9 | L65: 257.7 | M65: 259.5 | N65: 264.8 | O65: 275.3 | P65: 284.5 | Q65: 290.4 | R65: 290.4 | S65: 290.4 | T65: 290.4 | U65: 290.4
E66: RPI: November - index | G66: index | J66: =IF(J51 > 0, J51, I66 * (1 + J$57)) -> 245.6 | K66: 252.1 | L66: 257.1 | M66: 259.8 | N66: 265.5 | O66: 275.8 | P66: 284.6 | Q66: 291 | R66: 291 | S66: 291 | T66: 291 | U66: 291
E67: RPI: December - index | G67: index | J67: =IF(J52 > 0, J52, I67 * (1 + J$57)) -> 246.8 | K67: 253.4 | L67: 257.5 | M67: 260.6 | N67: 267.1 | O67: 278.1 | P67: 285.6 | Q67: 291.9 | R67: 291.9 | S67: 291.9 | T67: 291.9 | U67: 291.9
E68: RPI: January - index | G68: index | J68: =IF(J53 > 0, J53, I68 * (1 + J$57)) -> 245.8 | K68: 252.6 | L68: 255.4 | M68: 258.8 | N68: 265.5 | O68: 276 | P68: 283 | Q68: 290.6 | R68: 290.6 | S68: 290.6 | T68: 290.6 | U68: 290.6
E69: RPI: February - index | G69: index | J69: =IF(J54 > 0, J54, I69 * (1 + J$57)) -> 247.6 | K69: 254.2 | L69: 256.7 | M69: 260 | N69: 268.4 | O69: 278.1 | P69: 285 | Q69: 292 | R69: 292 | S69: 292 | T69: 292 | U69: 292
E70: RPI: March - index | G70: index | J70: =IF(J55 > 0, J55, I70 * (1 + J$57)) -> 248.7 | K70: 254.8 | L70: 257.1 | M70: 261.1 | N70: 269.3 | O70: 278.3 | P70: 285.1 | Q70: 292.6 | R70: 292.6 | S70: 292.6 | T70: 292.6 | U70: 292.6
E72: RPI: Financial year average - index | G72: index | J72: =AVERAGE(J59:J70) -> 244.675 | K72: 251.7333333 | L72: 256.6666667 | M72: 259.4333333 | N72: 264.9916667 | O72: 274.9083333 | P72: 283.3083333 | Q72: 290.6416667 | R72: 290.6416667 | S72: 290.6416667 | T72: 290.6416667 | U72: 290.6416667
A75: INFLATION
B77: Inflation of 2013 base prices FYA - RPI
E78: =Inputs!E$69 -> Year reference for FYA base price 1 | F78: =Inputs!F$69 -> 2013 | G78: =Inputs!G$69 -> year #
E79: =Inputs!E$72 -> Year reference for FYE end price | F79: =Inputs!F$72 -> 2020 | G79: =Inputs!G$72 -> year #
E80: =E$72 -> RPI: Financial year average - index | F80: 0 | G80: index | H80: 0 | I80: 0 | J80: 244.675 | K80: 251.7333333 | L80: 256.6666667 | M80: 259.4333333 | N80: 264.9916667 | O80: 274.9083333 | P80: 283.3083333 | Q80: 290.6416667 | R80: 290.6416667 | S80: 290.6416667 | T80: 290.6416667 | U80: 290.6416667
E81: =E$70 -> RPI: March - index | F81: 0 | G81: index | H81: 0 | I81: 0 | J81: 248.7 | K81: 254.8 | L81: 257.1 | M81: 261.1 | N81: 269.3 | O81: 278.3 | P81: 285.1 | Q81: 292.6 | R81: 292.6 | S81: 292.6 | T81: 292.6 | U81: 292.6
E82: ="RPI inflate from " & F78 & " FYA to " & F79 & " FYE" -> RPI inflate from 2013 FYA to 2020 FYE | F82: =INDEX($J81:$U81, 1, MATCH($F79,$J$4:$U$4)) / INDEX($J80:$U80, 1, MATCH($F78,$J$4:$U$4)) -> 1.195872075 | G82: factor
B84: Inflation of 2018 base prices FYA - RPI
E85: =Inputs!E$70 -> Year reference for FYA base price 2 | F85: =Inputs!F$70 -> 2018 | G85: =Inputs!G$70 -> year #
E86: =Inputs!E$72 -> Year reference for FYE end price | F86: =Inputs!F$72 -> 2020 | G86: =Inputs!G$72 -> year #
E87: =E$72 -> RPI: Financial year average - index | F87: 0 | G87: index | H87: 0 | I87: 0 | J87: 244.675 | K87: 251.7333333 | L87: 256.6666667 | M87: 259.4333333 | N87: 264.9916667 | O87: 274.9083333 | P87: 283.3083333 | Q87: 290.6416667 | R87: 290.6416667 | S87: 290.6416667 | T87: 290.6416667 | U87: 290.6416667
E88: =E$70 -> RPI: March - index | F88: 0 | G88: index | H88: 0 | I88: 0 | J88: 248.7 | K88: 254.8 | L88: 257.1 | M88: 261.1 | N88: 269.3 | O88: 278.3 | P88: 285.1 | Q88: 292.6 | R88: 292.6 | S88: 292.6 | T88: 292.6 | U88: 292.6
E89: ="RPI inflate from " & F85 & " FYA to " & F86 & " FYE" -> RPI inflate from 2018 FYA to 2020 FYE | F89: =INDEX($J88:$U88, 1, MATCH($F86,$J$4:$U$4)) / INDEX($J87:$U87, 1, MATCH($F85,$J$4:$U$4)) -> 1.064354785 | G89: factor
B91: Inflation of 2018 base prices FYE - RPI
E92: =Inputs!E$71 -> Year reference for FYE base price | F92: =Inputs!F$71 -> 2018 | G92: =Inputs!G$71 -> year #
E93: =Inputs!E$72 -> Year reference for FYE end price | F93: =Inputs!F$72 -> 2020 | G93: =Inputs!G$72 -> year #
E94: =E$70 -> RPI: March - index | F94: 0 | G94: index | H94: 0 | I94: 0 | J94: 248.7 | K94: 254.8 | L94: 257.1 | M94: 261.1 | N94: 269.3 | O94: 278.3 | P94: 285.1 | Q94: 292.6 | R94: 292.6 | S94: 292.6 | T94: 292.6 | U94: 292.6
E95: ="RPI inflate from " & F92 & " FYE to " & F93 & " FYE" -> RPI inflate from 2018 FYE to 2020 FYE | F95: =INDEX($J94:$U94, 1, MATCH($F93,$J$4:$U$4)) / INDEX($J94:$U94, 1, MATCH($F92,$J$4:$U$4)) -> 1.051383399 | G95: factor
A98: DEFLATION
E100: =Inputs!E$76 -> Year reference for FYE base price | F100: =Inputs!F$76 -> 2020 | G100: =Inputs!G$76 -> year #
E101: =Inputs!E$77 -> Year reference for FYA end price | F101: =Inputs!F$77 -> 2018 | G101: =Inputs!G$77 -> year #
E102: =Inputs!E$78 -> Year reference for FYE base price - IFRS 16 and Other | F102: =Inputs!F$78 -> 2018 | G102: =Inputs!G$78 -> year #
E103: =E$36 -> CPIH: March - index | F103: =F$36 -> 0 | G103: index | H103: 0 | I103: 0 | J103: 97.8 | K103: 99.3 | L103: 99.6 | M103: 100.4 | N103: 102.7 | O103: 105.1 | P103: 107 | Q103: 108.6 | R103: 108.6 | S103: 108.6 | T103: 108.6 | U103: 108.6
E104: =E$38 -> CPIH: Financial year average - index | F104: 0 | G104: index | H104: 0 | I104: 0 | J104: 96.58333333 | K104: 98.6 | L104: 99.725 | M104: 100.1666667 | N104: 101.5416667 | O104: 104.2166667 | P104: 106.4333333 | Q104: 108.2416667 | R104: 108.2416667 | S104: 108.2416667 | T104: 108.2416667 | U104: 108.2416667
E105: ="CPIH deflate from " & F100 & " FYE to " & F101 & " FYA" -> CPIH deflate from 2020 FYE to 2018 FYA | F105: =INDEX($J104:$U104, 1, MATCH($F101,$J$4:$U$4)) / INDEX($J103:$U103, 1, MATCH($F100,$J$4:$U$4)) -> 0.9596378146 | G105: factor
E106: ="CPIH deflate from " & F100 & " FYE to " & F101 & " FYE" -> CPIH deflate from 2020 FYE to 2018 FYE | F106: =INDEX($J103:$U103, 1, MATCH($F101,$J$4:$U$4)) / INDEX($J103:$U103, 1, MATCH($F100,$J$4:$U$4)) -> 0.967771639 | G106: factor
E107: CPIH deflate from 2018 FYE to 2018 FYA - IFRS 16 and Other | F107: =INDEX($J104:$U104, 1, MATCH($F101,$J$4:$U$4)) / INDEX($J103:$U103, 1, MATCH($F102,$J$4:$U$4)) -> 0.9915953061 | G107: factor

Sheet Calc
A1: =RIGHT(CELL("filename", $A$1), LEN(CELL("filename", $A$1)) - SEARCH("]", CELL("filename", $A$1))) -> Calc
E2: =Time!E$25 -> Model period ending | J2: =Time!J$25 -> 2013-03-31 | K2: =Time!K$25 -> 2014-03-31 | L2: =Time!L$25 -> 2015-03-31 | M2: =Time!M$25 -> 2016-03-31 | N2: =Time!N$25 -> 2017-03-31 | O2: =Time!O$25 -> 2018-03-31 | P2: =Time!P$25 -> 2019-03-31 | Q2: =Time!Q$25 -> 2020-03-31 | R2: =Time!R$25 -> 2021-03-31 | S2: =Time!S$25 -> 2022-03-31 | T2: =Time!T$25 -> 2023-03-31 | U2: =Time!U$25 -> 2024-03-31
E3: =Time!E$80 -> Timeline label | J3: =Time!J$80 -> Pre-Fcst | K3: =Time!K$80 -> Pre-Fcst | L3: =Time!L$80 -> Pre-Fcst | M3: =Time!M$80 -> Pre-Fcst | N3: =Time!N$80 -> Pre-Fcst | O3: =Time!O$80 -> Pre-Fcst | P3: =Time!P$80 -> Pre-Fcst | Q3: =Time!Q$80 -> Pre-Fcst | R3: =Time!R$80 -> Forecast | S3: =Time!S$80 -> Forecast | T3: =Time!T$80 -> Forecast | U3: =Time!U$80 -> Forecast
E4: =Time!E$103 -> Financial year ending | J4: =Time!J$103 -> 2013 | K4: =Time!K$103 -> 2014 | L4: =Time!L$103 -> 2015 | M4: =Time!M$103 -> 2016 | N4: =Time!N$103 -> 2017 | O4: =Time!O$103 -> 2018 | P4: =Time!P$103 -> 2019 | Q4: =Time!Q$103 -> 2020 | R4: =Time!R$103 -> 2021 | S4: =Time!S$103 -> 2022 | T4: =Time!T$103 -> 2023 | U4: =Time!U$103 -> 2024
E5: =Time!E$10 -> Model column counter | F5: Constant | G5: Unit | H5: Total | J5: =Time!J$10 -> 1 | K5: =Time!K$10 -> 2 | L5: =Time!L$10 -> 3 | M5: =Time!M$10 -> 4 | N5: =Time!N$10 -> 5 | O5: =Time!O$10 -> 6 | P5: =Time!P$10 -> 7 | Q5: =Time!Q$10 -> 8 | R5: =Time!R$10 -> 9 | S5: =Time!S$10 -> 10 | T5: =Time!T$10 -> 11 | U5: =Time!U$10 -> 12
A7: WATER SERVICES
B9: Water RCV closing balance at 31 March 2020
A10: =Inputs!A$85 -> APP8001W | E10: =Inputs!E$85 -> Wholesale water closing RCV at 31 March 2020 (from PR14 FD) | F10: =Inputs!F$85 -> 2417.753651 | G10: =Inputs!G$85 -> £m
A11: =Inputs!A$86 -> C00572_L021 | E11: =Inputs!E$86 -> Water ~ Total Adjustment RCV carry forward to PR19 | F11: =Inputs!F$86 -> 3.029 | G11: =Inputs!G$86 -> £m
A12: =Inputs!A$87 -> APP25001 | E12: =Inputs!E$87 -> Water ~ CIS RCV inflation correction | F12: =Inputs!F$87 -> -40.01 | G12: =Inputs!G$87 -> £m
A13: =Inputs!A$88 -> APP27029 | E13: =Inputs!E$88 -> Net performance payment / (penalty) applied to RCV for end of period ODI adjustments ~ Water resources | F13: =Inputs!F$88 -> 0 | G13: =Inputs!G$88 -> £m
A14: =Inputs!A$89 -> APP27030 | E14: =Inputs!E$89 -> Net performance payment / (penalty) applied to RCV for end of period ODI adjustments ~ Water network plus | F14: =Inputs!F$89 -> -14.4484116 | G14: =Inputs!G$89 -> £m
A15: =Inputs!A$90 -> C_WS15025_PR19PD006 | E15: =Inputs!E$90 -> Water: RCV adjustment from totex menu model | F15: =Inputs!F$90 -> 45.03133763 | G15: =Inputs!G$90 -> £m
E17: =Indexation!E$82 -> RPI inflate from 2013 FYA to 2020 FYE | F17: =Indexation!F$82 -> 1.195872075 | G17: =Indexation!G$82 -> factor
E19: =E10 & " at 2020 FYE price base" -> Wholesale water closing RCV at 31 March 2020 (from PR14 FD) at 2020 FYE price base | F19: =F10 * F$17 -> 2891.324076 | G19: £m
E20: Water ~ Total Adjustment RCV carry forward to PR19 at 2020 FYE price base | F20: 3.622296516 | G20: £m
E21: Water ~ CIS RCV inflation correction at 2020 FYE price base | F21: -47.84684173 | G21: £m
E22: Net performance payment / (penalty) applied to RCV for end of period ODI adjustments ~ Water resources at 2020 FYE price base | F22: 0 | G22: £m
E23: Net performance payment / (penalty) applied to RCV for end of period ODI adjustments ~ Water network plus at 2020 FYE price base | F23: -17.27845196 | G23: £m
E24: Water: RCV adjustment from totex menu model at 2020 FYE price base | F24: 53.85171918 | G24: £m
A26: =Inputs!A$92 -> C_A7010W_PR19PD003 | E26: =Inputs!E$92 -> Water ~ NPV effect of 50% of proceeds from disposals of interest in land | F26: =Inputs!F$92 -> -1.457962234 | G26: =Inputs!G$92 -> £m
E28: =Indexation!E$89 -> RPI inflate from 2018 FYA to 2020 FYE | F28: =Indexation!F$89 -> 1.064354785 | G28: =Indexation!G$89 -> factor
E30: =E26 & " at 2020 FYE price base" -> Water ~ NPV effect of 50% of proceeds from disposals of interest in land at 2020 FYE price base | F30: =F26 * F28 -> -1.55178908 | G30: £m
C32: IFRS16 and Other RCV adjustments expressed in 2017-18 FYA CPIH deflated price base
A33: =Inputs!A$91 -> APP8009W | E33: =Inputs!E$91 -> Water ~ Other adjustment to wholesale RCV | F33: =Inputs!F$91 -> 0 | G33: =Inputs!G$91 -> £m
A34: =Inputs!A$99 -> APP33021WR | E34: =Inputs!E$99 -> Water resources IFRS16 RCV adjustment | F34: =Inputs!F$99 -> 0.3694056592 | G34: =Inputs!G$99 -> £m
A35: =Inputs!A$100 -> APP33021WNP | E35: =Inputs!E$100 -> Water network plus IFRS16 RCV adjustment | F35: =Inputs!F$100 -> 6.935106056 | G35: =Inputs!G$100 -> £m
E37: =Indexation!E$107 -> CPIH deflate from 2018 FYE to 2018 FYA - IFRS 16 and Other | F37: =Indexation!F$107 -> 0.9915953061 | G37: =Indexation!G$107 -> factor
A39: C030 | E39: =E33 & " at 2017-18 FYA CPIH deflated price base" -> Water ~ Other adjustment to wholesale RCV at 2017-18 FYA CPIH deflated price base | F39: =F33 * F$37 -> 0 | G39: £m
A40: C_APP8022WR | E40: =E34 & " at 2017-18 FYA CPIH deflated price base" -> Water resources IFRS16 RCV adjustment at 2017-18 FYA CPIH deflated price base | F40: =F34 * F$37 -> 0.3663009177 | G40: £m
A41: C_APP8022WN | E41: =E35 & " at 2017-18 FYA CPIH deflated price base" -> Water network plus IFRS16 RCV adjustment at 2017-18 FYA CPIH deflated price base | F41: =F35 * F$37 -> 6.876818612 | G41: £m
C43: Values expressed in 2017-18 FYE CPIH deflated price base for table App8
E44: =E$19 -> Wholesale water closing RCV at 31 March 2020 (from PR14 FD) at 2020 FYE price base | F44: =F$19 -> 2891.324076 | G44: £m
E45: =E$20 -> Water ~ Total Adjustment RCV carry forward to PR19 at 2020 FYE price base | F45: =F$20 -> 3.622296516 | G45: £m
E46: =E$21 -> Water ~ CIS RCV inflation correction at 2020 FYE price base | F46: =F$21 -> -47.84684173 | G46: £m
E47: =E$30 -> Water ~ NPV effect of 50% of proceeds from disposals of interest in land at 2020 FYE price base | F47: =F$30 -> -1.55178908 | G47: £m
E48: =E$22 -> Net performance payment / (penalty) applied to RCV for end of period ODI adjustments ~ Water resources at 2020 FYE price base | F48: =F$22 -> 0 | G48: £m
E49: =E$23 -> Net performance payment / (penalty) applied to RCV for end of period ODI adjustments ~ Water network plus at 2020 FYE price base | F49: =F$23 -> -17.27845196 | G49: £m
E50: =E$24 -> Water: RCV adjustment from totex menu model at 2020 FYE price base | F50: =F$24 -> 53.85171918 | G50: £m
E53: =Indexation!E$106 -> CPIH deflate from 2020 FYE to 2018 FYE | F53: =Indexation!F$106 -> 0.967771639 | G53: =Indexation!G$106 -> factor
A55: C_APP8002W | E55: Wholesale water closing RCV at 31 March 2020 before midnight adjustments at 2017-18 FYE CPIH deflated price base | F55: =F44 * F$53 -> 2798.14144 | G55: £m
A56: C_APP8003W | E56: Water ~ Total Adjustment RCV carry forward to PR19 at 2017-18 FYE CPIH deflated price base | F56: 3.505555836 | G56: £m
A57: C_APP8004W | E57: Water ~ CIS RCV inflation correction at 2017-18 FYE CPIH deflated price base | F57: -46.30481644 | G57: £m
A58: C_APP8005W | E58: Water ~ NPV effect of 50% of proceeds from disposals of interest in land at 2017-18 FYE CPIH deflated price base | F58: -1.501777461 | G58: £m
A59: C_APP8006W | E59: Water ~ ODI RCV adjustment allocated to Water resources at 2017-18 FYE CPIH deflated price base | F59: 0 | G59: £m
A60: C_APP8007W | E60: Water ~ ODI RCV adjustment allocated to Water network plus at 2017-18 FYE CPIH deflated price base | F60: -16.72159578 | G60: £m
A61: C_APP8008W | E61: Water ~ Totex menu RCV adjustment at 2017-18 FYE CPIH deflated price base | F61: 52.11616654 | G61: £m
A62: =A$33 -> APP8009W | B62: =B$33 -> 0 | C62: 0 | D62: 0 | E62: =E$33 & " at 2017-18 FYE CPIH deflated price base" -> Water ~ Other adjustment to wholesale RCV at 2017-18 FYE CPIH deflated price base | F62: 0 | G62: £m
A63: C_APP8010W | E63: Total wholesale water RCV at 31 March 2020 post midnight adjustments before allocation to price control units at 2017-18 FYE CPIH deflated price base | F63: =SUM(F55:F62) -> 2789.234973 | G63: £m
C65: PR14 reconciliation adjustments expressed in 2017-18 FYA CPIH deflated price base
E66: =E$19 -> Wholesale water closing RCV at 31 March 2020 (from PR14 FD) at 2020 FYE price base | F66: =F$19 -> 2891.324076 | G66: £m
E67: =E$20 -> Water ~ Total Adjustment RCV carry forward to PR19 at 2020 FYE price base | F67: =F$20 -> 3.622296516 | G67: £m
E68: =E$21 -> Water ~ CIS RCV inflation correction at 2020 FYE price base | F68: =F$21 -> -47.84684173 | G68: £m
E69: =E$30 -> Water ~ NPV effect of 50% of proceeds from disposals of interest in land at 2020 FYE price base | F69: =F$30 -> -1.55178908 | G69: £m
E70: =E$22 -> Net performance payment / (penalty) applied to RCV for end of period ODI adjustments ~ Water resources at 2020 FYE price base | F70: =F$22 -> 0 | G70: £m
E71: =E$23 -> Net performance payment / (penalty) applied to RCV for end of period ODI adjustments ~ Water network plus at 2020 FYE price base | F71: =F$23 -> -17.27845196 | G71: £m
E72: =E$24 -> Water: RCV adjustment from totex menu model at 2020 FYE price base | F72: =F$24 -> 53.85171918 | G72: £m
E75: =Indexation!E$105 -> CPIH deflate from 2020 FYE to 2018 FYA | F75: =Indexation!F$105 -> 0.9596378146 | G75: =Indexation!G$105 -> factor
A77: C_RCV_W | E77: Wholesale water closing RCV at 31 March 2020 (from PR14 FD) at 2017-18 FYA CPIH deflated prices | F77: =F66 * F$75 -> 2774.623918 | G77: £m
A78: C_APP25003 | E78: Water ~ Total adjustment RCV carry forward to PR19 at 2017-18 FYA CPIH deflated price base | F78: 3.476092712 | G78: £m
A79: C_APP25007 | E79: Water ~ CIS RCV inflation correction at 2017-18 FYA CPIH deflated price base | F79: -45.91563863 | G79: £m
A80: C_A7011W | E80: Water ~ NPV effect of 50% of proceeds from disposals of interest in land at 2017-18 FYA CPIH deflated price base | F80: -1.489155481 | G80: £m
A81: C_APP27048 | E81: ODI end of period RCV adjustment ~ Water resources at 2017-18 FYA CPIH deflated price base | F81: 0 | G81: £m
A82: C_APP27049 | E82: ODI end of period RCV adjustment ~ Water network plus at 2017-18 FYA CPIH deflated price base | F82: -16.58105588 | G82: £m
A83: C_WS15027 | E83: Water: Totex menu RCV adjustment at 2017-18 FYA CPIH deflated price base | F83: 51.67814611 | G83: £m
A84: =A$39 -> C030 | B84: 0 | C84: 0 | D84: 0 | E84: Water ~ Other adjustment to wholesale RCV at 2017-18 FYA CPIH deflated price base | F84: =F$39 -> 0 | G84: =G$39 -> £m
B86: Total wholesale water RCV at 31 March 2020 post midnight adjustments before allocation to price control units at 2020 FYE price base
E87: =E$19 -> Wholesale water closing RCV at 31 March 2020 (from PR14 FD) at 2020 FYE price base | F87: 2891.324076 | G87: £m
E88: =E$20 -> Water ~ Total Adjustment RCV carry forward to PR19 at 2020 FYE price base | F88: =F$20 -> 3.622296516 | G88: =G$20 -> £m
E89: =E$21 -> Water ~ CIS RCV inflation correction at 2020 FYE price base | F89: =F$21 -> -47.84684173 | G89: =G$21 -> £m
E90: =E$22 -> Net performance payment / (penalty) applied to RCV for end of period ODI adjustments ~ Water resources at 2020 FYE price base | F90: =F$22 -> 0 | G90: =G$22 -> £m
E91: =E$23 -> Net performance payment / (penalty) applied to RCV for end of period ODI adjustments ~ Water network plus at 2020 FYE price base | F91: =F$23 -> -17.27845196 | G91: £m
E92: =E$24 -> Water: RCV adjustment from totex menu model at 2020 FYE price base | F92: =F$24 -> 53.85171918 | G92: =G$24 -> £m
E94: =E$30 -> Water ~ NPV effect of 50% of proceeds from disposals of interest in land at 2020 FYE price base | F94: =F$30 -> -1.55178908 | G94: =G$30 -> £m
E95: Total wholesale water RCV at 31 March 2020 post midnight adjustments before allocation to price control units at 2020 FYE price base | F95: =SUM(F87:F94) -> 2882.121009 | G95: £m
B97: Water resources
E98: =E$95 -> Total wholesale water RCV at 31 March 2020 post midnight adjustments before allocation to price control units at 2020 FYE price base | F98: 2882.121009 | G98: £m
A99: =Inputs!A$96 -> WS12019WR | E99: =Inputs!E$96 -> Water resources % of total wholesale water RCV ~ 31 March 2020 | F99: =Inputs!F$96 -> 0.2006833407 | G99: =Inputs!G$96 -> %
E100: =E$90 -> Net performance payment / (penalty) applied to RCV for end of period ODI adjustments ~ Water resources at 2020 FYE price base | F100: =F$90 -> 0 | G100: £m
E101: =E$91 -> Net performance payment / (penalty) applied to RCV for end of period ODI adjustments ~ Water network plus at 2020 FYE price base | F101: =F$91 -> -17.27845196 | G101: £m
E102: Water resources opening RCV at 2020 FYE price base | F102: =(F98 - F100 - F101) * F99 + F100 -> 581.8611699 | G102: £m
E104: =E$102 -> Water resources opening RCV at 2020 FYE price base | F104: 581.8611699 | G104: £m
E105: =Inputs!E$94 -> % of RCV to index by RPI - water services | F105: =Inputs!F$94 -> 0.5 | G105: =Inputs!G$94 -> %
E106: Water resources RPI linked RCV at 2020 FYE price base | F106: =F104 * F105 -> 290.930585 | G106: £m
E108: =E$102 -> Water resources opening RCV at 2020 FYE price base | F108: 581.8611699 | G108: £m
E109: =Inputs!E$94 -> % of RCV to index by RPI - water services | F109: =Inputs!F$94 -> 0.5 | G109: =Inputs!G$94 -> %
E110: Water resources CPIH linked RCV at 2020 FYE price base | F110: =F108 * (1 - F109) -> 290.930585 | G110: £m
E112: =E$106 -> Water resources RPI linked RCV at 2020 FYE price base | F112: 290.930585 | G112: £m
E113: =E$110 -> Water resources CPIH linked RCV at 2020 FYE price base | F113: 290.930585 | G113: £m
E115: =Indexation!E$105 -> CPIH deflate from 2020 FYE to 2018 FYA | F115: =Indexation!F$105 -> 0.9596378146 | G115: =Indexation!G$105 -> factor
E117: Water resources 2020 RCV RPI inflated ~ 1 April (opening balance excluding IFRS16 and Other adjustment) at 2017-18 CPIH deflated price base | F117: =F112 * F$115 -> 279.1879908 | G117: £m
E118: Water resources 2020 RCV CPIH inflated ~ 1 April (opening balance excluding IFRS16 and Other adjustment) at 2017-18 CPIH deflated price base | F118: =F113 * F$115 -> 279.1879908 | G118: £m
E120: =E$39 -> Water ~ Other adjustment to wholesale RCV at 2017-18 FYA CPIH deflated price base | F120: =F$39 -> 0 | G120: £m
A121: =Inputs!A$96 -> WS12019WR | E121: =Inputs!E$96 -> Water resources % of total wholesale water RCV ~ 31 March 2020 | F121: =Inputs!F$96 -> 0.2006833407 | G121: =Inputs!G$96 -> %
E122: Water resources other adjustment at 2017-18 FYA CPIH deflated price base | F122: =F120 * F$121 -> 0 | G122: £m
E124: =E$122 -> Water resources other adjustment at 2017-18 FYA CPIH deflated price base | F124: =F$122 -> 0 | G124: =G122 -> £m
E125: =E$40 -> Water resources IFRS16 RCV adjustment at 2017-18 FYA CPIH deflated price base | F125: =F$40 -> 0.3663009177 | G125: =G40 -> £m
E126: =Inputs!E$94 -> % of RCV to index by RPI - water services | F126: =Inputs!F$94 -> 0.5 | G126: =Inputs!G$94 -> %
E127: Water resources other adjustment RPI inflated RCV at 2017-18 FYA CPIH deflated price base | F127: =F124 * F$126 -> 0 | G127: £m
E128: Water resources IFRS16 adjustment RPI inflated RCV at 2017-18 FYA CPIH deflated price base | F128: =F125 * F$126 -> 0.1831504588 | G128: £m
E130: =E$122 -> Water resources other adjustment at 2017-18 FYA CPIH deflated price base | F130: =F$122 -> 0 | G130: =G$122 -> £m
E131: =E$40 -> Water resources IFRS16 RCV adjustment at 2017-18 FYA CPIH deflated price base | F131: =F$40 -> 0.3663009177 | G131: =G40 -> £m
E132: =Inputs!E$94 -> % of RCV to index by RPI - water services | F132: =Inputs!F$94 -> 0.5 | G132: =Inputs!G$94 -> %
E133: Water resources other adjustment CPIH inflated RCV at 2017-18 FYA CPIH deflated price base | F133: =F130 * (1 - F$132) -> 0 | G133: £m
E134: Water resources IFRS16 adjustment CPIH inflated RCV at 2017-18 FYA CPIH deflated price base | F134: =F131 * (1 - F$132) -> 0.1831504588 | G134: £m
E136: =E$117 -> Water resources 2020 RCV RPI inflated ~ 1 April (opening balance excluding IFRS16 and Other adjustment) at 2017-18 CPIH deflated price base | F136: =F$117 -> 279.1879908 | G136: £m
E137: =E$127 -> Water resources other adjustment RPI inflated RCV at 2017-18 FYA CPIH deflated price base | F137: =F$127 -> 0 | G137: £m
E138: =E$128 -> Water resources IFRS16 adjustment RPI inflated RCV at 2017-18 FYA CPIH deflated price base | F138: =F$128 -> 0.1831504588 | G138: £m
A139: C_APP8014WR | E139: Water resources 2020 RCV RPI inflated ~ 1 April (opening balance) at 2017-18 CPIH deflated price base | F139: =F136 + F137 + F138 -> 279.3711412 | G139: £m
E141: =E$118 -> Water resources 2020 RCV CPIH inflated ~ 1 April (opening balance excluding IFRS16 and Other adjustment) at 2017-18 CPIH deflated price base | F141: =F$118 -> 279.1879908 | G141: £m
E142: =E$133 -> Water resources other adjustment CPIH inflated RCV at 2017-18 FYA CPIH deflated price base | F142: =F$133 -> 0 | G142: £m
E143: =E$134 -> Water resources IFRS16 adjustment CPIH inflated RCV at 2017-18 FYA CPIH deflated price base | F143: =F$134 -> 0.1831504588 | G143: £m
A144: C_APP8016WR | E144: Water resources 2020 RCV CPIH inflated ~ 1 April (opening balance) at 2017-18 CPIH deflated price base | F144: =F141 + F142 + F143 -> 279.3711412 | G144: £m
B146: Water network plus
E147: =E$95 -> Total wholesale water RCV at 31 March 2020 post midnight adjustments before allocation to price control units at 2020 FYE price base | F147: 2882.121009 | G147: £m
E148: =Inputs!E$97 -> Water network plus % of total wholesale water RCV ~ 31 March 2020 | F148: =Inputs!F$97 -> 0.7993166593 | G148: =Inputs!G$97 -> %
E149: =E$90 -> Net performance payment / (penalty) applied to RCV for end of period ODI adjustments ~ Water resources at 2020 FYE price base | F149: =F$90 -> 0 | G149: £m
E150: =E$91 -> Net performance payment / (penalty) applied to RCV for end of period ODI adjustments ~ Water network plus at 2020 FYE price base | F150: =F$91 -> -17.27845196 | G150: £m
E151: Water network plus opening RCV at 2020 FYE price base | F151: =(F147 - F149 - F150) * F148 + F150 -> 2300.259839 | G151: £m
E153: =E$151 -> Water network plus opening RCV at 2020 FYE price base | F153: 2300.259839 | G153: £m
E154: =Inputs!E$94 -> % of RCV to index by RPI - water services | F154: =Inputs!F$94 -> 0.5 | G154: =Inputs!G$94 -> %
E155: Water network plus RPI linked RCV at 2020 FYE price base | F155: =F153 * F154 -> 1150.129919 | G155: £m
E157: =E$151 -> Water network plus opening RCV at 2020 FYE price base | F157: 2300.259839 | G157: £m
E158: =Inputs!E$94 -> % of RCV to index by RPI - water services | F158: =Inputs!F$94 -> 0.5 | G158: =Inputs!G$94 -> %
E159: Water network plus CPIH linked RCV at 2020 FYE price base | F159: =F157 * (1 - F158) -> 1150.129919 | G159: £m
E161: =E$155 -> Water network plus RPI linked RCV at 2020 FYE price base | F161: =F$155 -> 1150.129919 | G161: £m
E162: =E$159 -> Water network plus CPIH linked RCV at 2020 FYE price base | F162: 1150.129919 | G162: £m
E164: =Indexation!E$105 -> CPIH deflate from 2020 FYE to 2018 FYA | F164: =Indexation!F$105 -> 0.9596378146 | G164: =Indexation!G$105 -> factor
E166: Water network plus RCV RPI inflated ~ 1 April (opening balance excluding IFRS16 and other adjustment) at 2017-18 CPIH deflated price base | F166: =F161 * F$164 -> 1103.708162 | G166: £m
E167: Water network plus RCV CPIH inflated ~ 1 April (opening balance excluding IFRS16 and other adjustment) at 2017-18 CPIH deflated price base | F167: =F162 * F$164 -> 1103.708162 | G167: £m
E169: =E$39 -> Water ~ Other adjustment to wholesale RCV at 2017-18 FYA CPIH deflated price base | F169: =F$39 -> 0 | G169: =G$39 -> £m
A170: =Inputs!A$96 -> WS12019WR | E170: =Inputs!E$96 -> Water resources % of total wholesale water RCV ~ 31 March 2020 | F170: =Inputs!F$96 -> 0.2006833407 | G170: =Inputs!G$96 -> %
E171: Water network plus other adjustment at 2017-18 FYA CPIH deflated price base | F171: =F169 * (1 - F$170) -> 0 | G171: £m
E173: =E$171 -> Water network plus other adjustment at 2017-18 FYA CPIH deflated price base | F173: =F$171 -> 0 | G173: £m
E174: =E41 -> Water network plus IFRS16 RCV adjustment at 2017-18 FYA CPIH deflated price base | F174: =F41 -> 6.876818612 | G174: =G41 -> £m
E175: =Inputs!E$94 -> % of RCV to index by RPI - water services | F175: =Inputs!F$94 -> 0.5 | G175: =Inputs!G$94 -> %
E176: Water network plus other adjustment RPI inflated RCV at 2017-18 FYA CPIH deflated price base | F176: =F173 * F$175 -> 0 | G176: £m
E177: Water network plus IFRS16 adjustment RPI inflated RCV at 2017-18 FYA CPIH deflated price base | F177: =F174 * F175 -> 3.438409306 | G177: £m
E179: =E$171 -> Water network plus other adjustment at 2017-18 FYA CPIH deflated price base | F179: =F$171 -> 0 | G179: £m
E180: =E41 -> Water network plus IFRS16 RCV adjustment at 2017-18 FYA CPIH deflated price base | F180: =F41 -> 6.876818612 | G180: =G41 -> £m
E181: =Inputs!E$94 -> % of RCV to index by RPI - water services | F181: =Inputs!F$94 -> 0.5 | G181: =Inputs!G$94 -> %
E182: Water network plus other adjustment CPIH inflated RCV at 2017-18 FYA CPIH deflated price base | F182: =F179 * (1 - F181) -> 0 | G182: £m
E183: Water network plus IFRS16 adjustment CPIH inflated RCV at 2017-18 FYA CPIH deflated price base | F183: =F180 * (1 - F181) -> 3.438409306 | G183: £m
E185: =E166 -> Water network plus RCV RPI inflated ~ 1 April (opening balance excluding IFRS16 and other adjustment) at 2017-18 CPIH deflated price base | F185: =F166 -> 1103.708162 | G185: =G166 -> £m
E186: =E$176 -> Water network plus other adjustment RPI inflated RCV at 2017-18 FYA CPIH deflated price base | F186: =F$176 -> 0 | G186: £m
E187: =E177 -> Water network plus IFRS16 adjustment RPI inflated RCV at 2017-18 FYA CPIH deflated price base | F187: =F177 -> 3.438409306 | G187: £m
A188: C_APP8014WN | E188: Water network plus RCV RPI inflated ~ 1 April (opening balance) at 2017-18 CPIH deflated price base | F188: =F185 + F186 + F187 -> 1107.146572 | G188: £m
E190: =E167 -> Water network plus RCV CPIH inflated ~ 1 April (opening balance excluding IFRS16 and other adjustment) at 2017-18 CPIH deflated price base | F190: =F167 -> 1103.708162 | G190: =G167 -> £m
E191: =E$182 -> Water network plus other adjustment CPIH inflated RCV at 2017-18 FYA CPIH deflated price base | F191: =F$182 -> 0 | G191: £m
E192: =E183 -> Water network plus IFRS16 adjustment CPIH inflated RCV at 2017-18 FYA CPIH deflated price base | F192: =F183 -> 3.438409306 | G192: £m
A193: C_APP8016WN | E193: Water network plus RCV CPIH inflated ~ 1 April (opening balance) at 2017-18 CPIH deflated price base | F193: =F190 + F191 + F192 -> 1107.146572 | G193: £m
A196: WASTEWATER SERVICES
B198: Wastewater RCV closing balance at 31 March 2020
A199: =Inputs!A$104 -> APP8001WW | E199: =Inputs!E$104 -> Wholesale wastewater closing RCV at 31 March 2020 (from PR14 FD) | F199: =Inputs!F$104 -> 3394.326214 | G199: =Inputs!G$104 -> £m
A200: =Inputs!A$105 -> C00579_L021 | E200: =Inputs!E$105 -> Wastewater ~ Total Adjustment RCV carry forward to PR19 | F200: =Inputs!F$105 -> 3.198 | G200: =Inputs!G$105 -> £m
A201: =Inputs!A$106 -> APP25002 | E201: =Inputs!E$106 -> Wastewater ~ CIS RCV inflation correction | F201: =Inputs!F$106 -> -61.175 | G201: =Inputs!G$106 -> £m
A202: =Inputs!A$107 -> APP27031 | E202: =Inputs!E$107 -> Net performance payment / (penalty) applied to RCV for end of period ODI adjustments ~ Wastewater network plus | F202: =Inputs!F$107 -> 0 | G202: =Inputs!G$107 -> £m
A203: =Inputs!A$108 -> C_WWS15020_PR19PD006 | E203: =Inputs!E$108 -> Wastewater: RCV adjustment from totex menu model | F203: =Inputs!F$108 -> -46.71956112 | G203: =Inputs!G$108 -> £m
E205: =Indexation!E$82 -> RPI inflate from 2013 FYA to 2020 FYE | F205: =Indexation!F$82 -> 1.195872075 | G205: =Indexation!G$82 -> factor
E207: =E199 & " at 2020 FYE price base" -> Wholesale wastewater closing RCV at 31 March 2020 (from PR14 FD) at 2020 FYE price base | F207: =F199 * F$205 -> 4059.179933 | G207: £m
E208: =E200 & " at 2020 FYE price base" -> Wastewater ~ Total Adjustment RCV carry forward to PR19 at 2020 FYE price base | F208: =F200 * F$205 -> 3.824398896 | G208: £m
E209: =E201 & " at 2020 FYE price base" -> Wastewater ~ CIS RCV inflation correction at 2020 FYE price base | F209: =F201 * F$205 -> -73.1574742 | G209: £m
E210: =E202 & " at 2020 FYE price base" -> Net performance payment / (penalty) applied to RCV for end of period ODI adjustments ~ Wastewater network plus at 2020 FYE price base | F210: =F202 * F$205 -> 0 | G210: £m
E211: =E203 & " at 2020 FYE price base" -> Wastewater: RCV adjustment from totex menu model at 2020 FYE price base | F211: =F203 * F$205 -> -55.87061851 | G211: £m
A213: =Inputs!A$114 -> WWS12016BIO | E213: =Inputs!E$114 -> Bioresources RCV (prior to midnight adjustments) 31 March 2020 | F213: =Inputs!F$114 -> 290.68 | G213: =Inputs!G$114 -> £m
A214: =Inputs!A$110 -> C_A7010WW_PR19PD003 | E214: =Inputs!E$110 -> Wastewater ~ NPV effect of 50% of proceeds from disposals of interest in land | F214: =Inputs!F$110 -> 0.2205602909 | G214: =Inputs!G$110 -> £m
E216: =Indexation!E$95 -> RPI inflate from 2018 FYE to 2020 FYE | F216: =Indexation!F$95 -> 1.051383399 | G216: =Indexation!G$95 -> factor
E217: =Indexation!E$89 -> RPI inflate from 2018 FYA to 2020 FYE | F217: =Indexation!F$89 -> 1.064354785 | G217: =Indexation!G$89 -> factor
E219: =E213 & " at 2020 FYE price base" -> Bioresources RCV (prior to midnight adjustments) 31 March 2020 at 2020 FYE price base | F219: =F213 * F216 -> 305.6161265 | G219: £m
E220: =E214 & " at 2020 FYE price base" -> Wastewater ~ NPV effect of 50% of proceeds from disposals of interest in land at 2020 FYE price base | F220: =F214 * F217 -> 0.234754401 | G220: £m
C222: IFRS16 and Other RCV adjustments expressed in 2017-18 FYA CPIH deflated price base
A223: =Inputs!A$109 -> APP8009WW | E223: =Inputs!E$109 -> Wastewater ~ Other adjustment to wholesale RCV | F223: =Inputs!F$109 -> 0 | G223: =Inputs!G$109 -> £m
A224: =Inputs!A$116 -> APP33021BIO | E224: =Inputs!E$116 -> Bioresources IFRS16 RCV adjustment | F224: =Inputs!F$116 -> 1.802034585 | G224: =Inputs!G$116 -> £m
A225: =Inputs!A$117 -> APP33021WWNP | E225: =Inputs!E$117 -> Wastewater network plus IFRS16 RCV adjustment | F225: =Inputs!F$117 -> 6.186740662 | G225: =Inputs!G$117 -> £m
E227: =Indexation!E$107 -> CPIH deflate from 2018 FYE to 2018 FYA - IFRS 16 and Other | F227: =Indexation!F$107 -> 0.9915953061 | G227: =Indexation!G$107 -> factor
A229: C040 | E229: =E223 & " at 2017-18 FYA CPIH deflated price base" -> Wastewater ~ Other adjustment to wholesale RCV at 2017-18 FYA CPIH deflated price base | F229: =F223 * F$227 -> 0 | G229: £m
A230: C_APP8022BIO | E230: =E224 & " at 2017-18 FYA CPIH deflated price base" -> Bioresources IFRS16 RCV adjustment at 2017-18 FYA CPIH deflated price base | F230: =F224 * F$227 -> 1.786889036 | G230: £m
A231: C_APP8022WWN | E231: Wastewater network plus IFRS16 RCV adjustment at 2017-18 FYA CPIH deflated price base | F231: =F225 * F$227 -> 6.134743 | G231: £m
C233: Values expressed in 2017-18 FYE CPIH deflated price base for table App8
E234: =E$207 -> Wholesale wastewater closing RCV at 31 March 2020 (from PR14 FD) at 2020 FYE price base | F234: =F$207 -> 4059.179933 | G234: £m
E235: =E$208 -> Wastewater ~ Total Adjustment RCV carry forward to PR19 at 2020 FYE price base | F235: 3.824398896 | G235: £m
E236: =E$209 -> Wastewater ~ CIS RCV inflation correction at 2020 FYE price base | F236: -73.1574742 | G236: £m
E237: =E$220 -> Wastewater ~ NPV effect of 50% of proceeds from disposals of interest in land at 2020 FYE price base | F237: 0.234754401 | G237: £m
E238: =E$210 -> Net performance payment / (penalty) applied to RCV for end of period ODI adjustments ~ Wastewater network plus at 2020 FYE price base | F238: 0 | G238: £m
E239: =E$211 -> Wastewater: RCV adjustment from totex menu model at 2020 FYE price base | F239: -55.87061851 | G239: £m
E242: =Indexation!E$106 -> CPIH deflate from 2020 FYE to 2018 FYE | F242: =Indexation!F$106 -> 0.967771639 | G242: =Indexation!G$106 -> factor
A244: C_APP8002WW | E244: Wholesale wastewater closing RCV at 31 March 2020 before midnight adjustments at 2017-18 FYE CPIH deflated price base | F244: =F234 * F$242 -> 3928.359217 | G244: £m
A245: C_APP8003WW | E245: Wastewater ~ Total adjustment RCV carry forward to PR19 at 2017-18 FYE CPIH deflated price base | F245: 3.701144788 | G245: £m
A246: C_APP8004WW | E246: Wastewater ~ CIS RCV inflation correction at 2017-18 FYE CPIH deflated price base | F246: -70.79972872 | G246: £m
A247: C_APP8005WW | E247: Wastewater ~ NPV effect of 50% of proceeds from disposals of interest in land at 2017-18 FYE CPIH deflated price base | F247: 0.2271886514 | G247: £m
A248: C_APP8006WW | E248: Wastewater ~ ODI RCV adjustment allocated to Wastewater network plus at 2017-18 FYE CPIH deflated price base | F248: 0 | G248: £m
A249: C_APP8008WW | E249: Wastewater ~ Totex menu RCV adjustment at 2017-18 FYE CPIH deflated price base | F249: -54.07000005 | G249: £m
A250: =A223 -> APP8009WW | B250: =B223 -> 0 | C250: 0 | D250: 0 | E250: =E223 & " at 2017-18 FYE CPIH deflated price base" -> Wastewater ~ Other adjustment to wholesale RCV at 2017-18 FYE CPIH deflated price base | F250: 0 | G250: £m
A251: C_APP8010WW | E251: Total wholesale wastewater RCV at 31 March 2020 post midnight adjustments before allocation to price control units at 2017-18 FYE CPIH deflated price base | F251: =SUM(F244:F250) -> 3807.417822 | G251: £m
C253: PR14 reconciliation adjustments expressed in 2017-18 FYA CPIH deflated price base
E254: =E234 -> Wholesale wastewater closing RCV at 31 March 2020 (from PR14 FD) at 2020 FYE price base | F254: =F234 -> 4059.179933 | G254: £m
E255: =E$208 -> Wastewater ~ Total Adjustment RCV carry forward to PR19 at 2020 FYE price base | F255: 3.824398896 | G255: £m
E256: =E$209 -> Wastewater ~ CIS RCV inflation correction at 2020 FYE price base | F256: -73.1574742 | G256: £m
E257: =E$220 -> Wastewater ~ NPV effect of 50% of proceeds from disposals of interest in land at 2020 FYE price base | F257: 0.234754401 | G257: £m
E258: =E$210 -> Net performance payment / (penalty) applied to RCV for end of period ODI adjustments ~ Wastewater network plus at 2020 FYE price base | F258: 0 | G258: £m
... 151 more rows

Sheet Summary_Output
A1: =RIGHT(CELL("filename", $A$1), LEN(CELL("filename", $A$1)) - SEARCH("]", CELL("filename", $A$1))) -> Summary_Output
E2: =Time!E$25 -> Model period ending | K2: =Time!K$25 -> 2014-03-31 | L2: =Time!L$25 -> 2015-03-31 | M2: =Time!M$25 -> 2016-03-31 | N2: =Time!N$25 -> 2017-03-31 | O2: =Time!O$25 -> 2018-03-31 | P2: =Time!P$25 -> 2019-03-31 | Q2: =Time!Q$25 -> 2020-03-31 | R2: =Time!R$25 -> 2021-03-31 | S2: =Time!S$25 -> 2022-03-31 | T2: =Time!T$25 -> 2023-03-31 | U2: =Time!U$25 -> 2024-03-31
E3: =Time!E$80 -> Timeline label | K3: =Time!K$80 -> Pre-Fcst | L3: =Time!L$80 -> Pre-Fcst | M3: =Time!M$80 -> Pre-Fcst | N3: =Time!N$80 -> Pre-Fcst | O3: =Time!O$80 -> Pre-Fcst | P3: =Time!P$80 -> Pre-Fcst | Q3: =Time!Q$80 -> Pre-Fcst | R3: =Time!R$80 -> Forecast | S3: =Time!S$80 -> Forecast | T3: =Time!T$80 -> Forecast | U3: =Time!U$80 -> Forecast
E4: =Time!E$103 -> Financial year ending | K4: =Time!K$103 -> 2014 | L4: =Time!L$103 -> 2015 | M4: =Time!M$103 -> 2016 | N4: =Time!N$103 -> 2017 | O4: =Time!O$103 -> 2018 | P4: =Time!P$103 -> 2019 | Q4: =Time!Q$103 -> 2020 | R4: =Time!R$103 -> 2021 | S4: =Time!S$103 -> 2022 | T4: =Time!T$103 -> 2023 | U4: =Time!U$103 -> 2024
E5: =Time!E$10 -> Model column counter | F5: Constant | G5: Unit | K5: =Time!K$10 -> 2 | L5: =Time!L$10 -> 3 | M5: =Time!M$10 -> 4 | N5: =Time!N$10 -> 5 | O5: =Time!O$10 -> 6 | P5: =Time!P$10 -> 7 | Q5: =Time!Q$10 -> 8 | R5: =Time!R$10 -> 9 | S5: =Time!S$10 -> 10 | T5: =Time!T$10 -> 11 | U5: =Time!U$10 -> 12
A7: WATER SERVICES
B9: Values expressed in 2017-18 FYE CPIH deflated price base for table App8
A10: =Calc!A$55 -> C_APP8002W | E10: =Calc!E$55 -> Wholesale water closing RCV at 31 March 2020 before midnight adjustments at 2017-18 FYE CPIH deflated price base | F10: =Calc!F$55 -> 2798.14144 | G10: =Calc!G$55 -> £m
A11: =Calc!A$56 -> C_APP8003W | E11: =Calc!E$56 -> Water ~ Total Adjustment RCV carry forward to PR19 at 2017-18 FYE CPIH deflated price base | F11: =Calc!F$56 -> 3.505555836 | G11: =Calc!G$56 -> £m
A12: =Calc!A$57 -> C_APP8004W | E12: =Calc!E$57 -> Water ~ CIS RCV inflation correction at 2017-18 FYE CPIH deflated price base | F12: =Calc!F$57 -> -46.30481644 | G12: =Calc!G$57 -> £m
A13: =Calc!A$58 -> C_APP8005W | E13: =Calc!E$58 -> Water ~ NPV effect of 50% of proceeds from disposals of interest in land at 2017-18 FYE CPIH deflated price base | F13: =Calc!F$58 -> -1.501777461 | G13: =Calc!G$58 -> £m
A14: =Calc!A$59 -> C_APP8006W | E14: =Calc!E$59 -> Water ~ ODI RCV adjustment allocated to Water resources at 2017-18 FYE CPIH deflated price base | F14: =Calc!F$59 -> 0 | G14: =Calc!G$59 -> £m
A15: =Calc!A$60 -> C_APP8007W | E15: =Calc!E$60 -> Water ~ ODI RCV adjustment allocated to Water network plus at 2017-18 FYE CPIH deflated price base | F15: =Calc!F$60 -> -16.72159578 | G15: =Calc!G$60 -> £m
A16: =Calc!A$61 -> C_APP8008W | E16: =Calc!E$61 -> Water ~ Totex menu RCV adjustment at 2017-18 FYE CPIH deflated price base | F16: =Calc!F$61 -> 52.11616654 | G16: =Calc!G$61 -> £m
A17: =Calc!A$62 -> APP8009W | E17: =Calc!E$62 -> Water ~ Other adjustment to wholesale RCV at 2017-18 FYE CPIH deflated price base | F17: =Calc!F$62 -> 0 | G17: =Calc!G$62 -> £m
A18: =Calc!A$63 -> C_APP8010W | E18: =Calc!E$63 -> Total wholesale water RCV at 31 March 2020 post midnight adjustments before allocation to price control units at 2017-18 FYE CPIH deflated price base | F18: =Calc!F$63 -> 2789.234973 | G18: =Calc!G$63 -> £m
B20: Values expressed in 2017-18 FYA CPIH deflated price base on table App8
A21: =Calc!A$40 -> C_APP8022WR | E21: =Calc!E$40 -> Water resources IFRS16 RCV adjustment at 2017-18 FYA CPIH deflated price base | F21: =Calc!F$40 -> 0.3663009177 | G21: =Calc!G$40 -> £m
A22: =Calc!A$139 -> C_APP8014WR | E22: =Calc!E$139 -> Water resources 2020 RCV RPI inflated ~ 1 April (opening balance) at 2017-18 CPIH deflated price base | F22: =Calc!F$139 -> 279.3711412 | G22: =Calc!G$139 -> £m
A23: =Calc!A$144 -> C_APP8016WR | E23: =Calc!E$144 -> Water resources 2020 RCV CPIH inflated ~ 1 April (opening balance) at 2017-18 CPIH deflated price base | F23: =Calc!F$144 -> 279.3711412 | G23: =Calc!G$144 -> £m
A25: =Calc!A$41 -> C_APP8022WN | E25: =Calc!E$41 -> Water network plus IFRS16 RCV adjustment at 2017-18 FYA CPIH deflated price base | F25: =Calc!F$41 -> 6.876818612 | G25: =Calc!G$41 -> £m
A26: =Calc!A$188 -> C_APP8014WN | E26: =Calc!E$188 -> Water network plus RCV RPI inflated ~ 1 April (opening balance) at 2017-18 CPIH deflated price base | F26: =Calc!F$188 -> 1107.146572 | G26: =Calc!G$188 -> £m
A27: =Calc!A$193 -> C_APP8016WN | E27: =Calc!E$193 -> Water network plus RCV CPIH inflated ~ 1 April (opening balance) at 2017-18 CPIH deflated price base | F27: =Calc!F$193 -> 1107.146572 | G27: =Calc!G$193 -> £m
B30: PR14 reconciliation adjustments expressed in 2017-18 FYA CPIH deflated price base by table
C31: Table App9
A32: =Calc!A$80 -> C_A7011W | E32: =Calc!E$80 -> Water ~ NPV effect of 50% of proceeds from disposals of interest in land at 2017-18 FYA CPIH deflated price base | F32: =Calc!F$80 -> -1.489155481 | G32: =Calc!G$80 -> £m
C33: Table App25
A34: =Calc!A$78 -> C_APP25003 | E34: =Calc!E$78 -> Water ~ Total adjustment RCV carry forward to PR19 at 2017-18 FYA CPIH deflated price base | F34: =Calc!F$78 -> 3.476092712 | G34: =Calc!G$78 -> £m
A35: =Calc!A$79 -> C_APP25007 | E35: =Calc!E$79 -> Water ~ CIS RCV inflation correction at 2017-18 FYA CPIH deflated price base | F35: =Calc!F$79 -> -45.91563863 | G35: =Calc!G$79 -> £m
C36: Table App27
A37: =Calc!A$81 -> C_APP27048 | E37: =Calc!E$81 -> ODI end of period RCV adjustment ~ Water resources at 2017-18 FYA CPIH deflated price base | F37: =Calc!F$81 -> 0 | G37: =Calc!G$81 -> £m
A38: =Calc!A$82 -> C_APP27049 | E38: =Calc!E$82 -> ODI end of period RCV adjustment ~ Water network plus at 2017-18 FYA CPIH deflated price base | F38: =Calc!F$82 -> -16.58105588 | G38: =Calc!G$82 -> £m
C39: Table WS15
A40: =Calc!A$83 -> C_WS15027 | E40: =Calc!E$83 -> Water: Totex menu RCV adjustment at 2017-18 FYA CPIH deflated price base | F40: =Calc!F$83 -> 51.67814611 | G40: =Calc!G$83 -> £m
C41: No table
A42: =Calc!A$84 -> C030 | E42: =Calc!E$84 -> Water ~ Other adjustment to wholesale RCV at 2017-18 FYA CPIH deflated price base | F42: =Calc!F$84 -> 0 | G42: =Calc!G$84 -> £m
A45: WASTEWATER SERVICES
B47: Values expressed in 2017-18 FYE CPIH deflated price base for table App8
A48: =Calc!A$244 -> C_APP8002WW | E48: =Calc!E$244 -> Wholesale wastewater closing RCV at 31 March 2020 before midnight adjustments at 2017-18 FYE CPIH deflated price base | F48: =Calc!F$244 -> 3928.359217 | G48: =Calc!G$244 -> £m
A49: =Calc!A$245 -> C_APP8003WW | E49: =Calc!E$245 -> Wastewater ~ Total adjustment RCV carry forward to PR19 at 2017-18 FYE CPIH deflated price base | F49: =Calc!F$245 -> 3.701144788 | G49: =Calc!G$245 -> £m
A50: =Calc!A$246 -> C_APP8004WW | E50: =Calc!E$246 -> Wastewater ~ CIS RCV inflation correction at 2017-18 FYE CPIH deflated price base | F50: =Calc!F$246 -> -70.79972872 | G50: =Calc!G$246 -> £m
A51: =Calc!A$247 -> C_APP8005WW | E51: =Calc!E$247 -> Wastewater ~ NPV effect of 50% of proceeds from disposals of interest in land at 2017-18 FYE CPIH deflated price base | F51: =Calc!F$247 -> 0.2271886514 | G51: =Calc!G$247 -> £m
A52: =Calc!A$248 -> C_APP8006WW | E52: =Calc!E$248 -> Wastewater ~ ODI RCV adjustment allocated to Wastewater network plus at 2017-18 FYE CPIH deflated price base | F52: =Calc!F$248 -> 0 | G52: =Calc!G$248 -> £m
A53: =Calc!A$249 -> C_APP8008WW | E53: =Calc!E$249 -> Wastewater ~ Totex menu RCV adjustment at 2017-18 FYE CPIH deflated price base | F53: =Calc!F$249 -> -54.07000005 | G53: =Calc!G$249 -> £m
A54: =Calc!A$250 -> APP8009WW | E54: =Calc!E$250 -> Wastewater ~ Other adjustment to wholesale RCV at 2017-18 FYE CPIH deflated price base | F54: =Calc!F$250 -> 0 | G54: =Calc!G$250 -> £m
A55: =Calc!A$251 -> C_APP8010WW | E55: =Calc!E$251 -> Total wholesale wastewater RCV at 31 March 2020 post midnight adjustments before allocation to price control units at 2017-18 FYE CPIH deflated price base | F55: =Calc!F$251 -> 3807.417822 | G55: =Calc!G$251 -> £m
B57: Values expressed in 2017-18 FYA CPIH deflated price base on table App8
A58: =Calc!A$276 -> C_RCV1011BIO_FYA | E58: =Calc!E$276 -> Bioresources RCV (prior to midnight adjustments) 31 March 2020 at 2017-18 FYA CPIH deflated price base | F58: =Calc!F$276 -> 293.2807917 | G58: =Calc!G$276 -> £m
A59: =Calc!A$231 -> C_APP8022WWN | E59: =Calc!E$231 -> Wastewater network plus IFRS16 RCV adjustment at 2017-18 FYA CPIH deflated price base | F59: =Calc!F$231 -> 6.134743 | G59: =Calc!G$231 -> £m
A60: =Calc!A$324 -> C_APP8014WWN | E60: =Calc!E$324 -> Wastewater network plus RCV RPI inflated ~ 1 April (opening balance) at 2017-18 CPIH deflated price base | F60: =Calc!F$324 -> 1744.135796 | G60: =Calc!G$324 -> £m
A61: =Calc!A$329 -> C_APP8016WWN | E61: =Calc!E$329 -> Wastewater network plus RCV CPIH inflated ~ 1 April (opening balance) at 2017-18 CPIH deflated price base | F61: =Calc!F$329 -> 1744.135796 | G61: =Calc!G$329 -> £m
A63: =Calc!A$230 -> C_APP8022BIO | E63: =Calc!E$230 -> Bioresources IFRS16 RCV adjustment at 2017-18 FYA CPIH deflated price base | F63: =Calc!F$230 -> 1.786889036 | G63: =Calc!G$230 -> £m
A64: =Calc!A$358 -> C_APP8014BIO | E64: =Calc!E$358 -> Bioresources 2020 RCV RPI inflated ~ 1 April (opening balance) at 2017-18 CPIH deflated price base | F64: =Calc!F$358 -> 147.5338404 | G64: =Calc!G$358 -> £m
A65: =Calc!A$362 -> C_APP8016BIO | E65: =Calc!E$362 -> Bioresources 2020 RCV CPIH inflated ~ 1 April (opening balance) at 2017-18 CPIH deflated price base | F65: =Calc!F$362 -> 147.5338404 | G65: =Calc!G$362 -> £m
B68: PR14 reconciliation adjustments expressed in 2017-18 FYA CPIH deflated price base by table
C69: Table App9
A70: =Calc!A$267 -> C_A7011WW | E70: =Calc!E$267 -> Wastewater ~ NPV effect of 50% of proceeds from disposals of interest in land at 2017-18 FYA CPIH deflated price base | F70: =Calc!F$267 -> 0.2252792003 | G70: =Calc!G$267 -> £m
C71: Table App25
A72: =Calc!A$265 -> C_APP25005 | E72: =Calc!E$265 -> Wastewater ~ Total Adjustment RCV carry forward to PR19 at 2017-18 FYA CPIH deflated price base | F72: =Calc!F$265 -> 3.670037799 | G72: =Calc!G$265 -> £m
A73: =Calc!A$266 -> C_APP25008 | E73: =Calc!E$266 -> Wastewater ~ CIS RCV inflation correction at 2017-18 FYA CPIH deflated price base | F73: =Calc!F$266 -> -70.20467866 | G73: =Calc!G$266 -> £m
C74: Table App27
A75: =Calc!A$268 -> C_APP27050 | E75: =Calc!E$268 -> ODI end of period RCV adjustment ~ Wastewater network plus at 2017-18 FYA CPIH deflated price base | F75: =Calc!F$268 -> 0 | G75: =Calc!G$268 -> £m
C76: Table WWS15
A77: =Calc!A$269 -> C_WWS15022 | E77: =Calc!E$269 -> Wastewater: Totex menu RCV adjustment at 2017-18 FYA CPIH deflated price base | F77: =Calc!F$269 -> -53.61555825 | G77: =Calc!G$269 -> £m
C78: No table
A79: =Calc!A$270 -> C040 | E79: =Calc!E$270 -> Wastewater ~ Other adjustment to wholesale RCV at 2017-18 FYA CPIH deflated price base | F79: =Calc!F$270 -> 0 | G79: =Calc!G$270 -> £m
A82: DUMMY
B84: Values expressed in 2017-18 FYE CPIH deflated price base for table App8
A85: =Calc!A$409 -> C_APP8002DMMY | E85: =Calc!E$409 -> Dummy RCV (prior to midnight adjustments) 31 March 2020 at 2017-18 FYE CPIH deflated price base | F85: =Calc!F$409 -> 0 | G85: =Calc!G$409 -> £m
A86: =Calc!A$410 -> C_APP8006DMMY | E86: =Calc!E$410 -> ODI end of period RCV adjustment allocated to dummy at 2017-18 FYE CPIH deflated price base | F86: =Calc!F$410 -> 0 | G86: =Calc!G$410 -> £m
A87: =Calc!A$411 -> C_APP8008DMMY | E87: =Calc!E$411 -> Dummy ~ Totex menu RCV adjustment at 2017-18 FYE CPIH deflated price base | F87: =Calc!F$411 -> 0 | G87: =Calc!G$411 -> £m
A88: =Calc!A$413 -> C_APP8005DMMY | E88: =Calc!E$413 -> Dummy: NPV effect of 100% of proceeds from disposals of interest in land at 2017-18 FYE CPIH deflated price base | F88: =Calc!F$413 -> 0 | G88: =Calc!G$413 -> £m
A89: =Calc!A$412 -> APP8009DMMY | E89: =Calc!E$412 -> Dummy ~ Other adjustment to wholesale RCV at 2017-18 FYE CPIH deflated price base | F89: =Calc!F$412 -> 0 | G89: =Calc!G$412 -> £m
A90: =Calc!A$414 -> C_APP8010DMMY | E90: =Calc!E$414 -> Total dummy RCV at 31 March 2020 post midnight adjustments at 2017-18 FYE CPIH deflated price base | F90: =Calc!F$414 -> 0 | G90: =Calc!G$414 -> £m
B92: Values expressed in 2017-18 FYA CPIH deflated price base on table App8
A93: =Calc!A$398 -> C_APP8022DMMY | E93: =Calc!E$398 -> Dummy IFRS16 RCV adjustment at 2017-18 FYA CPIH deflated price base | F93: =Calc!F$398 -> 0 | G93: =Calc!G$398 -> £m
A94: =Calc!A$468 -> C_APP8014DMMY | E94: =Calc!E$468 -> Dummy 2020 RCV RPI inflated ~ 1 April (opening balance) at 2017-18 CPIH deflated price base | F94: =Calc!F$468 -> 0 | G94: =Calc!G$468 -> £m
A95: =Calc!A$473 -> C_APP8016DMMY | E95: =Calc!E$473 -> Dummy 2020 RCV CPIH inflated ~ 1 April (opening balance) at 2017-18 CPIH deflated price base | F95: =Calc!F$473 -> 0 | G95: =Calc!G$473 -> £m
B97: PR14 reconciliation adjustments expressed in 2017-18 FYA CPIH deflated price base by table
C98: Table App9
A99: =Calc!A$427 -> C_A7011DMMY | E99: =Calc!E$427 -> Dummy: NPV effect of 100% of proceeds from disposals of interest in land at 2017-18 FYA CPIH deflated price base | F99: =Calc!F$427 -> 0 | G99: =Calc!G$427 -> £m
C100: Table App27
A101: =Calc!A$424 -> C_APP27051 | E101: =Calc!E$424 -> ODI end of period RCV adjustment ~ Thames Tideway at 2017-18 FYA CPIH deflated price base | F101: =Calc!F$424 -> 0 | G101: =Calc!G$424 -> £m
C102: Table Dmmy10
A103: =Calc!A$425 -> C_WWS15022DMMY | E103: =Calc!E$425 -> Dummy ~ Totex menu RCV adjustment at 2017-18 FYA CPIH deflated price base | F103: =Calc!F$425 -> 0 | G103: =Calc!G$425 -> £m
C104: No table
A105: =Calc!A$397 -> C050 | B105: =Calc!B$397 -> 0 | C105: =Calc!C$397 -> 0 | D105: =Calc!D$397 -> 0 | E105: =Calc!E$397 -> Dummy other RCV adjustment at 2017-18 FYA CPIH deflated price base | F105: =Calc!F$397 -> 0 | G105: =Calc!G$397 -> £m
